Workbook

Sheet Obsah
F2: 100
D4: B5.2 Školy vyučující obory gymnázií
D5: Zdroje dat jsou uvedeny v zápatí jednotlivých tabulek
D7: Text | F7: Obsah
D9: Tabulka 1 | F9: ='B5.2.1'!H4&" "&'B5.2.1'!D5 -> SŠ obory odpovídající gymnáziím – školy ve školním roce 2009/10 až 2019/20 – podle formy vzdělávání a zřizovatele
D11: Tabulka 2 | F11: ='B5.2.2'!H4&" "&'B5.2.2'!D5 -> SŠ obory odpovídající gymnáziím – školy ve školním roce 2009/10 až 2019/20 – podle území
D13: Tabulka 3 | F13: ='B5.2.3'!H4&" "&'B5.2.3'!D5 -> SŠ obory odpovídající gymnáziím – školy ve školním roce 2009/10 až 2019/20 – podle formy vzdělávání a a délky vzdělávání
D15: Tabulka 4 | F15: ='B5.2.4'!H4&" "&'B5.2.4'!D5 -> SŠ obory odpovídající gymnáziím, denní forma vzdělávání – třídy ve školním roce 2009/10 až 2019/20 – podle délky vzdělávání a zřizovatele
D17: Tabulka 5 | F17: ='B5.2.6'!H4&" "&'B5.2.6'!D5 -> SŠ obory odpovídající gymnáziím – žáci, nově přijatí a absolventi ve školním roce 2009/10 až 2019/20 – podle délky vzdělávání a zřizovatele
D19: Tabulka 6 | F19: ='B5.2.6'!H4&" "&'B5.2.6'!D5 -> SŠ obory odpovídající gymnáziím – žáci, nově přijatí a absolventi ve školním roce 2009/10 až 2019/20 – podle délky vzdělávání a zřizovatele
D21: Tabulka 7 | F21: ='B5.2.7'!H4&" "&'B5.2.7'!D5 -> SŠ obory odpovídající gymnáziím – dívky, nově přijaté a absolventky ve školním roce 2009/10 až 2019/20 – podle délky vzdělávání a zřizovatele
D23: Tabulka 8 | F23: ='B5.2.8'!H4&" "&'B5.2.8'!D5 -> SŠ obory odpovídající gymnáziím, denní forma vzdělávání – žáci, nově přijatí ve školním roce 2009/10 až 2019/20 – podle délky vzdělávání a zřizovatele
D25: Tabulka 9 | F25: ='B5.2.9'!H4&" "&'B5.2.9'!D5 -> SŠ obory odpovídající gymnáziím, ostatní formy vzdělávání – žáci, nově ve školním roce 2009/10 až 2019/20 – podle délky vzdělávání a zřizovatele
D27: Tabulka 10 | F27: ='B5.2.10'!H4&" "&'B5.2.10'!D5 -> SŠ obory odpovídající gymnáziím – počet podaných přihlášek v 1. kole přijímacího ve školním roce 2009/10 až 2019/20 – podle délky vzdělávání a zřizovatele
D29: Tabulka 11 | F29: ='B5.2.11'!H4&" "&'B5.2.11'!D5 -> SŠ obory odpovídající gymnáziím – počet přijatých přihlášek v 1. kole přijímacího ve školním roce 2009/10 až 2019/20 – podle délky vzdělávání a zřizovatele
D31: Tabulka 12 | F31: ='B5.2.12'!H4&" "&'B5.2.12'!D5 -> SŠ obory odpovídající gymnáziím – úspěšnost přihlášených v 1. kole přijímacího ve školním roce 2009/10 až 2019/20 – podle délky vzdělávání a zřizovatele
D33: Tabulka 13 | F33: ='B5.2.13'!H4&" "&'B5.2.13'!D5 -> SŠ obory odpovídající gymnáziím, denní forma vzdělávání – žáci ve školním roce 2009/10 až 2019/20 – podle území
D35: Tabulka 14 | F35: ='B5.2.14'!H4&" "&'B5.2.14'!D5 -> SŠ obory odpovídající gymnáziím, čtyřletá denní forma vzdělávání – nově přijatí ve školním roce 2009/10 až 2019/20 – podle území
D37: Tabulka 15 | F37: ='B5.2.15'!H4&" "&'B5.2.15'!D5 -> SŠ obory odpovídající gymnáziím, víceleté vzdělávání – nově přijatí ve školním roce 2009/10 až 2019/20 – podle území
D39: Tabulka 16 | F39: ='B5.2.16'!H4&" "&'B5.2.16'!D5 -> SŠ obory odpovídající gymnáziím, denní forma vzdělávání – absolventi ve školním roce 2009/10 až 2019/20 – podle území
D41: Tabulka 17 | F41: ='B5.2.17'!H4&" "&'B5.2.17'!D5 -> Gymnázia a sportovní školy – výdaje na gymnázia a sportovní školy v letech 2009 až 2019
D43: Tabulka 18 | F43: ='B5.2.18'!H4&" "&'B5.2.18'!D5 -> Gymnázia a školy s rozšířenou výukou sportovního zaměření – přepočtené počty zaměstnanců v letech 2009 až 2019
D45: Tabulka 19 | F45: ='B5.2.19'!$H$4&" "&'B5.2.19'!$D$5 -> Gymnázia a školy s rozšířenou výukou sportovního zaměření – průměrné měsíční mzdy zaměstnanců v letech 2009 až 2019
E46: Obrazová příloha
D48: Graf 1 | F48: ='GB1'!$H$4 -> Obory gymnázií, denní forma vzdělávání – struktura škol ve školním roce 2009/10 až 2019/20 – podle počtu žáků
D50: Graf 2 | F50: ='GB2'!$H$4&" "&'GB2'!$D$5 -> Obory čtyřletých gymnázií, denní forma vzdělávání – struktura škol ve školním roce 2009/10 až 2019/20 – podle počtu žáků
D52: Graf 3 | F52: ='GB3'!$H$4&" "&'GB3'!$D$5 -> Obory víceletých gymnázií, denní forma vzdělávání – struktura škol ve školním roce 2009/10 až 2019/20 – podle počtu žáků
D54: Graf 4 | F54: ='GB4'!$H$4&" "&'GB4'!$D$5 -> Obory gymnázií, denní forma vzdělávání – poměrové ukazatele podle zřizovatele ve školním roce 2009/10 až 2019/20 – podle formy vzdělávání a zřizovatele
D56: Graf 5 | F56: ='GB5'!$H$4&" "&'GB5'!$D$5 -> Obory gymnázií – struktura nově přijatých do 1. ročníku ve školním roce 2008/09 až 2018/19 – podle délky vzdělávání

Sheet B5.2.1
D4: Tab. B5.2.1: | H4: SŠ obory odpovídající gymnáziím – školy
B5: 0 | D5: ve školním roce 2009/10 až 2019/20 – podle formy vzdělávání a zřizovatele
D7: Forma vzdělávání Zřizovatel | J7: 2003/04 | K7: 2004/05 | L7: 2005/06 | M7: 2006/07 | N7: 2007/08 | O7: 2008/09 | P7: 2009/10 | Q7: 2010/11 | R7: 2011/12 | S7: 2012/13 | T7: 2013/14 | U7: 2014/15 | V7: 2015/16 | W7: 2016/17 | X7: 2017/18 | Y7: 2018/19 | Z7: 2019/20
J11: 1) | K11: 1) | L11: 1)
E12: Celkem | J12: 348 | K12: 349 | L12: 354 | M12: 361 | N12: 373 | O12: 377 | P12: 379 | Q12: 372 | R12: 371 | S12: 369 | T12: 366 | U12: 366 | V12: 362 | W12: 359 | X12: 358 | Y12: 355 | Z12: 355
E13: Veřejný | J13: 278 | K13: 277 | L13: 277 | M13: 277 | N13: 280 | O13: 280 | P13: 281 | Q13: 280 | R13: 282 | S13: 280 | T13: 279 | U13: 278 | V13: 277 | W13: 274 | X13: 274 | Y13: 272 | Z13: 272
E14: v tom | F14: MŠMT | J14: x | K14: x | L14: x | M14: x | N14: x | O14: x | P14: x | Q14: x | R14: x | S14: x | T14: x | U14: x | V14: x | W14: x | X14: x | Y14: x | Z14: x
F15: obec | J15: 7 | K15: 8 | L15: 8 | M15: 8 | N15: 8 | O15: 8 | P15: 9 | Q15: 10 | R15: 11 | S15: 10 | T15: 11 | U15: 10 | V15: 11 | W15: 11 | X15: 11 | Y15: 11 | Z15: 11
F16: jiný resort | J16: x | K16: x | L16: x | M16: x | N16: x | O16: x | P16: x | Q16: x | R16: x | S16: x | T16: x | U16: x | V16: x | W16: x | X16: x | Y16: x | Z16: x
F17: kraj | J17: 271 | K17: 269 | L17: 269 | M17: 269 | N17: 272 | O17: 272 | P17: 272 | Q17: 270 | R17: 271 | S17: 270 | T17: 268 | U17: 268 | V17: 266 | W17: 263 | X17: 263 | Y17: 261 | Z17: 261
E18: Neveřejný | J18: 70 | K18: 72 | L18: 77 | M18: 84 | N18: 93 | O18: 97 | P18: 98 | Q18: 92 | R18: 89 | S18: 89 | T18: 87 | U18: 88 | V18: 85 | W18: 85 | X18: 84 | Y18: 83 | Z18: 83
E19: v tom | F19: privátní sektor | J19: 52 | K19: 53 | L19: 58 | M19: 65 | N19: 73 | O19: 77 | P19: 78 | Q19: 72 | R19: 69 | S19: 69 | T19: 67 | U19: 68 | V19: 65 | W19: 65 | X19: 64 | Y19: 63 | Z19: 63
F20: církev | J20: 18 | K20: 19 | L20: 19 | M20: 19 | N20: 20 | O20: 20 | P20: 20 | Q20: 20 | R20: 20 | S20: 20 | T20: 20 | U20: 20 | V20: 20 | W20: 20 | X20: 20 | Y20: 20 | Z20: 20
E21: Denní forma vzdělávání | J21: 348 | K21: 349 | L21: 354 | M21: 361 | N21: 373 | O21: 377 | P21: 379 | Q21: 372 | R21: 371 | S21: 368 | T21: 365 | U21: 365 | V21: 362 | W21: 359 | X21: 358 | Y21: 355 | Z21: 355
E22: Veřejný | J22: 278 | K22: 277 | L22: 277 | M22: 277 | N22: 280 | O22: 280 | P22: 281 | Q22: 280 | R22: 282 | S22: 280 | T22: 279 | U22: 278 | V22: 277 | W22: 274 | X22: 274 | Y22: 272 | Z22: 272
E23: v tom | F23: MŠMT | J23: x | K23: x | L23: x | M23: x | N23: x | O23: x | P23: x | Q23: x | R23: x | S23: x | T23: x | U23: x | V23: x | W23: x | X23: x | Y23: x | Z23: x
F24: obec | J24: 7 | K24: 8 | L24: 8 | M24: 8 | N24: 8 | O24: 8 | P24: 9 | Q24: 10 | R24: 11 | S24: 10 | T24: 11 | U24: 10 | V24: 11 | W24: 11 | X24: 11 | Y24: 11 | Z24: 11
F25: jiný resort | J25: x | K25: x | L25: x | M25: x | N25: x | O25: x | P25: x | Q25: x | R25: x | S25: x | T25: x | U25: x | V25: x | W25: x | X25: x | Y25: x | Z25: x
F26: kraj | J26: 271 | K26: 269 | L26: 269 | M26: 269 | N26: 272 | O26: 272 | P26: 272 | Q26: 270 | R26: 271 | S26: 270 | T26: 268 | U26: 268 | V26: 266 | W26: 263 | X26: 263 | Y26: 261 | Z26: 261
E27: Neveřejný | J27: 70 | K27: 72 | L27: 77 | M27: 84 | N27: 93 | O27: 97 | P27: 98 | Q27: 92 | R27: 89 | S27: 88 | T27: 86 | U27: 87 | V27: 85 | W27: 85 | X27: 84 | Y27: 83 | Z27: 83
E28: v tom | F28: privátní sektor | J28: 52 | K28: 53 | L28: 58 | M28: 65 | N28: 73 | O28: 77 | P28: 78 | Q28: 72 | R28: 69 | S28: 68 | T28: 66 | U28: 67 | V28: 65 | W28: 65 | X28: 64 | Y28: 63 | Z28: 63
F29: církev | J29: 18 | K29: 19 | L29: 19 | M29: 19 | N29: 20 | O29: 20 | P29: 20 | Q29: 20 | R29: 20 | S29: 20 | T29: 20 | U29: 20 | V29: 20 | W29: 20 | X29: 20 | Y29: 20 | Z29: 20
E30: Ostatní formy vzdělávání | J30: 13 | K30: 15 | L30: 11 | M30: 13 | N30: 17 | O30: 20 | P30: 22 | Q30: 21 | R30: 19 | S30: 17 | T30: 15 | U30: 15 | V30: 13 | W30: 14 | X30: 12 | Y30: 11 | Z30: 9
E31: Veřejný | J31: 6 | K31: 6 | L31: 3 | M31: 3 | N31: 7 | O31: 8 | P31: 8 | Q31: 7 | R31: 6 | S31: 4 | T31: 5 | U31: 4 | V31: 4 | W31: 4 | X31: 3 | Y31: 3 | Z31: 3
E32: v tom | F32: MŠMT | J32: x | K32: x | L32: x | M32: x | N32: x | O32: x | P32: x | Q32: x | R32: x | S32: x | T32: x | U32: x | V32: x | W32: x | X32: x | Y32: x | Z32: x
F33: obec | J33: 0 | K33: 0 | L33: 0 | M33: 0 | N33: 0 | O33: 0 | P33: 0 | Q33: 0 | R33: 0 | S33: 0 | T33: 1 | U33: 1 | V33: 1 | W33: 1 | X33: 0 | Y33: 0 | Z33: 0
F34: jiný resort | J34: x | K34: x | L34: x | M34: x | N34: x | O34: x | P34: x | Q34: x | R34: x | S34: x | T34: x | U34: x | V34: x | W34: x | X34: x | Y34: x | Z34: x
F35: kraj | J35: 6 | K35: 6 | L35: 3 | M35: 3 | N35: 7 | O35: 8 | P35: 8 | Q35: 7 | R35: 6 | S35: 4 | T35: 4 | U35: 3 | V35: 3 | W35: 3 | X35: 3 | Y35: 3 | Z35: 3
E36: Neveřejný | J36: 7 | K36: 9 | L36: 8 | M36: 10 | N36: 10 | O36: 12 | P36: 14 | Q36: 14 | R36: 13 | S36: 13 | T36: 10 | U36: 11 | V36: 9 | W36: 10 | X36: 9 | Y36: 8 | Z36: 6
E37: v tom | F37: privátní sektor | J37: 6 | K37: 7 | L37: 7 | M37: 9 | N37: 9 | O37: 11 | P37: 13 | Q37: 12 | R37: 11 | S37: 11 | T37: 8 | U37: 9 | V37: 7 | W37: 8 | X37: 8 | Y37: 7 | Z37: 5
F38: církev | J38: 1 | K38: 2 | L38: 1 | M38: 1 | N38: 1 | O38: 1 | P38: 1 | Q38: 2 | R38: 2 | S38: 2 | T38: 2 | U38: 2 | V38: 2 | W38: 2 | X38: 1 | Y38: 1 | Z38: 1
Z39: Zdroj: databáze MŠMT

Sheet B5.2.2
D4: Tab. B5.2.2: | H4: SŠ obory odpovídající gymnáziím – školy
B5: 0 | D5: ve školním roce 2009/10 až 2019/20 – podle území
D7: Území | J7: 2003/04 | K7: 2004/05 | L7: 2005/06 | M7: 2006/07 | N7: 2007/08 | O7: 2008/09 | P7: 2009/10 | Q7: 2010/11 | R7: 2011/12 | S7: 2012/13 | T7: 2013/14 | U7: 2014/15 | V7: 2015/16 | W7: 2016/17 | X7: 2017/18 | Y7: 2018/19 | Z7: 2019/20
J11: 1) | K11: 1) | L11: 1)
E12: Česká republika | H12: CZ0 | J12: 348 | K12: 349 | L12: 354 | M12: 361 | N12: 373 | O12: 377 | P12: 379 | Q12: 372 | R12: 371 | S12: 369 | T12: 366 | U12: 366 | V12: 362 | W12: 359 | X12: 358 | Y12: 355 | Z12: 355
E13: Praha | H13: CZ01 | J13: 61 | K13: 61 | L13: 63 | M13: 66 | N13: 67 | O13: 71 | P13: 72 | Q13: 68 | R13: 68 | S13: 69 | T13: 69 | U13: 69 | V13: 67 | W13: 67 | X13: 66 | Y13: 65 | Z13: 66
F14: Hlavní město Praha | H14: CZ010 | J14: 61 | K14: 61 | L14: 63 | M14: 66 | N14: 67 | O14: 71 | P14: 72 | Q14: 68 | R14: 68 | S14: 69 | T14: 69 | U14: 69 | V14: 67 | W14: 67 | X14: 66 | Y14: 65 | Z14: 66
E15: Střední Čechy | H15: CZ02 | J15: 33 | K15: 33 | L15: 34 | M15: 34 | N15: 34 | O15: 34 | P15: 34 | Q15: 34 | R15: 34 | S15: 34 | T15: 34 | U15: 35 | V15: 35 | W15: 35 | X15: 35 | Y15: 35 | Z15: 36
F16: Středočeský kraj | H16: CZ020 | J16: 33 | K16: 33 | L16: 34 | M16: 34 | N16: 34 | O16: 34 | P16: 34 | Q16: 34 | R16: 34 | S16: 34 | T16: 34 | U16: 35 | V16: 35 | W16: 35 | X16: 35 | Y16: 35 | Z16: 36
E17: Jihozápad | H17: CZ03 | J17: 38 | K17: 38 | L17: 38 | M17: 38 | N17: 41 | O17: 40 | P17: 41 | Q17: 39 | R17: 39 | S17: 39 | T17: 38 | U17: 38 | V17: 38 | W17: 38 | X17: 38 | Y17: 37 | Z17: 37
F18: Jihočeský kraj | H18: CZ031 | J18: 24 | K18: 24 | L18: 24 | M18: 24 | N18: 27 | O18: 26 | P18: 26 | Q18: 25 | R18: 25 | S18: 24 | T18: 23 | U18: 23 | V18: 23 | W18: 23 | X18: 23 | Y18: 22 | Z18: 22
F19: Plzeňský kraj | H19: CZ032 | J19: 14 | K19: 14 | L19: 14 | M19: 14 | N19: 14 | O19: 14 | P19: 15 | Q19: 14 | R19: 14 | S19: 15 | T19: 15 | U19: 15 | V19: 15 | W19: 15 | X19: 15 | Y19: 15 | Z19: 15
E20: Severozápad | H20: CZ04 | J20: 32 | K20: 33 | L20: 33 | M20: 35 | N20: 35 | O20: 34 | P20: 34 | Q20: 33 | R20: 33 | S20: 33 | T20: 33 | U20: 32 | V20: 32 | W20: 32 | X20: 32 | Y20: 32 | Z20: 32
F21: Karlovarský kraj | H21: CZ041 | J21: 8 | K21: 9 | L21: 9 | M21: 11 | N21: 11 | O21: 11 | P21: 11 | Q21: 10 | R21: 10 | S21: 10 | T21: 10 | U21: 10 | V21: 10 | W21: 10 | X21: 10 | Y21: 10 | Z21: 10
F22: Ústecký kraj | H22: CZ042 | J22: 24 | K22: 24 | L22: 24 | M22: 24 | N22: 24 | O22: 23 | P22: 23 | Q22: 23 | R22: 23 | S22: 23 | T22: 23 | U22: 22 | V22: 22 | W22: 22 | X22: 22 | Y22: 22 | Z22: 22
E23: Severovýchod | H23: CZ05 | J23: 51 | K23: 51 | L23: 51 | M23: 52 | N23: 54 | O23: 55 | P23: 55 | Q23: 55 | R23: 54 | S23: 55 | T23: 53 | U23: 55 | V23: 55 | W23: 54 | X23: 54 | Y23: 53 | Z23: 52
F24: Liberecký kraj | H24: CZ051 | J24: 13 | K24: 13 | L24: 13 | M24: 13 | N24: 13 | O24: 14 | P24: 14 | Q24: 14 | R24: 14 | S24: 14 | T24: 14 | U24: 14 | V24: 14 | W24: 13 | X24: 13 | Y24: 13 | Z24: 13
F25: Královéhradecký kraj | H25: CZ052 | J25: 18 | K25: 18 | L25: 18 | M25: 18 | N25: 20 | O25: 20 | P25: 20 | Q25: 20 | R25: 19 | S25: 20 | T25: 19 | U25: 21 | V25: 21 | W25: 21 | X25: 21 | Y25: 20 | Z25: 19
F26: Pardubický kraj | H26: CZ053 | J26: 20 | K26: 20 | L26: 20 | M26: 21 | N26: 21 | O26: 21 | P26: 21 | Q26: 21 | R26: 21 | S26: 21 | T26: 20 | U26: 20 | V26: 20 | W26: 20 | X26: 20 | Y26: 20 | Z26: 20
E27: Jihovýchod | H27: CZ06 | J27: 62 | K27: 59 | L27: 59 | M27: 59 | N27: 60 | O27: 60 | P27: 60 | Q27: 60 | R27: 60 | S27: 59 | T27: 59 | U27: 59 | V27: 58 | W27: 58 | X27: 58 | Y27: 58 | Z27: 58
F28: Kraj Vysočina | H28: CZ063 | J28: 18 | K28: 18 | L28: 18 | M28: 18 | N28: 18 | O28: 18 | P28: 18 | Q28: 18 | R28: 18 | S28: 18 | T28: 18 | U28: 18 | V28: 18 | W28: 18 | X28: 18 | Y28: 18 | Z28: 18
F29: Jihomoravský kraj | H29: CZ064 | J29: 44 | K29: 41 | L29: 41 | M29: 41 | N29: 42 | O29: 42 | P29: 42 | Q29: 42 | R29: 42 | S29: 41 | T29: 41 | U29: 41 | V29: 40 | W29: 40 | X29: 40 | Y29: 40 | Z29: 40
E30: Střední Morava | H30: CZ07 | J30: 34 | K30: 35 | L30: 35 | M30: 35 | N30: 36 | O30: 37 | P30: 37 | Q30: 37 | R30: 37 | S30: 36 | T30: 36 | U30: 36 | V30: 35 | W30: 35 | X30: 35 | Y30: 35 | Z30: 35
F31: Olomoucký kraj | H31: CZ071 | J31: 20 | K31: 20 | L31: 20 | M31: 20 | N31: 20 | O31: 20 | P31: 20 | Q31: 20 | R31: 20 | S31: 19 | T31: 20 | U31: 20 | V31: 19 | W31: 19 | X31: 19 | Y31: 19 | Z31: 19
F32: Zlínský kraj | H32: CZ072 | J32: 14 | K32: 15 | L32: 15 | M32: 15 | N32: 16 | O32: 17 | P32: 17 | Q32: 17 | R32: 17 | S32: 17 | T32: 16 | U32: 16 | V32: 16 | W32: 16 | X32: 16 | Y32: 16 | Z32: 16
E33: Moravskoslezsko | H33: CZ08 | J33: 37 | K33: 39 | L33: 41 | M33: 42 | N33: 46 | O33: 46 | P33: 46 | Q33: 46 | R33: 46 | S33: 44 | T33: 44 | U33: 42 | V33: 42 | W33: 40 | X33: 40 | Y33: 40 | Z33: 39
F34: Moravskoslezský kraj | H34: CZ080 | J34: 37 | K34: 39 | L34: 41 | M34: 42 | N34: 46 | O34: 46 | P34: 46 | Q34: 46 | R34: 46 | S34: 44 | T34: 44 | U34: 42 | V34: 42 | W34: 40 | X34: 40 | Y34: 40 | Z34: 39
Z35: Zdroj: databáze MŠMT

Sheet B5.2.3
D4: Tab. B5.2.3: | H4: SŠ obory odpovídající gymnáziím – školy
B5: 18 | D5: ve školním roce 2009/10 až 2019/20 – podle formy vzdělávání a a délky vzdělávání
D7: Forma vzdělávání Délka vzdělávání | J7: 2003/04 | K7: 2004/05 | L7: 2005/06 | M7: 2006/07 | N7: 2007/08 | O7: 2008/09 | P7: 2009/10 | Q7: 2010/11 | R7: 2011/12 | S7: 2012/13 | T7: 2013/14 | U7: 2014/15 | V7: 2015/16 | W7: 2016/17 | X7: 2017/18 | Y7: 2018/19 | Z7: 2019/20
J11: 1) | K11: 1) | L11: 1)
D12: Všechny formy vzdělávání
E13: Celkem | J13: 348 | K13: 349 | L13: 354 | M13: 361 | N13: 373 | O13: 377 | P13: 379 | Q13: 372 | R13: 371 | S13: 369 | T13: 366 | U13: 366 | V13: 362 | W13: 359 | X13: 358 | Y13: 355 | Z13: 355
E14: z toho | F14: se vzděláváním 4letým | J14: 294 | K14: 296 | L14: 298 | M14: 306 | N14: 316 | O14: 319 | P14: 321 | Q14: 313 | R14: 312 | S14: 306 | T14: 302 | U14: 305 | V14: 298 | W14: 297 | X14: 293 | Y14: 293 | Z14: 289
F15: s víceletým | J15: 312 | K15: 310 | L15: 312 | M15: 311 | N15: 313 | O15: 314 | P15: 315 | Q15: 315 | R15: 316 | S15: 315 | T15: 315 | U15: 316 | V15: 314 | W15: 314 | X15: 311 | Y15: 308 | Z15: 308
F16: z toho | G16: vzdělávání 6leté | J16: 56 | K16: 57 | L16: 58 | M16: 60 | N16: 62 | O16: 68 | P16: 68 | Q16: 67 | R16: 67 | S16: 67 | T16: 68 | U16: 71 | V16: 70 | W16: 70 | X16: 69 | Y16: 69 | Z16: 69
G17: vzdělávání 8leté | J17: 281 | K17: 278 | L17: 279 | M17: 277 | N17: 278 | O17: 278 | P17: 279 | Q17: 281 | R17: 280 | S17: 279 | T17: 279 | U17: 276 | V17: 276 | W17: 276 | X17: 273 | Y17: 271 | Z17: 269
D18: Denní forma vzdělávání
E19: Celkem | J19: 348 | K19: 349 | L19: 354 | M19: 361 | N19: 373 | O19: 377 | P19: 379 | Q19: 372 | R19: 371 | S19: 368 | T19: 365 | U19: 365 | V19: 362 | W19: 359 | X19: 358 | Y19: 355 | Z19: 355
E20: z toho | F20: se vzděláváním 4letým | J20: 293 | K20: 295 | L20: 296 | M20: 304 | N20: 313 | O20: 315 | P20: 315 | Q20: 310 | R20: 309 | S20: 302 | T20: 298 | U20: 301 | V20: 295 | W20: 294 | X20: 290 | Y20: 290 | Z20: 287
F21: s víceletým | J21: 312 | K21: 310 | L21: 312 | M21: 311 | N21: 313 | O21: 314 | P21: 315 | Q21: 315 | R21: 316 | S21: 315 | T21: 315 | U21: 316 | V21: 314 | W21: 314 | X21: 311 | Y21: 308 | Z21: 308
F22: z toho | G22: vzdělávání 6leté | J22: 56 | K22: 57 | L22: 58 | M22: 60 | N22: 62 | O22: 68 | P22: 68 | Q22: 67 | R22: 67 | S22: 67 | T22: 68 | U22: 71 | V22: 70 | W22: 70 | X22: 69 | Y22: 69 | Z22: 69
G23: vzdělávání 8leté | J23: 281 | K23: 278 | L23: 279 | M23: 277 | N23: 278 | O23: 278 | P23: 279 | Q23: 280 | R23: 280 | S23: 279 | T23: 279 | U23: 276 | V23: 276 | W23: 276 | X23: 273 | Y23: 271 | Z23: 269
D24: Ostatní formy vzdělávání
E25: Celkem | J25: 13 | K25: 15 | L25: 11 | M25: 13 | N25: 17 | O25: 20 | P25: 22 | Q25: 21 | R25: 19 | S25: 17 | T25: 15 | U25: 15 | V25: 13 | W25: 14 | X25: 12 | Y25: 11 | Z25: 9
E26: z toho | F26: se vzděláváním 4letým | J26: 13 | K26: 15 | L26: 11 | M26: 13 | N26: 17 | O26: 20 | P26: 22 | Q26: 21 | R26: 19 | S26: 17 | T26: 15 | U26: 15 | V26: 13 | W26: 14 | X26: 12 | Y26: 11 | Z26: 9
F27: s víceletým | J27: x | K27: x | L27: x | M27: x | N27: x | O27: x | P27: x | Q27: x | R27: x | S27: x | T27: x | U27: x | V27: x | W27: x | X27: x | Y27: x | Z27: x
F28: z toho | G28: vzdělávání 6leté | J28: x | K28: x | L28: x | M28: x | N28: x | O28: x | P28: x | Q28: x | R28: x | S28: x | T28: x | U28: x | V28: x | W28: x | X28: x | Y28: x | Z28: x
G29: vzdělávání 8leté | J29: x | K29: x | L29: x | M29: x | N29: x | O29: x | P29: x | Q29: x | R29: x | S29: x | T29: x | U29: x | V29: x | W29: x | X29: x | Y29: x | Z29: x
Z30: Zdroj: databáze MŠMT

Sheet B5.2.4
D4: Tab. B5.2.4: | H4: SŠ obory odpovídající gymnáziím, denní forma vzdělávání – třídy
D5: ve školním roce 2009/10 až 2019/20 – podle délky vzdělávání a zřizovatele
D7: Zřizovatel Délka vzdělávání | J7: 2003/04 | K7: 2004/05 | L7: 2005/06 | M7: 2006/07 | N7: 2007/08 | O7: 2008/09 | P7: 2009/10 | Q7: 2010/11 | R7: 2011/12 | S7: 2012/13 | T7: 2013/14 | U7: 2014/15 | V7: 2015/16 | W7: 2016/17 | X7: 2017/18 | Y7: 2018/19 | Z7: 2019/20
E12: Celkem | J12: 5134 | K12: 5132 | L12: 5162 | M12: 5221 | N12: 5246.3 | O12: 5263.1 | P12: 5247.9 | Q12: 5157.8 | R12: 5081.37 | S12: 4975.29 | T12: 4897.74 | U12: 4847.47 | V12: 4830.91 | W12: 4838.6 | X12: 4849.22 | Y12: 4866.64 | Z12: 4894.28
E13: v tom | F13: čtyřletá | J13: 1897 | K13: 1975 | L13: 2024 | M13: 2092 | N13: 2101.3 | O13: 2105.5 | P13: 2076.5 | Q13: 2000.45 | R13: 1931.47 | S13: 1855.43 | T13: 1798.5 | U13: 1768.33 | V13: 1770.68 | W13: 1780.92 | X13: 1790.06 | Y13: 1790.44 | Z13: 1796.24
F14: víceletá | J14: 3237 | K14: 3157 | L14: 3138 | M14: 3129 | N14: 3145 | O14: 3157.6 | P14: 3171.4 | Q14: 3157.35 | R14: 3149.9 | S14: 3119.86 | T14: 3099.24 | U14: 3079.14 | V14: 3060.23 | W14: 3057.68 | X14: 3059.16 | Y14: 3076.2 | Z14: 3098.04
D15: Třídy na veřejných školách
E16: Celkem | J16: 4383 | K16: 4364 | L16: 4367 | M16: 4392 | N16: 4402 | O16: 4403.1 | P16: 4384.4 | Q16: 4338.55 | R16: 4279.5 | S16: 4194.61 | T16: 4111.97 | U16: 4043.19 | V16: 4013.3 | W16: 3999.83 | X16: 3992.66 | Y16: 3988.67 | Z16: 3991.27
E17: v tom | F17: čtyřletá | J17: 1669 | K17: 1730 | L17: 1762 | M17: 1797 | N17: 1794 | O17: 1789.5 | P17: 1769 | Q17: 1730.31 | R17: 1687.94 | S17: 1635.51 | T17: 1583.92 | U17: 1548.58 | V17: 1545.38 | W17: 1552.14 | X17: 1556.87 | Y17: 1556.47 | Z17: 1556.37
F18: víceletá | J18: 2714 | K18: 2634 | L18: 2605 | M18: 2595 | N18: 2608 | O18: 2613.6 | P18: 2615.4 | Q18: 2608.24 | R18: 2591.56 | S18: 2559.1 | T18: 2528.05 | U18: 2494.61 | V18: 2467.92 | W18: 2447.69 | X18: 2435.79 | Y18: 2432.2 | Z18: 2434.9
E19: MŠMT | J19: x | K19: x | L19: x | M19: x | N19: x | O19: x | P19: x | Q19: x | R19: x | S19: x | T19: x | U19: x | V19: x | W19: x | X19: x | Y19: x | Z19: x
E20: v tom | F20: čtyřletá | J20: x | K20: x | L20: x | M20: x | N20: x | O20: x | P20: x | Q20: x | R20: x | S20: x | T20: x | U20: x | V20: x | W20: x | X20: x | Y20: x | Z20: x
F21: víceletá | J21: x | K21: x | L21: x | M21: x | N21: x | O21: x | P21: x | Q21: x | R21: x | S21: x | T21: x | U21: x | V21: x | W21: x | X21: x | Y21: x | Z21: x
E22: Obec | J22: 55 | K22: 64 | L22: 65 | M22: 65 | N22: 64 | O22: 64.6 | P22: 68.4 | Q22: 76.54 | R22: 84 | S22: 73 | T22: 81 | U22: 79 | V22: 85 | W22: 87 | X22: 88 | Y22: 88 | Z22: 88
E23: v tom | F23: čtyřletá | J23: 8 | K23: 10 | L23: 11 | M23: 11 | N23: 9.8 | O23: 10.6 | P23: 10.4 | Q23: 11.54 | R23: 12 | S23: 10 | T23: 13.05 | U23: 13.13 | V23: 14.07 | W23: 15.77 | X23: 15.76 | Y23: 15.01 | Z23: 13.4
F24: víceletá | J24: 47 | K24: 54 | L24: 54 | M24: 54 | N24: 54 | O24: 54 | P24: 58 | Q24: 65 | R24: 72 | S24: 63 | T24: 67.95 | U24: 65.87 | V24: 70.93 | W24: 71.23 | X24: 72.24 | Y24: 72.99 | Z24: 74.6
E25: Kraj | J25: 4328 | K25: 4300 | L25: 4302 | M25: 4327 | N25: 4338 | O25: 4338.5 | P25: 4316 | Q25: 4262.01 | R25: 4195.5 | S25: 4121.61 | T25: 4030.97 | U25: 3964.19 | V25: 3928.3 | W25: 3912.83 | X25: 3904.66 | Y25: 3900.67 | Z25: 3903.27
E26: v tom | F26: čtyřletá | J26: 1661 | K26: 1720 | L26: 1751 | M26: 1786 | N26: 1784 | O26: 1778.9 | P26: 1758.6 | Q26: 1718.77 | R26: 1675.94 | S26: 1625.51 | T26: 1570.87 | U26: 1535.45 | V26: 1531.31 | W26: 1536.37 | X26: 1541.11 | Y26: 1541.46 | Z26: 1542.97
F27: víceletá | J27: 2667 | K27: 2580 | L27: 2551 | M27: 2541 | N27: 2554 | O27: 2559.6 | P27: 2557.4 | Q27: 2543.24 | R27: 2519.56 | S27: 2496.1 | T27: 2460.1 | U27: 2428.74 | V27: 2396.99 | W27: 2376.46 | X27: 2363.55 | Y27: 2359.21 | Z27: 2360.3
D28: Třídy na neveřejných školách
E29: Celkem | J29: 751 | K29: 768 | L29: 795 | M29: 829 | N29: 845 | O29: 860 | P29: 863.5 | Q29: 819.25 | R29: 801.87 | S29: 780.68 | T29: 785.77 | U29: 804.28 | V29: 817.61 | W29: 838.77 | X29: 856.56 | Y29: 877.97 | Z29: 903.01
E30: v tom | F30: čtyřletá | J30: 228 | K30: 245 | L30: 262 | M30: 295 | N30: 308 | O30: 316 | P30: 307.5 | Q30: 270.14 | R30: 243.53 | S30: 219.92 | T30: 214.58 | U30: 219.75 | V30: 225.3 | W30: 228.78 | X30: 233.19 | Y30: 233.97 | Z30: 239.87
F31: víceletá | J31: 523 | K31: 523 | L31: 533 | M31: 534 | N31: 537 | O31: 544 | P31: 556 | Q31: 549.11 | R31: 558.34 | S31: 560.76 | T31: 571.19 | U31: 584.53 | V31: 592.31 | W31: 609.99 | X31: 623.37 | Y31: 644 | Z31: 663.14
E32: Privátní sektor | J32: 526 | K32: 538 | L32: 561 | M32: 589 | N32: 592 | O32: 603 | P32: 603.5 | Q32: 560.25 | R32: 543.87 | S32: 525.43 | T32: 529.01 | U32: 547 | V32: 558.93 | W32: 579.01 | X32: 595.93 | Y32: 618.99 | Z32: 646.01
E33: v tom | F33: čtyřletá | J33: 169 | K33: 181 | L33: 194 | M33: 221 | N33: 221.5 | O33: 229 | P33: 221.5 | Q33: 189.14 | R33: 166.53 | S33: 148.67 | T33: 144.82 | U33: 151.33 | V33: 156.63 | W33: 162.1 | X33: 165.61 | Y33: 168.04 | Z33: 175.87
F34: víceletá | J34: 357 | K34: 357 | L34: 367 | M34: 368 | N34: 370 | O34: 374 | P34: 382 | Q34: 371.11 | R34: 377.34 | S34: 376.76 | T34: 384.19 | U34: 395.67 | V34: 402.3 | W34: 416.91 | X34: 430.32 | Y34: 450.95 | Z34: 470.14
E35: Církev | J35: 225 | K35: 230 | L35: 234 | M35: 240 | N35: 253 | O35: 257 | P35: 260 | Q35: 259 | R35: 258 | S35: 255.25 | T35: 256.76 | U35: 257.28 | V35: 258.68 | W35: 259.76 | X35: 260.63 | Y35: 258.98 | Z35: 257
E36: v tom | F36: čtyřletá | J36: 59 | K36: 64 | L36: 68 | M36: 74 | N36: 86 | O36: 87 | P36: 86 | Q36: 81 | R36: 77 | S36: 71.25 | T36: 69.76 | U36: 68.42 | V36: 68.67 | W36: 66.68 | X36: 67.58 | Y36: 65.93 | Z36: 64
F37: víceletá | J37: 166 | K37: 166 | L37: 166 | M37: 166 | N37: 167 | O37: 170 | P37: 174 | Q37: 178 | R37: 181 | S37: 184 | T37: 187 | U37: 188.86 | V37: 190.01 | W37: 193.08 | X37: 193.05 | Y37: 193.05 | Z37: 193
Z38: Zdroj: databáze MŠMT

Sheet B5.2.5
D4: Tab. B5.2.5: | H4: SŠ obory odpovídající gymnáziím – žáci, nově přijatí a absolventi
B5: 18 | D5: ve školním roce 2009/10 až 2019/20 – podle délky vzdělávání a zřizovatele
D7: Zřizovatel Délka vzdělávání | J7: 2003/04 | K7: 2004/05 | L7: 2005/06 | M7: 2006/07 | N7: 2007/08 | O7: 2008/09 | P7: 2009/10 | Q7: 2010/11 | R7: 2011/12 | S7: 2012/13 | T7: 2013/14 | U7: 2014/15 | V7: 2015/16 | W7: 2016/17 | X7: 2017/18 | Y7: 2018/19 | Z7: 2019/20
D12: Žáci
E13: Celkem | J13: 143288 | K13: 143511 | L13: 144605 | M13: 146354 | N13: 146370 | O13: 146021 | P13: 143851 | Q13: 139066 | R13: 134965 | S13: 131013 | T13: 128527 | U13: 127666 | V13: 128045 | W13: 128994 | X13: 129554 | Y13: 130133 | Z13: 130725
E14: v tom | F14: čtyřletá | J14: 55047 | K14: 57223 | L14: 58531 | M14: 60521 | N14: 60360 | O14: 60307 | P14: 58716 | Q14: 55251 | R14: 52040 | S14: 49369 | T14: 47734 | U14: 47138 | V14: 47516 | W14: 48138 | X14: 48339 | Y14: 48461 | Z14: 48642
F15: víceletá | J15: 88241 | K15: 86288 | L15: 86074 | M15: 85833 | N15: 86010 | O15: 85714 | P15: 85135 | Q15: 83815 | R15: 82925 | S15: 81644 | T15: 80793 | U15: 80528 | V15: 80529 | W15: 80856 | X15: 81215 | Y15: 81672 | Z15: 82083
F16: v tom | G16: 6letá | J16: 11216 | K16: 11204 | L16: 11577 | M16: 12045 | N16: 12532 | O16: 12854 | P16: 13072 | Q16: 12926 | R16: 12824 | S16: 12811 | T16: 12648 | U16: 12597 | V16: 12690 | W16: 12879 | X16: 12956 | Y16: 13118 | Z16: 13368
G17: 8letá | J17: 77025 | K17: 75084 | L17: 74497 | M17: 73788 | N17: 73478 | O17: 72860 | P17: 72063 | Q17: 70889 | R17: 70101 | S17: 68833 | T17: 68145 | U17: 67931 | V17: 67839 | W17: 67977 | X17: 68259 | Y17: 68554 | Z17: 68715
E18: Veřejný | J18: 126108 | K18: 126090 | L18: 126464 | M18: 127349 | N18: 127354 | O18: 126927 | P18: 125020 | Q18: 121787 | R18: 118397 | S18: 114930 | T18: 112477 | U18: 111016 | V18: 110821 | W18: 111005 | X18: 110944 | Y18: 110972 | Z18: 111187
E19: v tom | F19: čtyřletá | J19: 49412 | K19: 51303 | L19: 52266 | M19: 53463 | N19: 53288 | O19: 53015 | P19: 51678 | Q19: 49263 | R19: 46727 | S19: 44587 | T19: 43194 | U19: 42545 | V19: 42745 | W19: 43212 | X19: 43374 | Y19: 43443 | Z19: 43620
F20: víceletá | J20: 76696 | K20: 74787 | L20: 74198 | M20: 73886 | N20: 74066 | O20: 73912 | P20: 73342 | Q20: 72524 | R20: 71670 | S20: 70343 | T20: 69283 | U20: 68471 | V20: 68076 | W20: 67793 | X20: 67570 | Y20: 67529 | Z20: 67567
F21: v tom | G21: 6letá | J21: 9161 | K21: 9103 | L21: 9379 | M21: 9782 | N21: 10354 | O21: 10712 | P21: 10977 | Q21: 11124 | R21: 11149 | S21: 11125 | T21: 10978 | U21: 10844 | V21: 10804 | W21: 10859 | X21: 10778 | Y21: 10819 | Z21: 10957
G22: 8letá | J22: 67535 | K22: 65684 | L22: 64819 | M22: 64104 | N22: 63712 | O22: 63200 | P22: 62365 | Q22: 61400 | R22: 60521 | S22: 59218 | T22: 58305 | U22: 57627 | V22: 57272 | W22: 56934 | X22: 56792 | Y22: 56710 | Z22: 56610
E23: Privátní sektor | J23: 10840 | K23: 10983 | L23: 11534 | M23: 12230 | N23: 12048 | O23: 12135 | P23: 11914 | Q23: 10529 | R23: 9818 | S23: 9429 | T23: 9247 | U23: 9659 | V23: 10158 | W23: 10856 | X23: 11439 | Y23: 12005 | Z23: 12440
E24: v tom | F24: čtyřletá | J24: 3939 | K24: 4132 | L24: 4371 | M24: 5044 | N24: 4878 | O24: 5104 | P24: 4945 | Q24: 4061 | R24: 3442 | S24: 3057 | T24: 2769 | U24: 2744 | V24: 2895 | W24: 3079 | X24: 3138 | Y24: 3238 | Z24: 3304
F25: víceletá | J25: 6901 | K25: 6851 | L25: 7163 | M25: 7186 | N25: 7170 | O25: 7031 | P25: 6969 | Q25: 6468 | R25: 6376 | S25: 6372 | T25: 6478 | U25: 6915 | V25: 7263 | W25: 7777 | X25: 8301 | Y25: 8767 | Z25: 9136
F26: v tom | G26: 6letá | J26: 1723 | K26: 1741 | L26: 1800 | M26: 1834 | N26: 1733 | O26: 1709 | P26: 1649 | Q26: 1359 | R26: 1258 | S26: 1269 | T26: 1246 | U26: 1308 | V26: 1416 | W26: 1542 | X26: 1688 | Y26: 1801 | Z26: 1908
G27: 8letá | J27: 5178 | K27: 5110 | L27: 5363 | M27: 5352 | N27: 5437 | O27: 5322 | P27: 5320 | Q27: 5109 | R27: 5118 | S27: 5103 | T27: 5232 | U27: 5607 | V27: 5847 | W27: 6235 | X27: 6613 | Y27: 6966 | Z27: 7228
E28: Církev | J28: 6340 | K28: 6438 | L28: 6607 | M28: 6775 | N28: 6968 | O28: 6959 | P28: 6917 | Q28: 6750 | R28: 6750 | S28: 6654 | T28: 6803 | U28: 6991 | V28: 7066 | W28: 7133 | X28: 7171 | Y28: 7156 | Z28: 7098
E29: v tom | F29: čtyřletá | J29: 1696 | K29: 1788 | L29: 1894 | M29: 2014 | N29: 2194 | O29: 2188 | P29: 2093 | Q29: 1927 | R29: 1871 | S29: 1725 | T29: 1771 | U29: 1849 | V29: 1876 | W29: 1847 | X29: 1827 | Y29: 1780 | Z29: 1718
F30: víceletá | J30: 4644 | K30: 4650 | L30: 4713 | M30: 4761 | N30: 4774 | O30: 4771 | P30: 4824 | Q30: 4823 | R30: 4879 | S30: 4929 | T30: 5032 | U30: 5142 | V30: 5190 | W30: 5286 | X30: 5344 | Y30: 5376 | Z30: 5380
F31: v tom | G31: 6letá | J31: 332 | K31: 360 | L31: 398 | M31: 429 | N31: 445 | O31: 433 | P31: 446 | Q31: 443 | R31: 417 | S31: 417 | T31: 424 | U31: 445 | V31: 470 | W31: 478 | X31: 490 | Y31: 498 | Z31: 503
G32: 8letá | J32: 4312 | K32: 4290 | L32: 4315 | M32: 4332 | N32: 4329 | O32: 4338 | P32: 4378 | Q32: 4380 | R32: 4462 | S32: 4512 | T32: 4608 | U32: 4697 | V32: 4720 | W32: 4808 | X32: 4854 | Y32: 4878 | Z32: 4877
D33: Nově přijatí žáci
E34: Celkem | J34: 26546 | K34: 26777 | L34: 27538 | M34: 27718 | N34: 26738 | O34: 26544 | P34: 25256 | Q34: 23677 | R34: 23169 | S34: 22940 | T34: 23250 | U34: 23019 | V34: 23586 | W34: 23812 | X34: 23683 | Y34: 23641 | Z34: 24120
E35: v tom | F35: čtyřletá | J35: 14846 | K35: 14996 | L35: 15407 | M35: 16093 | N35: 14930 | O35: 14974 | P35: 13693 | Q35: 12420 | R35: 11771 | S35: 11842 | T35: 11986 | U35: 11829 | V35: 12189 | W35: 12200 | X35: 11996 | Y35: 12005 | Z35: 12362
F36: víceletá | J36: 11700 | K36: 11781 | L36: 12131 | M36: 11625 | N36: 11808 | O36: 11570 | P36: 11563 | Q36: 11257 | R36: 11398 | S36: 11098 | T36: 11264 | U36: 11190 | V36: 11397 | W36: 11612 | X36: 11687 | Y36: 11636 | Z36: 11758
F37: v tom | G37: 6letá | J37: 2074 | K37: 2099 | L37: 2241 | M37: 2224 | N37: 2350 | O37: 2375 | P37: 2352 | Q37: 2188 | R37: 2220 | S37: 2239 | T37: 2199 | U37: 2225 | V37: 2328 | W37: 2337 | X37: 2354 | Y37: 2386 | Z37: 2432
G38: 8letá | J38: 9626 | K38: 9682 | L38: 9890 | M38: 9401 | N38: 9458 | O38: 9195 | P38: 9211 | Q38: 9069 | R38: 9178 | S38: 8859 | T38: 9065 | U38: 8965 | V38: 9069 | W38: 9275 | X38: 9333 | Y38: 9250 | Z38: 9326
E39: Veřejný | J39: 23463 | K39: 23505 | L39: 23923 | M39: 23849 | N39: 23382 | O39: 23153 | P39: 22179 | Q39: 21072 | R39: 20480 | S39: 20142 | T39: 20232 | U39: 19948 | V39: 20439 | W39: 20587 | X39: 20333 | Y39: 20279 | Z39: 20696
E40: v tom | F40: čtyřletá | J40: 13339 | K40: 13351 | L40: 13642 | M40: 13890 | N40: 13264 | O40: 13164 | P40: 12254 | Q40: 11347 | R40: 10731 | S40: 10783 | T40: 10850 | U40: 10698 | V40: 10993 | W40: 11071 | X40: 10865 | Y40: 10865 | Z40: 11106
F41: víceletá | J41: 10124 | K41: 10154 | L41: 10281 | M41: 9959 | N41: 10118 | O41: 9989 | P41: 9925 | Q41: 9725 | R41: 9749 | S41: 9359 | T41: 9382 | U41: 9250 | V41: 9446 | W41: 9516 | X41: 9468 | Y41: 9414 | Z41: 9590
F42: v tom | G42: 6letá | J42: 1726 | K42: 1714 | L42: 1838 | M42: 1844 | N42: 1953 | O42: 2007 | P42: 2068 | Q42: 1952 | R42: 1961 | S42: 1910 | T42: 1854 | U42: 1893 | V42: 1942 | W42: 1943 | X42: 1896 | Y42: 1920 | Z42: 1997
G43: 8letá | J43: 8398 | K43: 8440 | L43: 8443 | M43: 8115 | N43: 8165 | O43: 7982 | P43: 7857 | Q43: 7773 | R43: 7788 | S43: 7449 | T43: 7528 | U43: 7357 | V43: 7504 | W43: 7573 | X43: 7572 | Y43: 7494 | Z43: 7593
E44: Privátní sektor | J44: 1995 | K44: 2133 | L44: 2421 | M44: 2628 | N44: 2202 | O44: 2199 | P44: 1986 | Q44: 1497 | R44: 1541 | S44: 1617 | T44: 1803 | U44: 1820 | V44: 1967 | W44: 2043 | X44: 2189 | Y44: 2223 | Z44: 2246
E45: v tom | F45: čtyřletá | J45: 1045 | K45: 1138 | L45: 1239 | M45: 1609 | N45: 1152 | O45: 1257 | P45: 1000 | Q45: 626 | R45: 590 | S45: 602 | T45: 660 | U45: 651 | V45: 731 | W45: 709 | X45: 709 | Y45: 732 | Z45: 804
F46: víceletá | J46: 950 | K46: 995 | L46: 1182 | M46: 1019 | N46: 1050 | O46: 942 | P46: 986 | Q46: 871 | R46: 951 | S46: 1015 | T46: 1143 | U46: 1169 | V46: 1236 | W46: 1334 | X46: 1480 | Y46: 1491 | Z46: 1442
F47: v tom | G47: 6letá | J47: 286 | K47: 323 | L47: 312 | M47: 297 | N47: 315 | O47: 301 | P47: 221 | Q47: 170 | R47: 188 | S47: 248 | T47: 254 | U47: 236 | V47: 292 | W47: 312 | X47: 373 | Y47: 380 | Z47: 339
G48: 8letá | J48: 664 | K48: 672 | L48: 870 | M48: 722 | N48: 735 | O48: 641 | P48: 765 | Q48: 701 | R48: 763 | S48: 767 | T48: 889 | U48: 933 | V48: 944 | W48: 1022 | X48: 1107 | Y48: 1111 | Z48: 1103
E49: Církev | J49: 1088 | K49: 1139 | L49: 1194 | M49: 1241 | N49: 1154 | O49: 1192 | P49: 1091 | Q49: 1108 | R49: 1148 | S49: 1181 | T49: 1215 | U49: 1251 | V49: 1180 | W49: 1182 | X49: 1161 | Y49: 1139 | Z49: 1178
E50: v tom | F50: čtyřletá | J50: 462 | K50: 507 | L50: 526 | M50: 594 | N50: 514 | O50: 553 | P50: 439 | Q50: 447 | R50: 450 | S50: 457 | T50: 476 | U50: 480 | V50: 465 | W50: 420 | X50: 422 | Y50: 408 | Z50: 452
F51: víceletá | J51: 626 | K51: 632 | L51: 668 | M51: 647 | N51: 640 | O51: 639 | P51: 652 | Q51: 661 | R51: 698 | S51: 724 | T51: 739 | U51: 771 | V51: 715 | W51: 762 | X51: 739 | Y51: 731 | Z51: 726
F52: v tom | G52: 6letá | J52: 62 | K52: 62 | L52: 91 | M52: 83 | N52: 82 | O52: 67 | P52: 63 | Q52: 66 | R52: 71 | S52: 81 | T52: 91 | U52: 96 | V52: 94 | W52: 82 | X52: 85 | Y52: 86 | Z52: 96
G53: 8letá | J53: 564 | K53: 570 | L53: 577 | M53: 564 | N53: 558 | O53: 572 | P53: 589 | Q53: 595 | R53: 627 | S53: 643 | T53: 648 | U53: 675 | V53: 621 | W53: 680 | X53: 654 | Y53: 645 | Z53: 630
D54: Absolventi
E55: Celkem | J55: 24815 | K55: 25449 | L55: 24160 | M55: 24351 | N55: 24445 | O55: 24701 | P55: 24381 | Q55: 24010 | R55: 23964 | S55: 22776 | T55: 21244 | U55: 20591 | V55: 20279 | W55: 20466 | X55: 20347 | Y55: 21038 | Z55: .
E56: v tom | F56: čtyřletá | J56: 12229 | K56: 13500 | L56: 13408 | M56: 14133 | N56: 14198 | O56: 14347 | P56: 14190 | Q56: 13708 | R56: 13688 | S56: 12564 | T56: 11569 | U56: 10901 | V56: 10748 | W56: 10986 | X56: 11072 | Y56: 11453 | Z56: .
F57: víceletá | J57: 12586 | K57: 11949 | L57: 10752 | M57: 10218 | N57: 10247 | O57: 10354 | P57: 10191 | Q57: 10302 | R57: 10276 | S57: 10212 | T57: 9675 | U57: 9690 | V57: 9531 | W57: 9480 | X57: 9275 | Y57: 9585 | Z57: .
F58: v tom | G58: 6letá | J58: 1967 | K58: 1713 | L58: 1622 | M58: 1608 | N58: 1852 | O58: 1915 | P58: 1849 | Q58: 1952 | R58: 1955 | S58: 2024 | T58: 2042 | U58: 1970 | V58: 1899 | W58: 1924 | X58: 1902 | Y58: 1867 | Z58: .
G59: 8letá | J59: 10619 | K59: 10236 | L59: 9130 | M59: 8610 | N59: 8395 | O59: 8439 | P59: 8342 | Q59: 8350 | R59: 8321 | S59: 8188 | T59: 7633 | U59: 7720 | V59: 7632 | W59: 7556 | X59: 7373 | Y59: 7718 | Z59: .
E60: Veřejný | J60: 22116 | K60: 22576 | L60: 21378 | M60: 21605 | N60: 21359 | O60: 21738 | P60: 21147 | Q60: 21258 | R60: 21064 | S60: 20214 | T60: 19104 | U60: 18425 | V60: 18224 | W60: 18226 | X60: 17986 | Y60: 18506 | Z60: .
E61: v tom | F61: čtyřletá | J61: 10952 | K61: 12068 | L61: 12039 | M61: 12677 | N61: 12454 | O61: 12710 | P61: 12365 | Q61: 12293 | R61: 12141 | S61: 11382 | T61: 10606 | U61: 9967 | V61: 9833 | W61: 9978 | X61: 9989 | Y61: 10268 | Z61: .
F62: víceletá | J62: 11164 | K62: 10508 | L62: 9339 | M62: 8928 | N62: 8905 | O62: 9028 | P62: 8782 | Q62: 8965 | R62: 8923 | S62: 8832 | T62: 8498 | U62: 8458 | V62: 8391 | W62: 8248 | X62: 7997 | Y62: 8238 | Z62: .
F63: v tom | G63: 6letá | J63: 1675 | K63: 1402 | L63: 1306 | M63: 1324 | N63: 1525 | O63: 1601 | P63: 1559 | Q63: 1628 | R63: 1665 | S63: 1729 | T63: 1749 | U63: 1730 | V63: 1671 | W63: 1704 | X63: 1606 | Y63: 1610 | Z63: .
G64: 8letá | J64: 9489 | K64: 9106 | L64: 8033 | M64: 7604 | N64: 7380 | O64: 7427 | P64: 7223 | Q64: 7337 | R64: 7258 | S64: 7103 | T64: 6749 | U64: 6728 | V64: 6720 | W64: 6544 | X64: 6391 | Y64: 6628 | Z64: .
E65: Privátní sektor | J65: 1804 | K65: 1935 | L65: 1783 | M65: 1750 | N65: 2035 | O65: 1920 | P65: 2095 | Q65: 1747 | R65: 1793 | S65: 1595 | T65: 1182 | U65: 1200 | V65: 1066 | W65: 1245 | X65: 1337 | Y65: 1503 | Z65: .
E66: v tom | F66: čtyřletá | J66: 925 | K66: 1043 | L66: 942 | M66: 985 | N66: 1244 | O66: 1123 | P66: 1251 | Q66: 984 | R66: 1027 | S66: 791 | T66: 571 | U66: 518 | V66: 502 | W66: 583 | X66: 621 | Y66: 744 | Z66: .
F67: víceletá | J67: 879 | K67: 892 | L67: 841 | M67: 765 | N67: 791 | O67: 797 | P67: 844 | Q67: 763 | R67: 766 | S67: 804 | T67: 611 | U67: 682 | V67: 564 | W67: 662 | X67: 716 | Y67: 759 | Z67: .
F68: v tom | G68: 6letá | J68: 262 | K68: 262 | L68: 264 | M68: 230 | N68: 253 | O68: 258 | P68: 231 | Q68: 240 | R68: 214 | S68: 228 | T68: 230 | U68: 180 | V68: 161 | W68: 166 | X68: 233 | Y68: 187 | Z68: .
G69: 8letá | J69: 617 | K69: 630 | L69: 577 | M69: 535 | N69: 538 | O69: 539 | P69: 613 | Q69: 523 | R69: 552 | S69: 576 | T69: 381 | U69: 502 | V69: 403 | W69: 496 | X69: 483 | Y69: 572 | Z69: .
E70: Církev | J70: 895 | K70: 938 | L70: 999 | M70: 996 | N70: 1051 | O70: 1043 | P70: 1139 | Q70: 1005 | R70: 1107 | S70: 967 | T70: 958 | U70: 966 | V70: 989 | W70: 995 | X70: 1024 | Y70: 1029 | Z70: .
E71: v tom | F71: čtyřletá | J71: 352 | K71: 389 | L71: 427 | M71: 471 | N71: 500 | O71: 514 | P71: 574 | Q71: 431 | R71: 520 | S71: 391 | T71: 392 | U71: 416 | V71: 413 | W71: 425 | X71: 462 | Y71: 441 | Z71: .
F72: víceletá | J72: 543 | K72: 549 | L72: 572 | M72: 525 | N72: 551 | O72: 529 | P72: 565 | Q72: 574 | R72: 587 | S72: 576 | T72: 566 | U72: 550 | V72: 576 | W72: 570 | X72: 562 | Y72: 588 | Z72: .
F73: v tom | G73: 6letá | J73: 30 | K73: 49 | L73: 52 | M73: 54 | N73: 74 | O73: 56 | P73: 59 | Q73: 84 | R73: 76 | S73: 67 | T73: 63 | U73: 60 | V73: 67 | W73: 54 | X73: 63 | Y73: 70 | Z73: .
G74: 8letá | J74: 513 | K74: 500 | L74: 520 | M74: 471 | N74: 477 | O74: 473 | P74: 506 | Q74: 490 | R74: 511 | S74: 509 | T74: 503 | U74: 490 | V74: 509 | W74: 516 | X74: 499 | Y74: 518 | Z74: .
Z75: Zdroj: databáze MŠMT

Sheet B5.2.6
D4: Tab. B5.2.6: | H4: SŠ obory odpovídající gymnáziím – žáci, nově přijatí a absolventi
B5: 18 | D5: ve školním roce 2009/10 až 2019/20 – podle délky vzdělávání a zřizovatele
D7: Zřizovatel Délka vzdělávání | J7: 2003/04 | K7: 2004/05 | L7: 2005/06 | M7: 2006/07 | N7: 2007/08 | O7: 2008/09 | P7: 2009/10 | Q7: 2010/11 | R7: 2011/12 | S7: 2012/13 | T7: 2013/14 | U7: 2014/15 | V7: 2015/16 | W7: 2016/17 | X7: 2017/18 | Y7: 2018/19 | Z7: 2019/20
D12: Žáci
E13: Celkem | J13: 143288 | K13: 143511 | L13: 144605 | M13: 146354 | N13: 146370 | O13: 146021 | P13: 143851 | Q13: 139066 | R13: 134965 | S13: 131013 | T13: 128527 | U13: 127666 | V13: 128045 | W13: 128994 | X13: 129554 | Y13: 130133 | Z13: 130725
E14: v tom | F14: čtyřletá | J14: 55047 | K14: 57223 | L14: 58531 | M14: 60521 | N14: 60360 | O14: 60307 | P14: 58716 | Q14: 55251 | R14: 52040 | S14: 49369 | T14: 47734 | U14: 47138 | V14: 47516 | W14: 48138 | X14: 48339 | Y14: 48461 | Z14: 48642
F15: víceletá | J15: 88241 | K15: 86288 | L15: 86074 | M15: 85833 | N15: 86010 | O15: 85714 | P15: 85135 | Q15: 83815 | R15: 82925 | S15: 81644 | T15: 80793 | U15: 80528 | V15: 80529 | W15: 80856 | X15: 81215 | Y15: 81672 | Z15: 82083
F16: v tom | G16: nižší stupeň | J16: 42190 | K16: 42514 | L16: 43114 | M16: 42965 | N16: 42829 | O16: 42330 | P16: 41639 | Q16: 41152 | R16: 40885 | S16: 40549 | T16: 40419 | U16: 40409 | V16: 40495 | W16: 40980 | X16: 41260 | Y16: 41611 | Z16: 41997
G17: vyšší stupeň | J17: 46051 | K17: 43774 | L17: 42960 | M17: 42868 | N17: 43181 | O17: 43384 | P17: 43496 | Q17: 42663 | R17: 42040 | S17: 41095 | T17: 40374 | U17: 40119 | V17: 40034 | W17: 39876 | X17: 39955 | Y17: 40061 | Z17: 40086
E18: Veřejný | J18: 126108 | K18: 126090 | L18: 126464 | M18: 127349 | N18: 127354 | O18: 126927 | P18: 125020 | Q18: 121787 | R18: 118397 | S18: 114930 | T18: 112477 | U18: 111016 | V18: 110821 | W18: 111005 | X18: 110944 | Y18: 110972 | Z18: 111187
E19: v tom | F19: čtyřletá | J19: 49412 | K19: 51303 | L19: 52266 | M19: 53463 | N19: 53288 | O19: 53015 | P19: 51678 | Q19: 49263 | R19: 46727 | S19: 44587 | T19: 43194 | U19: 42545 | V19: 42745 | W19: 43212 | X19: 43374 | Y19: 43443 | Z19: 43620
F20: víceletá | J20: 76696 | K20: 74787 | L20: 74198 | M20: 73886 | N20: 74066 | O20: 73912 | P20: 73342 | Q20: 72524 | R20: 71670 | S20: 70343 | T20: 69283 | U20: 68471 | V20: 68076 | W20: 67793 | X20: 67570 | Y20: 67529 | Z20: 67567
F21: v tom | G21: nižší stupeň | J21: 36473 | K21: 36742 | L21: 36973 | M21: 36889 | N21: 36727 | O21: 36398 | P21: 35901 | Q21: 35513 | R21: 35119 | S21: 34535 | T21: 34079 | U21: 33735 | V21: 33582 | W21: 33725 | X21: 33718 | Y21: 33884 | Z21: 34144
G22: vyšší stupeň | J22: 40223 | K22: 38045 | L22: 37225 | M22: 36997 | N22: 37339 | O22: 37514 | P22: 37441 | Q22: 37011 | R22: 36551 | S22: 35808 | T22: 35204 | U22: 34736 | V22: 34494 | W22: 34068 | X22: 33852 | Y22: 33645 | Z22: 33423
E23: Privátní sektor | J23: 10840 | K23: 10983 | L23: 11534 | M23: 12230 | N23: 12048 | O23: 12135 | P23: 11914 | Q23: 10529 | R23: 9818 | S23: 9429 | T23: 9247 | U23: 9659 | V23: 10158 | W23: 10856 | X23: 11439 | Y23: 12005 | Z23: 12440
E24: v tom | F24: čtyřletá | J24: 3939 | K24: 4132 | L24: 4371 | M24: 5044 | N24: 4878 | O24: 5104 | P24: 4945 | Q24: 4061 | R24: 3442 | S24: 3057 | T24: 2769 | U24: 2744 | V24: 2895 | W24: 3079 | X24: 3138 | Y24: 3238 | Z24: 3304
F25: víceletá | J25: 6901 | K25: 6851 | L25: 7163 | M25: 7186 | N25: 7170 | O25: 7031 | P25: 6969 | Q25: 6468 | R25: 6376 | S25: 6372 | T25: 6478 | U25: 6915 | V25: 7263 | W25: 7777 | X25: 8301 | Y25: 8767 | Z25: 9136
F26: v tom | G26: nižší stupeň | J26: 3365 | K26: 3415 | L26: 3704 | M26: 3614 | N26: 3664 | O26: 3516 | P26: 3330 | Q26: 3220 | R26: 3261 | S26: 3434 | T26: 3668 | U26: 3908 | V26: 4160 | W26: 4460 | X26: 4748 | Y26: 4973 | Z26: 5071
G27: vyšší stupeň | J27: 3536 | K27: 3436 | L27: 3459 | M27: 3572 | N27: 3506 | O27: 3515 | P27: 3639 | Q27: 3248 | R27: 3115 | S27: 2938 | T27: 2810 | U27: 3007 | V27: 3103 | W27: 3317 | X27: 3553 | Y27: 3794 | Z27: 4065
E28: Církev | J28: 6340 | K28: 6438 | L28: 6607 | M28: 6775 | N28: 6968 | O28: 6959 | P28: 6917 | Q28: 6750 | R28: 6750 | S28: 6654 | T28: 6803 | U28: 6991 | V28: 7066 | W28: 7133 | X28: 7171 | Y28: 7156 | Z28: 7098
E29: v tom | F29: čtyřletá | J29: 1696 | K29: 1788 | L29: 1894 | M29: 2014 | N29: 2194 | O29: 2188 | P29: 2093 | Q29: 1927 | R29: 1871 | S29: 1725 | T29: 1771 | U29: 1849 | V29: 1876 | W29: 1847 | X29: 1827 | Y29: 1780 | Z29: 1718
F30: víceletá | J30: 4644 | K30: 4650 | L30: 4713 | M30: 4761 | N30: 4774 | O30: 4771 | P30: 4824 | Q30: 4823 | R30: 4879 | S30: 4929 | T30: 5032 | U30: 5142 | V30: 5190 | W30: 5286 | X30: 5344 | Y30: 5376 | Z30: 5380
F31: v tom | G31: nižší stupeň | J31: 2352 | K31: 2357 | L31: 2437 | M31: 2462 | N31: 2438 | O31: 2416 | P31: 2408 | Q31: 2419 | R31: 2505 | S31: 2580 | T31: 2672 | U31: 2766 | V31: 2753 | W31: 2795 | X31: 2794 | Y31: 2754 | Z31: 2782
G32: vyšší stupeň | J32: 2292 | K32: 2293 | L32: 2276 | M32: 2299 | N32: 2336 | O32: 2355 | P32: 2416 | Q32: 2404 | R32: 2374 | S32: 2349 | T32: 2360 | U32: 2376 | V32: 2437 | W32: 2491 | X32: 2550 | Y32: 2622 | Z32: 2598
D33: Nově přijatí žáci
E34: Celkem | J34: 26546 | K34: 26777 | L34: 27538 | M34: 27718 | N34: 26738 | O34: 26544 | P34: 25256 | Q34: 23677 | R34: 23169 | S34: 22940 | T34: 23250 | U34: 23019 | V34: 23586 | W34: 23812 | X34: 23683 | Y34: 23641 | Z34: 24120
E35: v tom | F35: čtyřletá | J35: 14846 | K35: 14996 | L35: 15407 | M35: 16093 | N35: 14930 | O35: 14974 | P35: 13693 | Q35: 12420 | R35: 11771 | S35: 11842 | T35: 11986 | U35: 11829 | V35: 12189 | W35: 12200 | X35: 11996 | Y35: 12005 | Z35: 12362
F36: víceletá | J36: 11700 | K36: 11781 | L36: 12131 | M36: 11625 | N36: 11808 | O36: 11570 | P36: 11563 | Q36: 11257 | R36: 11398 | S36: 11098 | T36: 11264 | U36: 11190 | V36: 11397 | W36: 11612 | X36: 11687 | Y36: 11636 | Z36: 11758
E37: Veřejný | J37: 23463 | K37: 23505 | L37: 23923 | M37: 23849 | N37: 23382 | O37: 23153 | P37: 22179 | Q37: 21072 | R37: 20480 | S37: 20142 | T37: 20232 | U37: 19948 | V37: 20439 | W37: 20587 | X37: 20333 | Y37: 20279 | Z37: 20696
E38: v tom | F38: čtyřletá | J38: 13339 | K38: 13351 | L38: 13642 | M38: 13890 | N38: 13264 | O38: 13164 | P38: 12254 | Q38: 11347 | R38: 10731 | S38: 10783 | T38: 10850 | U38: 10698 | V38: 10993 | W38: 11071 | X38: 10865 | Y38: 10865 | Z38: 11106
F39: víceletá | J39: 10124 | K39: 10154 | L39: 10281 | M39: 9959 | N39: 10118 | O39: 9989 | P39: 9925 | Q39: 9725 | R39: 9749 | S39: 9359 | T39: 9382 | U39: 9250 | V39: 9446 | W39: 9516 | X39: 9468 | Y39: 9414 | Z39: 9590
E40: Privátní sektor | J40: 1995 | K40: 2133 | L40: 2421 | M40: 2628 | N40: 2202 | O40: 2199 | P40: 1986 | Q40: 1497 | R40: 1541 | S40: 1617 | T40: 1803 | U40: 1820 | V40: 1967 | W40: 2043 | X40: 2189 | Y40: 2223 | Z40: 2246
E41: v tom | F41: čtyřletá | J41: 1045 | K41: 1138 | L41: 1239 | M41: 1609 | N41: 1152 | O41: 1257 | P41: 1000 | Q41: 626 | R41: 590 | S41: 602 | T41: 660 | U41: 651 | V41: 731 | W41: 709 | X41: 709 | Y41: 732 | Z41: 804
F42: víceletá | J42: 950 | K42: 995 | L42: 1182 | M42: 1019 | N42: 1050 | O42: 942 | P42: 986 | Q42: 871 | R42: 951 | S42: 1015 | T42: 1143 | U42: 1169 | V42: 1236 | W42: 1334 | X42: 1480 | Y42: 1491 | Z42: 1442
E43: Církev | J43: 1088 | K43: 1139 | L43: 1194 | M43: 1241 | N43: 1154 | O43: 1192 | P43: 1091 | Q43: 1108 | R43: 1148 | S43: 1181 | T43: 1215 | U43: 1251 | V43: 1180 | W43: 1182 | X43: 1161 | Y43: 1139 | Z43: 1178
E44: v tom | F44: čtyřletá | J44: 462 | K44: 507 | L44: 526 | M44: 594 | N44: 514 | O44: 553 | P44: 439 | Q44: 447 | R44: 450 | S44: 457 | T44: 476 | U44: 480 | V44: 465 | W44: 420 | X44: 422 | Y44: 408 | Z44: 452
F45: víceletá | J45: 626 | K45: 632 | L45: 668 | M45: 647 | N45: 640 | O45: 639 | P45: 652 | Q45: 661 | R45: 698 | S45: 724 | T45: 739 | U45: 771 | V45: 715 | W45: 762 | X45: 739 | Y45: 731 | Z45: 726
D46: Absolventi
E47: Celkem | J47: 24815 | K47: 25449 | L47: 24160 | M47: 24351 | N47: 24445 | O47: 24701 | P47: 24381 | Q47: 24010 | R47: 23964 | S47: 22776 | T47: 21244 | U47: 20591 | V47: 20279 | W47: 20466 | X47: 20347 | Y47: 21038 | Z47: .
E48: v tom | F48: čtyřletá | J48: 12229 | K48: 13500 | L48: 13408 | M48: 14133 | N48: 14198 | O48: 14347 | P48: 14190 | Q48: 13708 | R48: 13688 | S48: 12564 | T48: 11569 | U48: 10901 | V48: 10748 | W48: 10986 | X48: 11072 | Y48: 11453 | Z48: .
F49: víceletá | J49: 12586 | K49: 11949 | L49: 10752 | M49: 10218 | N49: 10247 | O49: 10354 | P49: 10191 | Q49: 10302 | R49: 10276 | S49: 10212 | T49: 9675 | U49: 9690 | V49: 9531 | W49: 9480 | X49: 9275 | Y49: 9585 | Z49: .
E50: Veřejný | J50: 22116 | K50: 22576 | L50: 21378 | M50: 21605 | N50: 21359 | O50: 21738 | P50: 21147 | Q50: 21258 | R50: 21064 | S50: 20214 | T50: 19104 | U50: 18425 | V50: 18224 | W50: 18226 | X50: 17986 | Y50: 18506 | Z50: .
E51: v tom | F51: čtyřletá | J51: 10952 | K51: 12068 | L51: 12039 | M51: 12677 | N51: 12454 | O51: 12710 | P51: 12365 | Q51: 12293 | R51: 12141 | S51: 11382 | T51: 10606 | U51: 9967 | V51: 9833 | W51: 9978 | X51: 9989 | Y51: 10268 | Z51: .
F52: víceletá | J52: 11164 | K52: 10508 | L52: 9339 | M52: 8928 | N52: 8905 | O52: 9028 | P52: 8782 | Q52: 8965 | R52: 8923 | S52: 8832 | T52: 8498 | U52: 8458 | V52: 8391 | W52: 8248 | X52: 7997 | Y52: 8238 | Z52: .
E53: Privátní sektor | J53: 1804 | K53: 1935 | L53: 1783 | M53: 1750 | N53: 2035 | O53: 1920 | P53: 2095 | Q53: 1747 | R53: 1793 | S53: 1595 | T53: 1182 | U53: 1200 | V53: 1066 | W53: 1245 | X53: 1337 | Y53: 1503 | Z53: .
E54: v tom | F54: čtyřletá | J54: 925 | K54: 1043 | L54: 942 | M54: 985 | N54: 1244 | O54: 1123 | P54: 1251 | Q54: 984 | R54: 1027 | S54: 791 | T54: 571 | U54: 518 | V54: 502 | W54: 583 | X54: 621 | Y54: 744 | Z54: .
F55: víceletá | J55: 879 | K55: 892 | L55: 841 | M55: 765 | N55: 791 | O55: 797 | P55: 844 | Q55: 763 | R55: 766 | S55: 804 | T55: 611 | U55: 682 | V55: 564 | W55: 662 | X55: 716 | Y55: 759 | Z55: .
E56: Církev | J56: 895 | K56: 938 | L56: 999 | M56: 996 | N56: 1051 | O56: 1043 | P56: 1139 | Q56: 1005 | R56: 1107 | S56: 967 | T56: 958 | U56: 966 | V56: 989 | W56: 995 | X56: 1024 | Y56: 1029 | Z56: .
E57: v tom | F57: čtyřletá | J57: 352 | K57: 389 | L57: 427 | M57: 471 | N57: 500 | O57: 514 | P57: 574 | Q57: 431 | R57: 520 | S57: 391 | T57: 392 | U57: 416 | V57: 413 | W57: 425 | X57: 462 | Y57: 441 | Z57: .
F58: víceletá | J58: 543 | K58: 549 | L58: 572 | M58: 525 | N58: 551 | O58: 529 | P58: 565 | Q58: 574 | R58: 587 | S58: 576 | T58: 566 | U58: 550 | V58: 576 | W58: 570 | X58: 562 | Y58: 588 | Z58: .
Z59: Zdroj: databáze MŠMT

Sheet B5.2.7
D4: Tab. B5.2.7: | H4: SŠ obory odpovídající gymnáziím – dívky, nově přijaté a absolventky
B5: 18 | D5: ve školním roce 2009/10 až 2019/20 – podle délky vzdělávání a zřizovatele
D7: Zřizovatel Délka vzdělávání | J7: 2003/04 | K7: 2004/05 | L7: 2005/06 | M7: 2006/07 | N7: 2007/08 | O7: 2008/09 | P7: 2009/10 | Q7: 2010/11 | R7: 2011/12 | S7: 2012/13 | T7: 2013/14 | U7: 2014/15 | V7: 2015/16 | W7: 2016/17 | X7: 2017/18 | Y7: 2018/19 | Z7: 2019/20
D12: Dívky
E13: Celkem | J13: 85424 | K13: 85297 | L13: 85782 | M13: 86521 | N13: 86257 | O13: 86181 | P13: 84531 | Q13: 80991 | R13: 78071 | S13: 75035 | T13: 73327 | U13: 72770 | V13: 73105 | W13: 73809 | X13: 74088 | Y13: 74511 | Z13: 74754
E14: v tom | F14: čtyřletá | J14: 35730 | K14: 36920 | L14: 37646 | M14: 38621 | N14: 38298 | O14: 38316 | P14: 37018 | Q14: 34516 | R14: 32314 | S14: 30365 | T14: 29421 | U14: 29295 | V14: 29696 | W14: 30257 | X14: 30364 | Y14: 30600 | Z14: 30630
F15: víceletá | J15: 49694 | K15: 48377 | L15: 48136 | M15: 47900 | N15: 47959 | O15: 47865 | P15: 47513 | Q15: 46475 | R15: 45757 | S15: 44670 | T15: 43906 | U15: 43475 | V15: 43409 | W15: 43552 | X15: 43724 | Y15: 43911 | Z15: 44124
F16: v tom | G16: nižší stupeň | J16: 23223 | K16: 23401 | L16: 23902 | M16: 23834 | N16: 23769 | O16: 23472 | P16: 22972 | Q16: 22523 | R16: 22082 | S16: 21540 | T16: 21342 | U16: 21279 | V16: 21541 | W16: 22013 | X16: 22204 | Y16: 22380 | Z16: 22451
G17: vyšší stupeň | J17: 26471 | K17: 24976 | L17: 24234 | M17: 24066 | N17: 24190 | O17: 24393 | P17: 24541 | Q17: 23952 | R17: 23675 | S17: 23130 | T17: 22564 | U17: 22196 | V17: 21868 | W17: 21539 | X17: 21520 | Y17: 21531 | Z17: 21673
E18: Veřejný | J18: 75617 | K18: 75345 | L18: 75417 | M18: 75716 | N18: 75466 | O18: 75319 | P18: 73840 | Q18: 71284 | R18: 68785 | S18: 66083 | T18: 64465 | U18: 63520 | V18: 63486 | W18: 63660 | X18: 63548 | Y18: 63690 | Z18: 63797
E19: v tom | F19: čtyřletá | J19: 32216 | K19: 33222 | L19: 33699 | M19: 34253 | N19: 33912 | O19: 33798 | P19: 32705 | Q19: 30856 | R19: 29045 | S19: 27425 | T19: 26658 | U19: 26435 | V19: 26709 | W19: 27121 | X19: 27186 | Y19: 27386 | Z19: 27447
F20: víceletá | J20: 43401 | K20: 42123 | L20: 41718 | M20: 41463 | N20: 41554 | O20: 41521 | P20: 41135 | Q20: 40428 | R20: 39740 | S20: 38658 | T20: 37807 | U20: 37085 | V20: 36777 | W20: 36539 | X20: 36362 | Y20: 36304 | Z20: 36350
F21: v tom | G21: nižší stupeň | J21: 20205 | K21: 20318 | L21: 20583 | M21: 20557 | N21: 20499 | O21: 20299 | P21: 19884 | Q21: 19502 | R21: 19020 | S21: 18417 | T21: 18077 | U21: 17805 | V21: 17897 | W21: 18102 | X21: 18102 | Y21: 18230 | Z21: 18279
G22: vyšší stupeň | J22: 23196 | K22: 21805 | L22: 21135 | M22: 20906 | N22: 21055 | O22: 21222 | P22: 21251 | Q22: 20926 | R22: 20720 | S22: 20241 | T22: 19730 | U22: 19280 | V22: 18880 | W22: 18437 | X22: 18260 | Y22: 18074 | Z22: 18071
E23: Privátní sektor | J23: 5860 | K23: 5983 | L23: 6282 | M23: 6621 | N23: 6467 | O23: 6540 | P23: 6411 | Q23: 5585 | R23: 5207 | S23: 4949 | T23: 4801 | U23: 5071 | V23: 5408 | W23: 5889 | X23: 6219 | Y23: 6515 | Z23: 6720
E24: v tom | F24: čtyřletá | J24: 2308 | K24: 2429 | L24: 2600 | M24: 2948 | N24: 2872 | O24: 3006 | P24: 2868 | Q24: 2344 | R24: 2007 | S24: 1780 | T24: 1602 | U24: 1658 | V24: 1771 | W24: 1925 | X24: 1954 | Y24: 1997 | Z24: 2001
F25: víceletá | J25: 3552 | K25: 3554 | L25: 3682 | M25: 3673 | N25: 3595 | O25: 3534 | P25: 3543 | Q25: 3241 | R25: 3200 | S25: 3169 | T25: 3199 | U25: 3413 | V25: 3637 | W25: 3964 | X25: 4265 | Y25: 4518 | Z25: 4719
F26: v tom | G26: nižší stupeň | J26: 1678 | K26: 1762 | L26: 1919 | M26: 1850 | N26: 1833 | O26: 1746 | P26: 1694 | Q26: 1633 | R26: 1663 | S26: 1713 | T26: 1769 | U26: 1888 | V26: 2064 | W26: 2284 | X26: 2483 | Y26: 2590 | Z26: 2630
G27: vyšší stupeň | J27: 1874 | K27: 1792 | L27: 1763 | M27: 1823 | N27: 1762 | O27: 1788 | P27: 1849 | Q27: 1608 | R27: 1537 | S27: 1456 | T27: 1430 | U27: 1525 | V27: 1573 | W27: 1680 | X27: 1782 | Y27: 1928 | Z27: 2089
E28: Církev | J28: 3947 | K28: 3969 | L28: 4083 | M28: 4184 | N28: 4324 | O28: 4322 | P28: 4280 | Q28: 4122 | R28: 4079 | S28: 4003 | T28: 4061 | U28: 4179 | V28: 4211 | W28: 4260 | X28: 4321 | Y28: 4306 | Z28: 4237
E29: v tom | F29: čtyřletá | J29: 1206 | K29: 1269 | L29: 1347 | M29: 1420 | N29: 1514 | O29: 1512 | P29: 1445 | Q29: 1316 | R29: 1262 | S29: 1160 | T29: 1161 | U29: 1202 | V29: 1216 | W29: 1211 | X29: 1224 | Y29: 1217 | Z29: 1182
F30: víceletá | J30: 2741 | K30: 2700 | L30: 2736 | M30: 2764 | N30: 2810 | O30: 2810 | P30: 2835 | Q30: 2806 | R30: 2817 | S30: 2843 | T30: 2900 | U30: 2977 | V30: 2995 | W30: 3049 | X30: 3097 | Y30: 3089 | Z30: 3055
F31: v tom | G31: nižší stupeň | J31: 1340 | K31: 1321 | L31: 1400 | M31: 1427 | N31: 1437 | O31: 1427 | P31: 1394 | Q31: 1388 | R31: 1399 | S31: 1410 | T31: 1496 | U31: 1586 | V31: 1580 | W31: 1627 | X31: 1619 | Y31: 1560 | Z31: 1542
G32: vyšší stupeň | J32: 1401 | K32: 1379 | L32: 1336 | M32: 1337 | N32: 1373 | O32: 1383 | P32: 1441 | Q32: 1418 | R32: 1418 | S32: 1433 | T32: 1404 | U32: 1391 | V32: 1415 | W32: 1422 | X32: 1478 | Y32: 1529 | Z32: 1513
D33: Nově přijaté
E34: Celkem | J34: 16020 | K34: 16146 | L34: 16661 | M34: 16652 | N34: 15938 | O34: 16069 | P34: 14869 | Q34: 13665 | R34: 13313 | S34: 13164 | T34: 13623 | U34: 13291 | V34: 13930 | W34: 14069 | X34: 13940 | Y34: 13797 | Z34: 14017
E35: v tom | F35: čtyřletá | J35: 9564 | K35: 9555 | L35: 9833 | M35: 10141 | N35: 9351 | O35: 9588 | P35: 8523 | Q35: 7592 | R35: 7192 | S35: 7327 | T35: 7568 | U35: 7377 | V35: 7670 | W35: 7729 | X35: 7558 | Y35: 7641 | Z35: 7715
F36: víceletá | J36: 6456 | K36: 6591 | L36: 6828 | M36: 6511 | N36: 6587 | O36: 6481 | P36: 6346 | Q36: 6073 | R36: 6121 | S36: 5837 | T36: 6055 | U36: 5914 | V36: 6260 | W36: 6340 | X36: 6382 | Y36: 6156 | Z36: 6302
E37: Veřejný | J37: 14221 | K37: 14237 | L37: 14558 | M37: 14387 | N37: 13992 | O37: 14060 | P37: 13096 | Q37: 12215 | R37: 11799 | S37: 11615 | T37: 11910 | U37: 11524 | V37: 12087 | W37: 12162 | X37: 11995 | Y37: 11923 | Z37: 12085
E38: v tom | F38: čtyřletá | J38: 8618 | K38: 8506 | L38: 8726 | M38: 8793 | N38: 8334 | O38: 8431 | P38: 7629 | Q38: 6937 | R38: 6554 | S38: 6660 | T38: 6840 | U38: 6642 | V38: 6883 | W38: 6970 | X38: 6821 | Y38: 6917 | Z38: 6932
F39: víceletá | J39: 5603 | K39: 5731 | L39: 5832 | M39: 5594 | N39: 5658 | O39: 5629 | P39: 5467 | Q39: 5278 | R39: 5245 | S39: 4955 | T39: 5070 | U39: 4882 | V39: 5204 | W39: 5192 | X39: 5174 | Y39: 5006 | Z39: 5153
E40: Privátní sektor | J40: 1116 | K40: 1219 | L40: 1320 | M40: 1461 | N40: 1185 | O40: 1270 | P40: 1112 | Q40: 803 | R40: 824 | S40: 850 | T40: 956 | U40: 1020 | V40: 1120 | W40: 1173 | X40: 1222 | Y40: 1198 | Z40: 1241
E41: v tom | F41: čtyřletá | J41: 623 | K41: 697 | L41: 726 | M41: 929 | N41: 660 | O41: 778 | P41: 589 | Q41: 366 | R41: 339 | S41: 362 | T41: 412 | U41: 443 | V41: 479 | W41: 473 | X41: 440 | Y41: 437 | Z41: 475
F42: víceletá | J42: 493 | K42: 522 | L42: 594 | M42: 532 | N42: 525 | O42: 492 | P42: 523 | Q42: 437 | R42: 485 | S42: 488 | T42: 544 | U42: 577 | V42: 641 | W42: 700 | X42: 782 | Y42: 761 | Z42: 766
E43: Církev | J43: 683 | K43: 690 | L43: 783 | M43: 804 | N43: 761 | O43: 739 | P43: 661 | Q43: 647 | R43: 690 | S43: 699 | T43: 757 | U43: 747 | V43: 723 | W43: 734 | X43: 723 | Y43: 676 | Z43: 691
E44: v tom | F44: čtyřletá | J44: 323 | K44: 352 | L44: 381 | M44: 419 | N44: 357 | O44: 379 | P44: 305 | Q44: 289 | R44: 299 | S44: 305 | T44: 316 | U44: 292 | V44: 308 | W44: 286 | X44: 297 | Y44: 287 | Z44: 308
F45: víceletá | J45: 360 | K45: 338 | L45: 402 | M45: 385 | N45: 404 | O45: 360 | P45: 356 | Q45: 358 | R45: 391 | S45: 394 | T45: 441 | U45: 455 | V45: 415 | W45: 448 | X45: 426 | Y45: 389 | Z45: 383
D46: Absolventky
E47: Celkem | J47: 15326 | K47: 15531 | L47: 14979 | M47: 14926 | N47: 14991 | O47: 15000 | P47: 14932 | Q47: 14484 | R47: 14704 | S47: 13666 | T47: 12539 | U47: 12241 | V47: 12104 | W47: 12296 | X47: 11952 | Y47: 12447 | Z47: .
E48: v tom | F48: čtyřletá | J48: 8020 | K48: 8680 | L48: 8756 | M48: 9131 | N48: 9184 | O48: 9220 | P48: 9084 | Q48: 8681 | R48: 8855 | S48: 7894 | T48: 7056 | U48: 6743 | V48: 6721 | W48: 7000 | X48: 6933 | Y48: 7274 | Z48: .
F49: víceletá | J49: 7306 | K49: 6851 | L49: 6223 | M49: 5795 | N49: 5807 | O49: 5780 | P49: 5848 | Q49: 5803 | R49: 5849 | S49: 5772 | T49: 5483 | U49: 5498 | V49: 5383 | W49: 5296 | X49: 5019 | Y49: 5173 | Z49: .
E50: Veřejný | J50: 13705 | K50: 13959 | L50: 13285 | M50: 13315 | N50: 13151 | O50: 13283 | P50: 12987 | Q50: 12886 | R50: 12970 | S50: 12182 | T50: 11291 | U50: 10958 | V50: 10906 | W50: 10941 | X50: 10601 | Y50: 10942 | Z50: .
E51: v tom | F51: čtyřletá | J51: 7212 | K51: 7911 | L51: 7880 | M51: 8233 | N51: 8059 | O51: 8193 | P51: 7953 | Q51: 7805 | R51: 7858 | S51: 7154 | T51: 6466 | U51: 6139 | V51: 6160 | W51: 6346 | X51: 6255 | Y51: 6512 | Z51: .
F52: víceletá | J52: 6493 | K52: 6048 | L52: 5405 | M52: 5082 | N52: 5092 | O52: 5090 | P52: 5034 | Q52: 5081 | R52: 5112 | S52: 5028 | T52: 4825 | U52: 4819 | V52: 4746 | W52: 4595 | X52: 4346 | Y52: 4430 | Z52: .
E53: Privátní sektor | J53: 1037 | K53: 944 | L53: 1021 | M53: 982 | N53: 1181 | O53: 1043 | P53: 1199 | Q53: 947 | R53: 1035 | S53: 855 | T53: 659 | U53: 654 | V53: 586 | W53: 748 | X53: 742 | Y53: 855 | Z53: .
E54: v tom | F54: čtyřletá | J54: 553 | K54: 483 | L54: 565 | M54: 580 | N54: 783 | O54: 656 | P54: 735 | Q54: 569 | R54: 634 | S54: 466 | T54: 341 | U54: 317 | V54: 293 | W54: 371 | X54: 390 | Y54: 464 | Z54: .
F55: víceletá | J55: 484 | K55: 461 | L55: 456 | M55: 402 | N55: 398 | O55: 387 | P55: 464 | Q55: 378 | R55: 401 | S55: 389 | T55: 318 | U55: 337 | V55: 293 | W55: 377 | X55: 352 | Y55: 391 | Z55: .
E56: Církev | J56: 584 | K56: 628 | L56: 673 | M56: 629 | N56: 659 | O56: 674 | P56: 746 | Q56: 651 | R56: 699 | S56: 629 | T56: 589 | U56: 629 | V56: 612 | W56: 607 | X56: 609 | Y56: 650 | Z56: .
E57: v tom | F57: čtyřletá | J57: 255 | K57: 286 | L57: 311 | M57: 318 | N57: 342 | O57: 371 | P57: 396 | Q57: 307 | R57: 363 | S57: 274 | T57: 249 | U57: 287 | V57: 268 | W57: 283 | X57: 288 | Y57: 298 | Z57: .
F58: víceletá | J58: 329 | K58: 342 | L58: 362 | M58: 311 | N58: 317 | O58: 303 | P58: 350 | Q58: 344 | R58: 336 | S58: 355 | T58: 340 | U58: 342 | V58: 344 | W58: 324 | X58: 321 | Y58: 352 | Z58: .
Z59: Zdroj: databáze MŠMT

Sheet B5.2.8
D4: Tab. B5.2.8: | H4: SŠ obory odpovídající gymnáziím, denní forma vzdělávání – žáci, nově přijatí
B5: 18 | D5: ve školním roce 2009/10 až 2019/20 – podle délky vzdělávání a zřizovatele
D7: Zřizovatel Délka vzdělávání | J7: 2003/04 | K7: 2004/05 | L7: 2005/06 | M7: 2006/07 | N7: 2007/08 | O7: 2008/09 | P7: 2009/10 | Q7: 2010/11 | R7: 2011/12 | S7: 2012/13 | T7: 2013/14 | U7: 2014/15 | V7: 2015/16 | W7: 2016/17 | X7: 2017/18 | Y7: 2018/19 | Z7: 2019/20
D12: Žáci
E13: Celkem | J13: 142449 | K13: 142647 | L13: 143758 | M13: 145450 | N13: 145447 | O13: 145044 | P13: 142902 | Q13: 138157 | R13: 134342 | S13: 130385 | T13: 128000 | U13: 127205 | V13: 127643 | W13: 128621 | X13: 129207 | Y13: 129866 | Z13: 130481
E14: v tom | F14: čtyřletá | J14: 54208 | K14: 56359 | L14: 57684 | M14: 59617 | N14: 59437 | O14: 59330 | P14: 57767 | Q14: 54342 | R14: 51417 | S14: 48741 | T14: 47207 | U14: 46677 | V14: 47114 | W14: 47765 | X14: 47992 | Y14: 48194 | Z14: 48398
F15: víceletá | J15: 88241 | K15: 86288 | L15: 86074 | M15: 85833 | N15: 86010 | O15: 85714 | P15: 85135 | Q15: 83815 | R15: 82925 | S15: 81644 | T15: 80793 | U15: 80528 | V15: 80529 | W15: 80856 | X15: 81215 | Y15: 81672 | Z15: 82083
F16: v tom | G16: nižší stupeň | J16: 42190 | K16: 42514 | L16: 43114 | M16: 42965 | N16: 42829 | O16: 42330 | P16: 41639 | Q16: 41152 | R16: 40885 | S16: 40549 | T16: 40419 | U16: 40409 | V16: 40495 | W16: 40980 | X16: 41260 | Y16: 41611 | Z16: 41997
G17: vyšší stupeň | J17: 46051 | K17: 43774 | L17: 42960 | M17: 42868 | N17: 43181 | O17: 43384 | P17: 43496 | Q17: 42663 | R17: 42040 | S17: 41095 | T17: 40374 | U17: 40119 | V17: 40034 | W17: 39876 | X17: 39955 | Y17: 40061 | Z17: 40086
E18: Veřejný | J18: 125619 | K18: 125584 | L18: 125938 | M18: 126863 | N18: 126840 | O18: 126411 | P18: 124595 | Q18: 121377 | R18: 118177 | S18: 114668 | T18: 112173 | U18: 110753 | V18: 110575 | W18: 110797 | X18: 110759 | Y18: 110842 | Z18: 111061
E19: v tom | F19: čtyřletá | J19: 48923 | K19: 50797 | L19: 51740 | M19: 52977 | N19: 52774 | O19: 52499 | P19: 51253 | Q19: 48853 | R19: 46507 | S19: 44325 | T19: 42890 | U19: 42282 | V19: 42499 | W19: 43004 | X19: 43189 | Y19: 43313 | Z19: 43494
F20: víceletá | J20: 76696 | K20: 74787 | L20: 74198 | M20: 73886 | N20: 74066 | O20: 73912 | P20: 73342 | Q20: 72524 | R20: 71670 | S20: 70343 | T20: 69283 | U20: 68471 | V20: 68076 | W20: 67793 | X20: 67570 | Y20: 67529 | Z20: 67567
F21: v tom | G21: nižší stupeň | J21: 36473 | K21: 36742 | L21: 36973 | M21: 36889 | N21: 36727 | O21: 36398 | P21: 35901 | Q21: 35513 | R21: 35119 | S21: 34535 | T21: 34079 | U21: 33735 | V21: 33582 | W21: 33725 | X21: 33718 | Y21: 33884 | Z21: 34144
G22: vyšší stupeň | J22: 40223 | K22: 38045 | L22: 37225 | M22: 36997 | N22: 37339 | O22: 37514 | P22: 37441 | Q22: 37011 | R22: 36551 | S22: 35808 | T22: 35204 | U22: 34736 | V22: 34494 | W22: 34068 | X22: 33852 | Y22: 33645 | Z22: 33423
E23: Privátní sektor | J23: 10570 | K23: 10688 | L23: 11287 | M23: 11879 | N23: 11696 | O23: 11715 | P23: 11435 | Q23: 10079 | R23: 9464 | S23: 9107 | T23: 9057 | U23: 9495 | V23: 10036 | W23: 10724 | X23: 11308 | Y23: 11902 | Z23: 12334
E24: v tom | F24: čtyřletá | J24: 3669 | K24: 3837 | L24: 4124 | M24: 4693 | N24: 4526 | O24: 4684 | P24: 4466 | Q24: 3611 | R24: 3088 | S24: 2735 | T24: 2579 | U24: 2580 | V24: 2773 | W24: 2947 | X24: 3007 | Y24: 3135 | Z24: 3198
F25: víceletá | J25: 6901 | K25: 6851 | L25: 7163 | M25: 7186 | N25: 7170 | O25: 7031 | P25: 6969 | Q25: 6468 | R25: 6376 | S25: 6372 | T25: 6478 | U25: 6915 | V25: 7263 | W25: 7777 | X25: 8301 | Y25: 8767 | Z25: 9136
F26: v tom | G26: nižší stupeň | J26: 3365 | K26: 3415 | L26: 3704 | M26: 3614 | N26: 3664 | O26: 3516 | P26: 3330 | Q26: 3220 | R26: 3261 | S26: 3434 | T26: 3668 | U26: 3908 | V26: 4160 | W26: 4460 | X26: 4748 | Y26: 4973 | Z26: 5071
G27: vyšší stupeň | J27: 3536 | K27: 3436 | L27: 3459 | M27: 3572 | N27: 3506 | O27: 3515 | P27: 3639 | Q27: 3248 | R27: 3115 | S27: 2938 | T27: 2810 | U27: 3007 | V27: 3103 | W27: 3317 | X27: 3553 | Y27: 3794 | Z27: 4065
E28: Církev | J28: 6260 | K28: 6375 | L28: 6533 | M28: 6708 | N28: 6911 | O28: 6918 | P28: 6872 | Q28: 6701 | R28: 6701 | S28: 6610 | T28: 6770 | U28: 6957 | V28: 7032 | W28: 7100 | X28: 7140 | Y28: 7122 | Z28: 7086
E29: v tom | F29: čtyřletá | J29: 1616 | K29: 1725 | L29: 1820 | M29: 1947 | N29: 2137 | O29: 2147 | P29: 2048 | Q29: 1878 | R29: 1822 | S29: 1681 | T29: 1738 | U29: 1815 | V29: 1842 | W29: 1814 | X29: 1796 | Y29: 1746 | Z29: 1706
F30: víceletá | J30: 4644 | K30: 4650 | L30: 4713 | M30: 4761 | N30: 4774 | O30: 4771 | P30: 4824 | Q30: 4823 | R30: 4879 | S30: 4929 | T30: 5032 | U30: 5142 | V30: 5190 | W30: 5286 | X30: 5344 | Y30: 5376 | Z30: 5380
F31: v tom | G31: nižší stupeň | J31: 2352 | K31: 2357 | L31: 2437 | M31: 2462 | N31: 2438 | O31: 2416 | P31: 2408 | Q31: 2419 | R31: 2505 | S31: 2580 | T31: 2672 | U31: 2766 | V31: 2753 | W31: 2795 | X31: 2794 | Y31: 2754 | Z31: 2782
G32: vyšší stupeň | J32: 2292 | K32: 2293 | L32: 2276 | M32: 2299 | N32: 2336 | O32: 2355 | P32: 2416 | Q32: 2404 | R32: 2374 | S32: 2349 | T32: 2360 | U32: 2376 | V32: 2437 | W32: 2491 | X32: 2550 | Y32: 2622 | Z32: 2598
D33: Nově přijatí žáci
E34: Celkem | J34: 26303 | K34: 26557 | L34: 27254 | M34: 27455 | N34: 26472 | O34: 26258 | P34: 25035 | Q34: 23519 | R34: 23138 | S34: 22811 | T34: 23141 | U34: 22935 | V34: 23522 | W34: 23754 | X34: 23641 | Y34: 23632 | Z34: 24085
E35: v tom | F35: čtyřletá | J35: 14603 | K35: 14776 | L35: 15123 | M35: 15830 | N35: 14664 | O35: 14688 | P35: 13472 | Q35: 12262 | R35: 11740 | S35: 11713 | T35: 11877 | U35: 11745 | V35: 12125 | W35: 12142 | X35: 11954 | Y35: 11996 | Z35: 12327
F36: víceletá | J36: 11700 | K36: 11781 | L36: 12131 | M36: 11625 | N36: 11808 | O36: 11570 | P36: 11563 | Q36: 11257 | R36: 11398 | S36: 11098 | T36: 11264 | U36: 11190 | V36: 11397 | W36: 11612 | X36: 11687 | Y36: 11636 | Z36: 11758
E37: Veřejný | J37: 23288 | K37: 23361 | L37: 23739 | M37: 23712 | N37: 23183 | O37: 22994 | P37: 22101 | Q37: 20973 | R37: 20476 | S37: 20046 | T37: 20149 | U37: 19887 | V37: 20391 | W37: 20547 | X37: 20306 | Y37: 20279 | Z37: 20673
E38: v tom | F38: čtyřletá | J38: 13164 | K38: 13207 | L38: 13458 | M38: 13753 | N38: 13065 | O38: 13005 | P38: 12176 | Q38: 11248 | R38: 10727 | S38: 10687 | T38: 10767 | U38: 10637 | V38: 10945 | W38: 11031 | X38: 10838 | Y38: 10865 | Z38: 11083
F39: víceletá | J39: 10124 | K39: 10154 | L39: 10281 | M39: 9959 | N39: 10118 | O39: 9989 | P39: 9925 | Q39: 9725 | R39: 9749 | S39: 9359 | T39: 9382 | U39: 9250 | V39: 9446 | W39: 9516 | X39: 9468 | Y39: 9414 | Z39: 9590
E40: Privátní sektor | J40: 1944 | K40: 2078 | L40: 2349 | M40: 2520 | N40: 2145 | O40: 2078 | P40: 1859 | Q40: 1446 | R40: 1522 | S40: 1587 | T40: 1786 | U40: 1803 | V40: 1959 | W40: 2029 | X40: 2174 | Y40: 2214 | Z40: 2234
E41: v tom | F41: čtyřletá | J41: 994 | K41: 1083 | L41: 1167 | M41: 1501 | N41: 1095 | O41: 1136 | P41: 873 | Q41: 575 | R41: 571 | S41: 572 | T41: 643 | U41: 634 | V41: 723 | W41: 695 | X41: 694 | Y41: 723 | Z41: 792
F42: víceletá | J42: 950 | K42: 995 | L42: 1182 | M42: 1019 | N42: 1050 | O42: 942 | P42: 986 | Q42: 871 | R42: 951 | S42: 1015 | T42: 1143 | U42: 1169 | V42: 1236 | W42: 1334 | X42: 1480 | Y42: 1491 | Z42: 1442
E43: Církev | J43: 1071 | K43: 1118 | L43: 1166 | M43: 1223 | N43: 1144 | O43: 1186 | P43: 1075 | Q43: 1100 | R43: 1140 | S43: 1178 | T43: 1206 | U43: 1245 | V43: 1172 | W43: 1178 | X43: 1161 | Y43: 1139 | Z43: 1178
E44: v tom | F44: čtyřletá | J44: 445 | K44: 486 | L44: 498 | M44: 576 | N44: 504 | O44: 547 | P44: 423 | Q44: 439 | R44: 442 | S44: 454 | T44: 467 | U44: 474 | V44: 457 | W44: 416 | X44: 422 | Y44: 408 | Z44: 452
F45: víceletá | J45: 626 | K45: 632 | L45: 668 | M45: 647 | N45: 640 | O45: 639 | P45: 652 | Q45: 661 | R45: 698 | S45: 724 | T45: 739 | U45: 771 | V45: 715 | W45: 762 | X45: 739 | Y45: 731 | Z45: 726
D46: Absolventi
E47: Celkem | J47: 24694 | K47: 25309 | L47: 24001 | M47: 24193 | N47: 24284 | O47: 24499 | P47: 24198 | Q47: 23862 | R47: 23805 | S47: 22686 | T47: 21138 | U47: 20533 | V47: 20221 | W47: 20403 | X47: 20278 | Y47: 20979 | Z47: .
E48: v tom | F48: čtyřletá | J48: 12108 | K48: 13360 | L48: 13249 | M48: 13975 | N48: 14037 | O48: 14145 | P48: 14007 | Q48: 13560 | R48: 13529 | S48: 12474 | T48: 11463 | U48: 10843 | V48: 10690 | W48: 10923 | X48: 11003 | Y48: 11394 | Z48: .
F49: víceletá | J49: 12586 | K49: 11949 | L49: 10752 | M49: 10218 | N49: 10247 | O49: 10354 | P49: 10191 | Q49: 10302 | R49: 10276 | S49: 10212 | T49: 9675 | U49: 9690 | V49: 9531 | W49: 9480 | X49: 9275 | Y49: 9585 | Z49: .
E50: Veřejný | J50: 22052 | K50: 22489 | L50: 21304 | M50: 21516 | N50: 21284 | O50: 21627 | P50: 21084 | Q50: 21169 | R50: 20992 | S50: 20212 | T50: 19044 | U50: 18403 | V50: 18190 | W50: 18187 | X50: 17960 | Y50: 18476 | Z50: .
E51: v tom | F51: čtyřletá | J51: 10888 | K51: 11981 | L51: 11965 | M51: 12588 | N51: 12379 | O51: 12599 | P51: 12302 | Q51: 12204 | R51: 12069 | S51: 11380 | T51: 10546 | U51: 9945 | V51: 9799 | W51: 9939 | X51: 9963 | Y51: 10238 | Z51: .
F52: víceletá | J52: 11164 | K52: 10508 | L52: 9339 | M52: 8928 | N52: 8905 | O52: 9028 | P52: 8782 | Q52: 8965 | R52: 8923 | S52: 8832 | T52: 8498 | U52: 8458 | V52: 8391 | W52: 8248 | X52: 7997 | Y52: 8238 | Z52: .
E53: Privátní sektor | J53: 1765 | K53: 1890 | L53: 1712 | M53: 1692 | N53: 1962 | O53: 1843 | P53: 1984 | Q53: 1699 | R53: 1714 | S53: 1529 | T53: 1145 | U53: 1171 | V53: 1050 | W53: 1228 | X53: 1304 | Y53: 1484 | Z53: .
E54: v tom | F54: čtyřletá | J54: 886 | K54: 998 | L54: 871 | M54: 927 | N54: 1171 | O54: 1046 | P54: 1140 | Q54: 936 | R54: 948 | S54: 725 | T54: 534 | U54: 489 | V54: 486 | W54: 566 | X54: 588 | Y54: 725 | Z54: .
F55: víceletá | J55: 879 | K55: 892 | L55: 841 | M55: 765 | N55: 791 | O55: 797 | P55: 844 | Q55: 763 | R55: 766 | S55: 804 | T55: 611 | U55: 682 | V55: 564 | W55: 662 | X55: 716 | Y55: 759 | Z55: .
E56: Církev | J56: 877 | K56: 930 | L56: 985 | M56: 985 | N56: 1038 | O56: 1029 | P56: 1130 | Q56: 994 | R56: 1099 | S56: 945 | T56: 949 | U56: 959 | V56: 981 | W56: 988 | X56: 1014 | Y56: 1019 | Z56: .
E57: v tom | F57: čtyřletá | J57: 334 | K57: 381 | L57: 413 | M57: 460 | N57: 487 | O57: 500 | P57: 565 | Q57: 420 | R57: 512 | S57: 369 | T57: 383 | U57: 409 | V57: 405 | W57: 418 | X57: 452 | Y57: 431 | Z57: .
F58: víceletá | J58: 543 | K58: 549 | L58: 572 | M58: 525 | N58: 551 | O58: 529 | P58: 565 | Q58: 574 | R58: 587 | S58: 576 | T58: 566 | U58: 550 | V58: 576 | W58: 570 | X58: 562 | Y58: 588 | Z58: .
Z59: Zdroj: databáze MŠMT

Sheet B5.2.9
D4: Tab. B5.2.9: | H4: SŠ obory odpovídající gymnáziím, ostatní formy vzdělávání – žáci, nově
B5: 18 | D5: ve školním roce 2009/10 až 2019/20 – podle délky vzdělávání a zřizovatele
D7: Zřizovatel Délka vzdělávání | J7: 2003/04 | K7: 2004/05 | L7: 2005/06 | M7: 2006/07 | N7: 2007/08 | O7: 2009/10 | P7: 2010/11 | Q7: 2011/12 | R7: 2012/13 | S7: 2013/14 | T7: 2014/15 | U7: 2015/16 | V7: 2016/17 | W7: 2017/18 | X7: 2018/19 | Y7: 2019/20
D12: Žáci
E13: Celkem | J13: 839 | K13: 864 | L13: 847 | M13: 904 | N13: 923 | O13: 949 | P13: 909 | Q13: 623 | R13: 628 | S13: 527 | T13: 461 | U13: 402 | V13: 373 | W13: 347 | X13: 267 | Y13: 244
E14: v tom | F14: čtyřletá | J14: 839 | K14: 864 | L14: 847 | M14: 904 | N14: 923 | O14: 949 | P14: 909 | Q14: 623 | R14: 628 | S14: 527 | T14: 461 | U14: 402 | V14: 373 | W14: 347 | X14: 267 | Y14: 244
F15: víceletá | J15: x | K15: x | L15: x | M15: x | N15: x | O15: x | P15: x | Q15: x | R15: x | S15: x | T15: x | U15: x | V15: x | W15: x | X15: x | Y15: x
F16: v tom | G16: nižší stupeň | J16: x | K16: x | L16: x | M16: x | N16: x | O16: x | P16: x | Q16: x | R16: x | S16: x | T16: x | U16: x | V16: x | W16: x | X16: x | Y16: x
G17: vyšší stupeň | J17: x | K17: x | L17: x | M17: x | N17: x | O17: x | P17: x | Q17: x | R17: x | S17: x | T17: x | U17: x | V17: x | W17: x | X17: x | Y17: x
E18: Veřejný | J18: 489 | K18: 506 | L18: 526 | M18: 486 | N18: 514 | O18: 425 | P18: 410 | Q18: 220 | R18: 262 | S18: 304 | T18: 263 | U18: 246 | V18: 208 | W18: 185 | X18: 130 | Y18: 126
E19: v tom | F19: čtyřletá | J19: 489 | K19: 506 | L19: 526 | M19: 486 | N19: 514 | O19: 425 | P19: 410 | Q19: 220 | R19: 262 | S19: 304 | T19: 263 | U19: 246 | V19: 208 | W19: 185 | X19: 130 | Y19: 126
F20: víceletá | J20: x | K20: x | L20: x | M20: x | N20: x | O20: x | P20: x | Q20: x | R20: x | S20: x | T20: x | U20: x | V20: x | W20: x | X20: x | Y20: x
F21: v tom | G21: nižší stupeň | J21: x | K21: x | L21: x | M21: x | N21: x | O21: x | P21: x | Q21: x | R21: x | S21: x | T21: x | U21: x | V21: x | W21: x | X21: x | Y21: x
G22: vyšší stupeň | J22: x | K22: x | L22: x | M22: x | N22: x | O22: x | P22: x | Q22: x | R22: x | S22: x | T22: x | U22: x | V22: x | W22: x | X22: x | Y22: x
E23: Privátní sektor | J23: 270 | K23: 295 | L23: 247 | M23: 351 | N23: 352 | O23: 479 | P23: 450 | Q23: 354 | R23: 322 | S23: 190 | T23: 164 | U23: 122 | V23: 132 | W23: 131 | X23: 103 | Y23: 106
E24: v tom | F24: čtyřletá | J24: 270 | K24: 295 | L24: 247 | M24: 351 | N24: 352 | O24: 479 | P24: 450 | Q24: 354 | R24: 322 | S24: 190 | T24: 164 | U24: 122 | V24: 132 | W24: 131 | X24: 103 | Y24: 106
F25: víceletá | J25: x | K25: x | L25: x | M25: x | N25: x | O25: x | P25: x | Q25: x | R25: x | S25: x | T25: x | U25: x | V25: x | W25: x | X25: x | Y25: x
F26: v tom | G26: nižší stupeň | J26: x | K26: x | L26: x | M26: x | N26: x | O26: x | P26: x | Q26: x | R26: x | S26: x | T26: x | U26: x | V26: x | W26: x | X26: x | Y26: x
G27: vyšší stupeň | J27: x | K27: x | L27: x | M27: x | N27: x | O27: x | P27: x | Q27: x | R27: x | S27: x | T27: x | U27: x | V27: x | W27: x | X27: x | Y27: x
E28: Církev | J28: 80 | K28: 63 | L28: 74 | M28: 67 | N28: 57 | O28: 45 | P28: 49 | Q28: 49 | R28: 44 | S28: 33 | T28: 34 | U28: 34 | V28: 33 | W28: 31 | X28: 34 | Y28: 12
E29: v tom | F29: čtyřletá | J29: 80 | K29: 63 | L29: 74 | M29: 67 | N29: 57 | O29: 45 | P29: 49 | Q29: 49 | R29: 44 | S29: 33 | T29: 34 | U29: 34 | V29: 33 | W29: 31 | X29: 34 | Y29: 12
F30: víceletá | J30: x | K30: x | L30: x | M30: x | N30: x | O30: x | P30: x | Q30: x | R30: x | S30: x | T30: x | U30: x | V30: x | W30: x | X30: x | Y30: x
F31: v tom | G31: nižší stupeň | J31: x | K31: x | L31: x | M31: x | N31: x | O31: x | P31: x | Q31: x | R31: x | S31: x | T31: x | U31: x | V31: x | W31: x | X31: x | Y31: x
G32: vyšší stupeň | J32: x | K32: x | L32: x | M32: x | N32: x | O32: x | P32: x | Q32: x | R32: x | S32: x | T32: x | U32: x | V32: x | W32: x | X32: x | Y32: x
D33: Nově přijatí žáci
E34: Celkem | J34: 243 | K34: 220 | L34: 284 | M34: 263 | N34: 266 | O34: 221 | P34: 158 | Q34: 31 | R34: 129 | S34: 109 | T34: 84 | U34: 64 | V34: 58 | W34: 42 | X34: 9 | Y34: 35
E35: v tom | F35: čtyřletá | J35: 243 | K35: 220 | L35: 284 | M35: 263 | N35: 266 | O35: 221 | P35: 158 | Q35: 31 | R35: 129 | S35: 109 | T35: 84 | U35: 64 | V35: 58 | W35: 42 | X35: 9 | Y35: 35
F36: víceletá | J36: x | K36: x | L36: x | M36: x | N36: x | O36: x | P36: x | Q36: x | R36: x | S36: x | T36: x | U36: x | V36: x | W36: x | X36: x | Y36: x
E37: Veřejný | J37: 175 | K37: 144 | L37: 184 | M37: 137 | N37: 199 | O37: 78 | P37: 99 | Q37: 4 | R37: 96 | S37: 83 | T37: 61 | U37: 48 | V37: 40 | W37: 27 | X37: 0 | Y37: 23
E38: v tom | F38: čtyřletá | J38: 175 | K38: 144 | L38: 184 | M38: 137 | N38: 199 | O38: 78 | P38: 99 | Q38: 4 | R38: 96 | S38: 83 | T38: 61 | U38: 48 | V38: 40 | W38: 27 | X38: 0 | Y38: 23
F39: víceletá | J39: x | K39: x | L39: x | M39: x | N39: x | O39: x | P39: x | Q39: x | R39: x | S39: x | T39: x | U39: x | V39: x | W39: x | X39: x | Y39: x
E40: Privátní sektor | J40: 51 | K40: 55 | L40: 72 | M40: 108 | N40: 57 | O40: 127 | P40: 51 | Q40: 19 | R40: 30 | S40: 17 | T40: 17 | U40: 8 | V40: 14 | W40: 15 | X40: 9 | Y40: 12
E41: v tom | F41: čtyřletá | J41: 51 | K41: 55 | L41: 72 | M41: 108 | N41: 57 | O41: 127 | P41: 51 | Q41: 19 | R41: 30 | S41: 17 | T41: 17 | U41: 8 | V41: 14 | W41: 15 | X41: 9 | Y41: 12
F42: víceletá | J42: x | K42: x | L42: x | M42: x | N42: x | O42: x | P42: x | Q42: x | R42: x | S42: x | T42: x | U42: x | V42: x | W42: x | X42: x | Y42: x
E43: Církev | J43: 17 | K43: 21 | L43: 28 | M43: 18 | N43: 10 | O43: 16 | P43: 8 | Q43: 8 | R43: 3 | S43: 9 | T43: 6 | U43: 8 | V43: 4 | W43: 0 | X43: 0 | Y43: 0
E44: v tom | F44: čtyřletá | J44: 17 | K44: 21 | L44: 28 | M44: 18 | N44: 10 | O44: 16 | P44: 8 | Q44: 8 | R44: 3 | S44: 9 | T44: 6 | U44: 8 | V44: 4 | W44: 0 | X44: 0 | Y44: 0
F45: víceletá | J45: x | K45: x | L45: x | M45: x | N45: x | O45: x | P45: x | Q45: x | R45: x | S45: x | T45: x | U45: x | V45: x | W45: x | X45: x | Y45: x
D46: Absolventi
E47: Celkem | J47: 121 | K47: 140 | L47: 159 | M47: 158 | N47: 161 | O47: 183 | P47: 148 | Q47: 159 | R47: 90 | S47: 106 | T47: 58 | U47: 58 | V47: 63 | W47: 69 | X47: 59 | Y47: .
E48: v tom | F48: čtyřletá | J48: 121 | K48: 140 | L48: 159 | M48: 158 | N48: 161 | O48: 183 | P48: 148 | Q48: 159 | R48: 90 | S48: 106 | T48: 58 | U48: 58 | V48: 63 | W48: 69 | X48: 59 | Y48: .
F49: víceletá | J49: x | K49: x | L49: x | M49: x | N49: x | O49: x | P49: x | Q49: x | R49: x | S49: x | T49: x | U49: x | V49: x | W49: x | X49: x | Y49: .
E50: Veřejný | J50: 64 | K50: 87 | L50: 74 | M50: 89 | N50: 75 | O50: 63 | P50: 89 | Q50: 72 | R50: 2 | S50: 60 | T50: 22 | U50: 34 | V50: 39 | W50: 26 | X50: 30 | Y50: .
E51: v tom | F51: čtyřletá | J51: 64 | K51: 87 | L51: 74 | M51: 89 | N51: 75 | O51: 63 | P51: 89 | Q51: 72 | R51: 2 | S51: 60 | T51: 22 | U51: 34 | V51: 39 | W51: 26 | X51: 30 | Y51: .
F52: víceletá | J52: x | K52: x | L52: x | M52: x | N52: x | O52: x | P52: x | Q52: x | R52: x | S52: x | T52: x | U52: x | V52: x | W52: x | X52: x | Y52: .
E53: Privátní sektor | J53: 39 | K53: 45 | L53: 71 | M53: 58 | N53: 73 | O53: 111 | P53: 48 | Q53: 79 | R53: 66 | S53: 37 | T53: 29 | U53: 16 | V53: 17 | W53: 33 | X53: 19 | Y53: .
E54: v tom | F54: čtyřletá | J54: 39 | K54: 45 | L54: 71 | M54: 58 | N54: 73 | O54: 111 | P54: 48 | Q54: 79 | R54: 66 | S54: 37 | T54: 29 | U54: 16 | V54: 17 | W54: 33 | X54: 19 | Y54: .
F55: víceletá | J55: x | K55: x | L55: x | M55: x | N55: x | O55: x | P55: x | Q55: x | R55: x | S55: x | T55: x | U55: x | V55: x | W55: x | X55: x | Y55: .
E56: Církev | J56: 18 | K56: 8 | L56: 14 | M56: 11 | N56: 13 | O56: 9 | P56: 11 | Q56: 8 | R56: 22 | S56: 9 | T56: 7 | U56: 8 | V56: 7 | W56: 10 | X56: 10 | Y56: .
E57: v tom | F57: čtyřletá | J57: 18 | K57: 8 | L57: 14 | M57: 11 | N57: 13 | O57: 9 | P57: 11 | Q57: 8 | R57: 22 | S57: 9 | T57: 7 | U57: 8 | V57: 7 | W57: 10 | X57: 10 | Y57: .
F58: víceletá | J58: x | K58: x | L58: x | M58: x | N58: x | O58: x | P58: x | Q58: x | R58: x | S58: x | T58: x | U58: x | V58: x | W58: x | X58: x | Y58: .
Y59: Zdroj: databáze MŠMT

Sheet B5.2.10
D4: Tab. B5.2.10: | H4: SŠ obory odpovídající gymnáziím – počet podaných přihlášek v 1. kole přijímacího
B5: 6 | D5: ve školním roce 2009/10 až 2019/20 – podle délky vzdělávání a zřizovatele
D7: Zřizovatel Délka vzdělávání | J7: 2003/04 | K7: 2004/05 | L7: 2005/06 | M7: 2006/07 | N7: 2007/08 | O7: 2008/09 | P7: 2009/10 | Q7: 2010/11 | R7: 2011/12 | S7: 2012/13 | T7: 2013/14 | U7: 2014/15 | V7: 2015/16 | W7: 2016/17 | X7: 2017/18 | Y7: 2018/19 | Z7: 2019/20
J11: 1) | K11: 1) | P11: 1) | Q11: 1) | R11: 1) | S11: 2) | T11: 2) | U11: 2) | V11: 2) | W11: 2) | X11: 2) | Y11: 2) | Z11: 2)
D12: Počet podaných přihlášek v prvním kole přijímacího řízení do denní formy vzdělávání
E13: Celkem | J13: . | K13: . | L13: 43321 | M13: 42015 | N13: 37542 | O13: 36011 | P13: 59061 | Q13: 54036 | R13: 55343 | S13: 49082 | T13: 50208 | U13: 52249 | V13: 55315 | W13: 58085 | X13: 63124 | Y13: 66207 | Z13: 70545
E14: v tom | F14: 4letá | J14: . | K14: . | L14: 19432 | M14: 20499 | N14: 17381 | O14: 16922 | P14: 32886 | Q14: 28742 | R14: 28228 | S14: 22679 | T14: 23000 | U14: 23956 | V14: 24932 | W14: 25502 | X14: 25816 | Y14: 25620 | Z14: 26756
F15: 6letá | J15: . | K15: . | L15: 5060 | M15: 5338 | N15: 4525 | O15: 3907 | P15: 5128 | Q15: 4558 | R15: 5303 | S15: 4966 | T15: 5423 | U15: 5892 | V15: 6235 | W15: 6412 | X15: 7304 | Y15: 8574 | Z15: 9670
F16: 8letá | J16: . | K16: . | L16: 18829 | M16: 16178 | N16: 15636 | O16: 15182 | P16: 21047 | Q16: 20736 | R16: 21812 | S16: 21437 | T16: 21785 | U16: 22401 | V16: 24148 | W16: 26171 | X16: 30004 | Y16: 32013 | Z16: 34119
E17: Veřejný | J17: 38643 | K17: 39526 | L17: 38439 | M17: 37086 | N17: 33299 | O17: 31882 | P17: 53153 | Q17: 48482 | R17: 49783 | S17: 43893 | T17: 44814 | U17: 46165 | V17: 49013 | W17: 51340 | X17: 55974 | Y17: 58748 | Z17: 62645
E18: v tom | F18: 4letá | J18: 15844 | K18: 15966 | L18: 17250 | M18: 18090 | N18: 15552 | O18: 15094 | P18: 30107 | Q18: 26301 | R18: 26082 | S18: 20845 | T18: 21120 | U18: 21742 | V18: 22668 | W18: 23301 | X18: 23893 | Y18: 23798 | Z18: 24761
F19: 6letá | J19: 4506 | K19: 5137 | L19: 4530 | M19: 4751 | N19: 3989 | O19: 3490 | P19: 4632 | Q19: 4167 | R19: 4903 | S19: 4484 | T19: 4895 | U19: 5366 | V19: 5638 | W19: 5796 | X19: 6572 | Y19: 7724 | Z19: 8670
F20: 8letá | J20: 18293 | K20: 18423 | L20: 16659 | M20: 14245 | N20: 13758 | O20: 13298 | P20: 18414 | Q20: 18014 | R20: 18798 | S20: 18564 | T20: 18799 | U20: 19057 | V20: 20707 | W20: 22243 | X20: 25509 | Y20: 27226 | Z20: 29214
E21: Privátní sektor | J21: . | K21: . | L21: 3061 | M21: 3005 | N21: 2751 | O21: 2447 | P21: 3520 | Q21: 2974 | R21: 2944 | S21: 2479 | T21: 2686 | U21: 3051 | V21: 3316 | W21: 3553 | X21: 3725 | Y21: 3876 | Z21: 4245
E22: v tom | F22: 4letá | J22: . | K22: . | L22: 1530 | M22: 1568 | N22: 1368 | O22: 1189 | P22: 1758 | Q22: 1373 | R22: 1168 | S22: 939 | T22: 960 | U22: 1168 | V22: 1269 | W22: 1189 | X22: 956 | Y22: 900 | Z22: 1019
F23: 6letá | J23: . | K23: . | L23: 404 | M23: 415 | N23: 394 | O23: 323 | P23: 410 | Q23: 311 | R23: 311 | S23: 376 | T23: 385 | U23: 385 | V23: 461 | W23: 514 | X23: 549 | Y23: 642 | Z23: 710
F24: 8letá | J24: . | K24: . | L24: 1127 | M24: 1022 | N24: 989 | O24: 935 | P24: 1352 | Q24: 1290 | R24: 1465 | S24: 1164 | T24: 1341 | U24: 1498 | V24: 1586 | W24: 1850 | X24: 2220 | Y24: 2334 | Z24: 2516
E25: Církev | J25: . | K25: . | L25: 1821 | M25: 1924 | N25: 1492 | O25: 1682 | P25: 2388 | Q25: 2580 | R25: 2616 | S25: 2710 | T25: 2708 | U25: 3033 | V25: 2986 | W25: 3192 | X25: 3425 | Y25: 3583 | Z25: 3655
E26: v tom | F26: 4letá | J26: . | K26: . | L26: 652 | M26: 841 | N26: 461 | O26: 639 | P26: 1021 | Q26: 1068 | R26: 978 | S26: 895 | T26: 920 | U26: 1046 | V26: 995 | W26: 1012 | X26: 967 | Y26: 922 | Z26: 976
F27: 6letá | J27: . | K27: . | L27: 126 | M27: 172 | N27: 142 | O27: 94 | P27: 86 | Q27: 80 | R27: 89 | S27: 106 | T27: 143 | U27: 141 | V27: 136 | W27: 102 | X27: 183 | Y27: 208 | Z27: 290
F28: 8letá | J28: . | K28: . | L28: 1043 | M28: 911 | N28: 889 | O28: 949 | P28: 1281 | Q28: 1432 | R28: 1549 | S28: 1709 | T28: 1645 | U28: 1846 | V28: 1855 | W28: 2078 | X28: 2275 | Y28: 2453 | Z28: 2389
D29: Komentáře | Z29: Zdroj: databáze MŠMT
D30: 1) | E30: Do školního roku 2008/09 v rámci prvního kola přijímacího řízení mohli žáci podat přihlášku pouze na jednu školu, ve školním roce 2009/10 byl systém přijímacího řízení změněn a žáci si mohli podat tři přihlášky, údaje s minulými léty jsou proto nesrovnatelné.
D31: 2) | E31: Od školního roku 2012/13 v rámci prvního kola přijímacího řízení byl systém přijímacího řízení změněn a žáci si mohli podat pouze 2 přihlášky, údaje s minulými léty jsou proto nesrovnatelné.

Sheet B5.2.11
D4: Tab. B5.2.11: | H4: SŠ obory odpovídající gymnáziím – počet přijatých přihlášek v 1. kole přijímacího
B5: 6 | D5: ve školním roce 2009/10 až 2019/20 – podle délky vzdělávání a zřizovatele
D7: Zřizovatel Délka vzdělávání | J7: 2003/04 | K7: 2004/05 | L7: 2005/06 | M7: 2006/07 | N7: 2007/08 | O7: 2008/09 | P7: 2009/10 | Q7: 2010/11 | R7: 2011/12 | S7: 2012/13 | T7: 2013/14 | U7: 2014/15 | V7: 2015/16 | W7: 2016/17 | X7: 2017/18 | Y7: 2018/19 | Z7: 2019/20
J11: 1) | K11: 1) | P11: 1) | Q11: 1) | R11: 1) | S11: 2) | T11: 2) | U11: 2) | V11: 2) | W11: 2) | X11: 2) | Y11: 2) | Z11: 2)
D12: Počet přijatých přihlášek v prvním kole přijímacího řízení (červen) do denní formy vzdělávání
E13: Celkem | J13: . | K13: . | L13: 26611 | M13: 26215 | N13: 25488 | O13: 24938 | P13: 29789 | Q13: 29806 | R13: 29904 | S13: 27454 | T13: 28004 | U13: 28053 | V13: 29902 | W13: 29949 | X13: 31077 | Y13: 31340 | Z13: 32319
E14: v tom | F14: 4letá | J14: . | K14: . | L14: 14544 | M14: 14681 | N14: 13838 | O14: 13739 | P14: 17238 | Q14: 17490 | R14: 17034 | S14: 15300 | T14: 15517 | U14: 15585 | V14: 16870 | W14: 16723 | X14: 16741 | Y14: 16660 | Z14: 17104
F15: 6letá | J15: . | K15: . | L15: 2206 | M15: 2200 | N15: 2302 | O15: 2274 | P15: 2560 | Q15: 2357 | R15: 2512 | S15: 2416 | T15: 2472 | U15: 2457 | V15: 2704 | W15: 2677 | X15: 2842 | Y15: 2857 | Z15: 3042
F16: 8letá | J16: . | K16: . | L16: 9861 | M16: 9334 | N16: 9348 | O16: 8925 | P16: 9991 | Q16: 9959 | R16: 10358 | S16: 9738 | T16: 10015 | U16: 10011 | V16: 10328 | W16: 10549 | X16: 11494 | Y16: 11823 | Z16: 12173
E17: Veřejný | J17: 21568 | K17: 21744 | L17: 23279 | M17: 23045 | N17: 22518 | O17: 21992 | P17: 26282 | Q17: 26339 | R17: 26402 | S17: 24312 | T17: 24651 | U17: 24432 | V17: 26108 | W17: 26119 | X17: 27255 | Y17: 27674 | Z17: 28473
E18: v tom | F18: 4letá | J18: 11528 | K18: 11671 | L18: 13001 | M18: 13090 | N18: 12443 | O18: 12269 | P18: 15466 | Q18: 15717 | R18: 15419 | S18: 13979 | T18: 14117 | U18: 14023 | V18: 15198 | W18: 15148 | X18: 15404 | Y18: 15405 | Z18: 15713
F19: 6letá | J19: 1702 | K19: 1655 | L19: 1822 | M19: 1819 | N19: 1941 | O19: 1966 | P19: 2240 | Q19: 2109 | R19: 2208 | S19: 2085 | T19: 2144 | U19: 2116 | V19: 2277 | W19: 2256 | X19: 2339 | Y19: 2400 | Z19: 2590
F20: 8letá | J20: 8338 | K20: 8418 | L20: 8456 | M20: 8136 | N20: 8134 | O20: 7757 | P20: 8576 | Q20: 8513 | R20: 8775 | S20: 8248 | T20: 8390 | U20: 8293 | V20: 8633 | W20: 8715 | X20: 9512 | Y20: 9869 | Z20: 10170
E21: Privátní sektor | J21: . | K21: . | L21: 2145 | M21: 1951 | N21: 1936 | O21: 1808 | P21: 2341 | Q21: 2029 | R21: 2046 | S21: 1822 | T21: 2016 | U21: 2186 | V21: 2322 | W21: 2379 | X21: 2365 | Y21: 2236 | Z21: 2300
E22: v tom | F22: 4letá | J22: . | K22: . | L22: 1039 | M22: 1014 | N22: 992 | O22: 984 | P22: 1235 | Q22: 1038 | R22: 905 | S22: 740 | T22: 814 | U22: 919 | V22: 974 | W22: 947 | X22: 751 | Y22: 682 | Z22: 754
F23: 6letá | J23: . | K23: . | L23: 293 | M23: 297 | N23: 278 | O23: 233 | P23: 257 | Q23: 181 | R23: 237 | S23: 254 | T23: 251 | U23: 249 | V23: 337 | W23: 352 | X23: 398 | Y23: 375 | Z23: 356
F24: 8letá | J24: . | K24: . | L24: 813 | M24: 640 | N24: 666 | O24: 591 | P24: 849 | Q24: 810 | R24: 904 | S24: 828 | T24: 951 | U24: 1018 | V24: 1011 | W24: 1080 | X24: 1216 | Y24: 1179 | Z24: 1190
E25: Církev | J25: . | K25: . | L25: 1187 | M25: 1219 | N25: 1034 | O25: 1138 | P25: 1166 | Q25: 1438 | R25: 1456 | S25: 1320 | T25: 1337 | U25: 1435 | V25: 1472 | W25: 1451 | X25: 1457 | Y25: 1430 | Z25: 1546
E26: v tom | F26: 4letá | J26: . | K26: . | L26: 504 | M26: 577 | N26: 403 | O26: 486 | P26: 537 | Q26: 735 | R26: 710 | S26: 581 | T26: 586 | U26: 643 | V26: 698 | W26: 628 | X26: 586 | Y26: 573 | Z26: 637
F27: 6letá | J27: . | K27: . | L27: 91 | M27: 84 | N27: 83 | O27: 75 | P27: 63 | Q27: 67 | R27: 67 | S27: 77 | T27: 77 | U27: 92 | V27: 90 | W27: 69 | X27: 105 | Y27: 82 | Z27: 96
F28: 8letá | J28: . | K28: . | L28: 592 | M28: 558 | N28: 548 | O28: 577 | P28: 566 | Q28: 636 | R28: 679 | S28: 662 | T28: 674 | U28: 700 | V28: 684 | W28: 754 | X28: 766 | Y28: 775 | Z28: 813
D29: Komentáře: | Z29: Zdroj: databáze MŠMT
D30: 1) | E30: Do školního roku 2008/09 v rámci prvního kola přijímacího řízení mohli žáci podat přihlášku pouze na jednu školu, ve školním roce 2009/10 byl systém přijímacího řízení změněn a žáci si mohli podat tři přihlášky, údaje s minulými léty jsou proto nesrovnatelné.
D31: 2) | E31: Od školního roku 2012/13 v rámci prvního kola přijímacího řízení byl systém přijímacího řízení změněn a žáci si mohli podat pouze 2 přihlášky, údaje s minulými léty jsou proto nesrovnatelné.

Sheet B5.2.12
D4: Tab. B5.2.12: | H4: SŠ obory odpovídající gymnáziím – úspěšnost přihlášených v 1. kole přijímacího
B5: 6 | D5: ve školním roce 2009/10 až 2019/20 – podle délky vzdělávání a zřizovatele
D7: Zřizovatel Délka vzdělávání | J7: 2003/04 | K7: 2004/05 | L7: 2005/06 | M7: 2006/07 | N7: 2007/08 | O7: 2008/09 | P7: 2009/10 | Q7: 2010/11 | R7: 2011/12 | S7: 2012/13 | T7: 2013/14 | U7: 2014/15 | V7: 2015/16 | W7: 2016/17 | X7: 2017/18 | Y7: 2018/19 | Z7: 2019/20
J11: 1) | K11: 1) | P11: 1) | Q11: 1) | R11: 1) | S11: 2) | T11: 2) | U11: 2) | V11: 2) | W11: 2) | X11: 2) | Y11: 2) | Z11: 2)
D12: Úspěšnost přihlášených v prvním kole přijímacího řízení do denní formy vzdělávání
E13: Celkem | J13: x | K13: x | L13: ='B5.2.11'!L13/'B5.2.10'!L13 -> 0.6142748321 | M13: ='B5.2.11'!M13/'B5.2.10'!M13 -> 0.6239438296 | N13: ='B5.2.11'!N13/'B5.2.10'!N13 -> 0.67891961 | O13: ='B5.2.11'!O13/'B5.2.10'!O13 -> 0.6925106218 | P13: ='B5.2.11'!P13/'B5.2.10'!P13 -> 0.5043768307 | Q13: ='B5.2.11'!Q13/'B5.2.10'!Q13 -> 0.5515952328 | R13: ='B5.2.11'!R13/'B5.2.10'!R13 -> 0.5403393383 | S13: ='B5.2.11'!S13/'B5.2.10'!S13 -> 0.5593496598 | T13: ='B5.2.11'!T13/'B5.2.10'!T13 -> 0.5577597196 | U13: ='B5.2.11'!U13/'B5.2.10'!U13 -> 0.5369097973 | V13: ='B5.2.11'!V13/'B5.2.10'!V13 -> 0.5405766971 | W13: ='B5.2.11'!W13/'B5.2.10'!W13 -> 0.5156064388 | X13: ='B5.2.11'!X13/'B5.2.10'!X13 -> 0.49231671 | Y13: ='B5.2.11'!Y13/'B5.2.10'!Y13 -> 0.4733638437 | Z13: ='B5.2.11'!Z13/'B5.2.10'!Z13 -> 0.4581331065
E14: v tom | F14: 4letá | J14: x | K14: x | L14: ='B5.2.11'!L14/'B5.2.10'!L14 -> 0.7484561548 | M14: ='B5.2.11'!M14/'B5.2.10'!M14 -> 0.7161812771 | N14: ='B5.2.11'!N14/'B5.2.10'!N14 -> 0.7961567229 | O14: ='B5.2.11'!O14/'B5.2.10'!O14 -> 0.8119016665 | P14: ='B5.2.11'!P14/'B5.2.10'!P14 -> 0.5241744207 | Q14: ='B5.2.11'!Q14/'B5.2.10'!Q14 -> 0.6085171526 | R14: ='B5.2.11'!R14/'B5.2.10'!R14 -> 0.6034433895 | S14: ='B5.2.11'!S14/'B5.2.10'!S14 -> 0.6746329203 | T14: ='B5.2.11'!T14/'B5.2.10'!T14 -> 0.6746521739 | U14: ='B5.2.11'!U14/'B5.2.10'!U14 -> 0.6505677075 | V14: ='B5.2.11'!V14/'B5.2.10'!V14 -> 0.6766404621 | W14: ='B5.2.11'!W14/'B5.2.10'!W14 -> 0.65575249 | X14: ='B5.2.11'!X14/'B5.2.10'!X14 -> 0.6484738147 | Y14: ='B5.2.11'!Y14/'B5.2.10'!Y14 -> 0.650273224 | Z14: ='B5.2.11'!Z14/'B5.2.10'!Z14 -> 0.6392584841
F15: 6letá | J15: x | K15: x | L15: ='B5.2.11'!L15/'B5.2.10'!L15 -> 0.4359683794 | M15: ='B5.2.11'!M15/'B5.2.10'!M15 -> 0.412139378 | N15: ='B5.2.11'!N15/'B5.2.10'!N15 -> 0.5087292818 | O15: ='B5.2.11'!O15/'B5.2.10'!O15 -> 0.5820322498 | P15: ='B5.2.11'!P15/'B5.2.10'!P15 -> 0.4992199688 | Q15: ='B5.2.11'!Q15/'B5.2.10'!Q15 -> 0.5171127688 | R15: ='B5.2.11'!R15/'B5.2.10'!R15 -> 0.4736941354 | S15: ='B5.2.11'!S15/'B5.2.10'!S15 -> 0.4865082561 | T15: ='B5.2.11'!T15/'B5.2.10'!T15 -> 0.455836253 | U15: ='B5.2.11'!U15/'B5.2.10'!U15 -> 0.41700611 | V15: ='B5.2.11'!V15/'B5.2.10'!V15 -> 0.433680834 | W15: ='B5.2.11'!W15/'B5.2.10'!W15 -> 0.4174984404 | X15: ='B5.2.11'!X15/'B5.2.10'!X15 -> 0.389101862 | Y15: ='B5.2.11'!Y15/'B5.2.10'!Y15 -> 0.3332167017 | Z15: ='B5.2.11'!Z15/'B5.2.10'!Z15 -> 0.3145811789
F16: 8letá | J16: x | K16: x | L16: ='B5.2.11'!L16/'B5.2.10'!L16 -> 0.5237134208 | M16: ='B5.2.11'!M16/'B5.2.10'!M16 -> 0.5769563605 | N16: ='B5.2.11'!N16/'B5.2.10'!N16 -> 0.5978511128 | O16: ='B5.2.11'!O16/'B5.2.10'!O16 -> 0.5878672112 | P16: ='B5.2.11'!P16/'B5.2.10'!P16 -> 0.4746994821 | Q16: ='B5.2.11'!Q16/'B5.2.10'!Q16 -> 0.4802758488 | R16: ='B5.2.11'!R16/'B5.2.10'!R16 -> 0.4748762149 | S16: ='B5.2.11'!S16/'B5.2.10'!S16 -> 0.4542613239 | T16: ='B5.2.11'!T16/'B5.2.10'!T16 -> 0.4597199908 | U16: ='B5.2.11'!U16/'B5.2.10'!U16 -> 0.446899692 | V16: ='B5.2.11'!V16/'B5.2.10'!V16 -> 0.4276958754 | W16: ='B5.2.11'!W16/'B5.2.10'!W16 -> 0.4030797448 | X16: ='B5.2.11'!X16/'B5.2.10'!X16 -> 0.3830822557 | Y16: ='B5.2.11'!Y16/'B5.2.10'!Y16 -> 0.3693187143 | Z16: ='B5.2.11'!Z16/'B5.2.10'!Z16 -> 0.3567806794
E17: Veřejný | J17: 0.5581347204 | K17: 0.5501189091 | L17: ='B5.2.11'!L17/'B5.2.10'!L17 -> 0.6056088868 | M17: ='B5.2.11'!M17/'B5.2.10'!M17 -> 0.6213935178 | N17: ='B5.2.11'!N17/'B5.2.10'!N17 -> 0.6762365236 | O17: ='B5.2.11'!O17/'B5.2.10'!O17 -> 0.689793614 | P17: ='B5.2.11'!P17/'B5.2.10'!P17 -> 0.4944593908 | Q17: ='B5.2.11'!Q17/'B5.2.10'!Q17 -> 0.5432737923 | R17: ='B5.2.11'!R17/'B5.2.10'!R17 -> 0.5303416829 | S17: ='B5.2.11'!S17/'B5.2.10'!S17 -> 0.5538924202 | T17: ='B5.2.11'!T17/'B5.2.10'!T17 -> 0.5500736377 | U17: ='B5.2.11'!U17/'B5.2.10'!U17 -> 0.5292321022 | V17: ='B5.2.11'!V17/'B5.2.10'!V17 -> 0.5326750046 | W17: ='B5.2.11'!W17/'B5.2.10'!W17 -> 0.5087456175 | X17: ='B5.2.11'!X17/'B5.2.10'!X17 -> 0.4869224997 | Y17: ='B5.2.11'!Y17/'B5.2.10'!Y17 -> 0.4710628447 | Z17: ='B5.2.11'!Z17/'B5.2.10'!Z17 -> 0.4545135286
E18: v tom | F18: 4letá | J18: 0.7275940419 | K18: 0.7309908556 | L18: ='B5.2.11'!L18/'B5.2.10'!L18 -> 0.7536811594 | M18: ='B5.2.11'!M18/'B5.2.10'!M18 -> 0.7236042012 | N18: ='B5.2.11'!N18/'B5.2.10'!N18 -> 0.8000900206 | O18: ='B5.2.11'!O18/'B5.2.10'!O18 -> 0.8128395389 | P18: ='B5.2.11'!P18/'B5.2.10'!P18 -> 0.5137011326 | Q18: ='B5.2.11'!Q18/'B5.2.10'!Q18 -> 0.597581841 | R18: ='B5.2.11'!R18/'B5.2.10'!R18 -> 0.5911739897 | S18: ='B5.2.11'!S18/'B5.2.10'!S18 -> 0.6706164548 | T18: ='B5.2.11'!T18/'B5.2.10'!T18 -> 0.6684185606 | U18: ='B5.2.11'!U18/'B5.2.10'!U18 -> 0.6449728636 | V18: ='B5.2.11'!V18/'B5.2.10'!V18 -> 0.6704605611 | W18: ='B5.2.11'!W18/'B5.2.10'!W18 -> 0.650100854 | X18: ='B5.2.11'!X18/'B5.2.10'!X18 -> 0.644707655 | Y18: ='B5.2.11'!Y18/'B5.2.10'!Y18 -> 0.6473233045 | Z18: ='B5.2.11'!Z18/'B5.2.10'!Z18 -> 0.6345866484
F19: 6letá | J19: 0.3777185974 | K19: 0.3221724742 | L19: ='B5.2.11'!L19/'B5.2.10'!L19 -> 0.4022075055 | M19: ='B5.2.11'!M19/'B5.2.10'!M19 -> 0.3828667649 | N19: ='B5.2.11'!N19/'B5.2.10'!N19 -> 0.4865881173 | O19: ='B5.2.11'!O19/'B5.2.10'!O19 -> 0.5633237822 | P19: ='B5.2.11'!P19/'B5.2.10'!P19 -> 0.4835924007 | Q19: ='B5.2.11'!Q19/'B5.2.10'!Q19 -> 0.5061195104 | R19: ='B5.2.11'!R19/'B5.2.10'!R19 -> 0.4503365287 | S19: ='B5.2.11'!S19/'B5.2.10'!S19 -> 0.4649866191 | T19: ='B5.2.11'!T19/'B5.2.10'!T19 -> 0.4379979571 | U19: ='B5.2.11'!U19/'B5.2.10'!U19 -> 0.3943347 | V19: ='B5.2.11'!V19/'B5.2.10'!V19 -> 0.4038666194 | W19: ='B5.2.11'!W19/'B5.2.10'!W19 -> 0.3892339545 | X19: ='B5.2.11'!X19/'B5.2.10'!X19 -> 0.3559038344 | Y19: ='B5.2.11'!Y19/'B5.2.10'!Y19 -> 0.3107198343 | Z19: ='B5.2.11'!Z19/'B5.2.10'!Z19 -> 0.2987312572
F20: 8letá | J20: 0.4558027661 | K20: 0.456928839 | L20: ='B5.2.11'!L20/'B5.2.10'!L20 -> 0.507593493 | M20: ='B5.2.11'!M20/'B5.2.10'!M20 -> 0.5711477711 | N20: ='B5.2.11'!N20/'B5.2.10'!N20 -> 0.591219654 | O20: ='B5.2.11'!O20/'B5.2.10'!O20 -> 0.5833208001 | P20: ='B5.2.11'!P20/'B5.2.10'!P20 -> 0.4657325948 | Q20: ='B5.2.11'!Q20/'B5.2.10'!Q20 -> 0.4725768846 | R20: ='B5.2.11'!R20/'B5.2.10'!R20 -> 0.4668049793 | S20: ='B5.2.11'!S20/'B5.2.10'!S20 -> 0.4443007972 | T20: ='B5.2.11'!T20/'B5.2.10'!T20 -> 0.4463003351 | U20: ='B5.2.11'!U20/'B5.2.10'!U20 -> 0.4351681797 | V20: ='B5.2.11'!V20/'B5.2.10'!V20 -> 0.4169121553 | W20: ='B5.2.11'!W20/'B5.2.10'!W20 -> 0.3918086589 | X20: ='B5.2.11'!X20/'B5.2.10'!X20 -> 0.3728880003 | Y20: ='B5.2.11'!Y20/'B5.2.10'!Y20 -> 0.3624843899 | Z20: ='B5.2.11'!Z20/'B5.2.10'!Z20 -> 0.348120764
E21: Privátní sektor | J21: x | K21: x | L21: ='B5.2.11'!L21/'B5.2.10'!L21 -> 0.7007513884 | M21: ='B5.2.11'!M21/'B5.2.10'!M21 -> 0.6492512479 | N21: ='B5.2.11'!N21/'B5.2.10'!N21 -> 0.7037440931 | O21: ='B5.2.11'!O21/'B5.2.10'!O21 -> 0.738863915 | P21: ='B5.2.11'!P21/'B5.2.10'!P21 -> 0.6650568182 | Q21: ='B5.2.11'!Q21/'B5.2.10'!Q21 -> 0.6822461332 | R21: ='B5.2.11'!R21/'B5.2.10'!R21 -> 0.6949728261 | S21: ='B5.2.11'!S21/'B5.2.10'!S21 -> 0.7349737797 | T21: ='B5.2.11'!T21/'B5.2.10'!T21 -> 0.7505584512 | U21: ='B5.2.11'!U21/'B5.2.10'!U21 -> 0.7164863979 | V21: ='B5.2.11'!V21/'B5.2.10'!V21 -> 0.7002412545 | W21: ='B5.2.11'!W21/'B5.2.10'!W21 -> 0.669575007 | X21: ='B5.2.11'!X21/'B5.2.10'!X21 -> 0.6348993289 | Y21: ='B5.2.11'!Y21/'B5.2.10'!Y21 -> 0.5768833849 | Z21: ='B5.2.11'!Z21/'B5.2.10'!Z21 -> 0.5418138987
E22: v tom | F22: 4letá | J22: x | K22: x | L22: ='B5.2.11'!L22/'B5.2.10'!L22 -> 0.6790849673 | M22: ='B5.2.11'!M22/'B5.2.10'!M22 -> 0.6466836735 | N22: ='B5.2.11'!N22/'B5.2.10'!N22 -> 0.7251461988 | O22: ='B5.2.11'!O22/'B5.2.10'!O22 -> 0.8275862069 | P22: ='B5.2.11'!P22/'B5.2.10'!P22 -> 0.7025028441 | Q22: ='B5.2.11'!Q22/'B5.2.10'!Q22 -> 0.75600874 | R22: ='B5.2.11'!R22/'B5.2.10'!R22 -> 0.7748287671 | S22: ='B5.2.11'!S22/'B5.2.10'!S22 -> 0.7880724175 | T22: ='B5.2.11'!T22/'B5.2.10'!T22 -> 0.8479166667 | U22: ='B5.2.11'!U22/'B5.2.10'!U22 -> 0.7868150685 | V22: ='B5.2.11'!V22/'B5.2.10'!V22 -> 0.7675334909 | W22: ='B5.2.11'!W22/'B5.2.10'!W22 -> 0.7964676198 | X22: ='B5.2.11'!X22/'B5.2.10'!X22 -> 0.7855648536 | Y22: ='B5.2.11'!Y22/'B5.2.10'!Y22 -> 0.7577777778 | Z22: ='B5.2.11'!Z22/'B5.2.10'!Z22 -> 0.7399411187
F23: 6letá | J23: x | K23: x | L23: ='B5.2.11'!L23/'B5.2.10'!L23 -> 0.7252475248 | M23: ='B5.2.11'!M23/'B5.2.10'!M23 -> 0.7156626506 | N23: ='B5.2.11'!N23/'B5.2.10'!N23 -> 0.7055837563 | O23: ='B5.2.11'!O23/'B5.2.10'!O23 -> 0.7213622291 | P23: ='B5.2.11'!P23/'B5.2.10'!P23 -> 0.6268292683 | Q23: ='B5.2.11'!Q23/'B5.2.10'!Q23 -> 0.5819935691 | R23: ='B5.2.11'!R23/'B5.2.10'!R23 -> 0.7620578778 | S23: ='B5.2.11'!S23/'B5.2.10'!S23 -> 0.6755319149 | T23: ='B5.2.11'!T23/'B5.2.10'!T23 -> 0.6519480519 | U23: ='B5.2.11'!U23/'B5.2.10'!U23 -> 0.6467532468 | V23: ='B5.2.11'!V23/'B5.2.10'!V23 -> 0.7310195228 | W23: ='B5.2.11'!W23/'B5.2.10'!W23 -> 0.6848249027 | X23: ='B5.2.11'!X23/'B5.2.10'!X23 -> 0.7249544627 | Y23: ='B5.2.11'!Y23/'B5.2.10'!Y23 -> 0.5841121495 | Z23: ='B5.2.11'!Z23/'B5.2.10'!Z23 -> 0.5014084507
F24: 8letá | J24: x | K24: x | L24: ='B5.2.11'!L24/'B5.2.10'!L24 -> 0.7213842059 | M24: ='B5.2.11'!M24/'B5.2.10'!M24 -> 0.626223092 | N24: ='B5.2.11'!N24/'B5.2.10'!N24 -> 0.6734074823 | O24: ='B5.2.11'!O24/'B5.2.10'!O24 -> 0.6320855615 | P24: ='B5.2.11'!P24/'B5.2.10'!P24 -> 0.6279585799 | Q24: ='B5.2.11'!Q24/'B5.2.10'!Q24 -> 0.6279069767 | R24: ='B5.2.11'!R24/'B5.2.10'!R24 -> 0.6170648464 | S24: ='B5.2.11'!S24/'B5.2.10'!S24 -> 0.7113402062 | T24: ='B5.2.11'!T24/'B5.2.10'!T24 -> 0.7091722595 | U24: ='B5.2.11'!U24/'B5.2.10'!U24 -> 0.6795727637 | V24: ='B5.2.11'!V24/'B5.2.10'!V24 -> 0.6374527112 | W24: ='B5.2.11'!W24/'B5.2.10'!W24 -> 0.5837837838 | X24: ='B5.2.11'!X24/'B5.2.10'!X24 -> 0.5477477477 | Y24: ='B5.2.11'!Y24/'B5.2.10'!Y24 -> 0.5051413882 | Z24: ='B5.2.11'!Z24/'B5.2.10'!Z24 -> 0.472972973
E25: Církev | J25: x | K25: x | L25: ='B5.2.11'!L25/'B5.2.10'!L25 -> 0.6518396485 | M25: ='B5.2.11'!M25/'B5.2.10'!M25 -> 0.6335758836 | N25: ='B5.2.11'!N25/'B5.2.10'!N25 -> 0.6930294906 | O25: ='B5.2.11'!O25/'B5.2.10'!O25 -> 0.6765755054 | P25: ='B5.2.11'!P25/'B5.2.10'!P25 -> 0.4882747069 | Q25: ='B5.2.11'!Q25/'B5.2.10'!Q25 -> 0.5573643411 | R25: ='B5.2.11'!R25/'B5.2.10'!R25 -> 0.5565749235 | S25: ='B5.2.11'!S25/'B5.2.10'!S25 -> 0.4870848708 | T25: ='B5.2.11'!T25/'B5.2.10'!T25 -> 0.4937223043 | U25: ='B5.2.11'!U25/'B5.2.10'!U25 -> 0.4731289153 | V25: ='B5.2.11'!V25/'B5.2.10'!V25 -> 0.4929671802 | W25: ='B5.2.11'!W25/'B5.2.10'!W25 -> 0.4545739348 | X25: ='B5.2.11'!X25/'B5.2.10'!X25 -> 0.4254014599 | Y25: ='B5.2.11'!Y25/'B5.2.10'!Y25 -> 0.3991068937 | Z25: ='B5.2.11'!Z25/'B5.2.10'!Z25 -> 0.4229822161
E26: v tom | F26: 4letá | J26: x | K26: x | L26: ='B5.2.11'!L26/'B5.2.10'!L26 -> 0.773006135 | M26: ='B5.2.11'!M26/'B5.2.10'!M26 -> 0.6860879905 | N26: ='B5.2.11'!N26/'B5.2.10'!N26 -> 0.874186551 | O26: ='B5.2.11'!O26/'B5.2.10'!O26 -> 0.7605633803 | P26: ='B5.2.11'!P26/'B5.2.10'!P26 -> 0.5259549461 | Q26: ='B5.2.11'!Q26/'B5.2.10'!Q26 -> 0.6882022472 | R26: ='B5.2.11'!R26/'B5.2.10'!R26 -> 0.7259713701 | S26: ='B5.2.11'!S26/'B5.2.10'!S26 -> 0.6491620112 | T26: ='B5.2.11'!T26/'B5.2.10'!T26 -> 0.6369565217 | U26: ='B5.2.11'!U26/'B5.2.10'!U26 -> 0.6147227533 | V26: ='B5.2.11'!V26/'B5.2.10'!V26 -> 0.7015075377 | W26: ='B5.2.11'!W26/'B5.2.10'!W26 -> 0.6205533597 | X26: ='B5.2.11'!X26/'B5.2.10'!X26 -> 0.6059979317 | Y26: ='B5.2.11'!Y26/'B5.2.10'!Y26 -> 0.6214750542 | Z26: ='B5.2.11'!Z26/'B5.2.10'!Z26 -> 0.6526639344
F27: 6letá | J27: x | K27: x | L27: ='B5.2.11'!L27/'B5.2.10'!L27 -> 0.7222222222 | M27: ='B5.2.11'!M27/'B5.2.10'!M27 -> 0.488372093 | N27: ='B5.2.11'!N27/'B5.2.10'!N27 -> 0.5845070423 | O27: ='B5.2.11'!O27/'B5.2.10'!O27 -> 0.7978723404 | P27: ='B5.2.11'!P27/'B5.2.10'!P27 -> 0.7325581395 | Q27: ='B5.2.11'!Q27/'B5.2.10'!Q27 -> 0.8375 | R27: ='B5.2.11'!R27/'B5.2.10'!R27 -> 0.7528089888 | S27: ='B5.2.11'!S27/'B5.2.10'!S27 -> 0.7264150943 | T27: ='B5.2.11'!T27/'B5.2.10'!T27 -> 0.5384615385 | U27: ='B5.2.11'!U27/'B5.2.10'!U27 -> 0.6524822695 | V27: ='B5.2.11'!V27/'B5.2.10'!V27 -> 0.6617647059 | W27: ='B5.2.11'!W27/'B5.2.10'!W27 -> 0.6764705882 | X27: ='B5.2.11'!X27/'B5.2.10'!X27 -> 0.5737704918 | Y27: ='B5.2.11'!Y27/'B5.2.10'!Y27 -> 0.3942307692 | Z27: ='B5.2.11'!Z27/'B5.2.10'!Z27 -> 0.3310344828
F28: 8letá | J28: x | K28: x | L28: ='B5.2.11'!L28/'B5.2.10'!L28 -> 0.5675934803 | M28: ='B5.2.11'!M28/'B5.2.10'!M28 -> 0.6125137212 | N28: ='B5.2.11'!N28/'B5.2.10'!N28 -> 0.6164229471 | O28: ='B5.2.11'!O28/'B5.2.10'!O28 -> 0.6080084299 | P28: ='B5.2.11'!P28/'B5.2.10'!P28 -> 0.4418423107 | Q28: ='B5.2.11'!Q28/'B5.2.10'!Q28 -> 0.4441340782 | R28: ='B5.2.11'!R28/'B5.2.10'!R28 -> 0.4383473209 | S28: ='B5.2.11'!S28/'B5.2.10'!S28 -> 0.3873610298 | T28: ='B5.2.11'!T28/'B5.2.10'!T28 -> 0.4097264438 | U28: ='B5.2.11'!U28/'B5.2.10'!U28 -> 0.3791982665 | V28: ='B5.2.11'!V28/'B5.2.10'!V28 -> 0.3687331536 | W28: ='B5.2.11'!W28/'B5.2.10'!W28 -> 0.3628488932 | X28: ='B5.2.11'!X28/'B5.2.10'!X28 -> 0.3367032967 | Y28: ='B5.2.11'!Y28/'B5.2.10'!Y28 -> 0.3159396657 | Z28: ='B5.2.11'!Z28/'B5.2.10'!Z28 -> 0.340309753
D29: Komentáře: | Z29: Zdroj: databáze MŠMT
D30: 1) | E30: Do školního roku 2008/09 v rámci prvního kola přijímacího řízení mohli žáci podat přihlášku pouze na jednu školu, ve školním roce 2009/10 byl systém přijímacího řízení změněn a žáci si mohli podat tři přihlášky, údaje s minulými léty jsou proto nesrovnatelné.
D31: 2) | E31: Od školního roku 2012/13 v rámci prvního kola přijímacího řízení byl systém přijímacího řízení změněn a žáci si mohli podat pouze 2 přihlášky, údaje s minulými léty jsou proto nesrovnatelné.

Sheet B5.2.13
D4: Tab. B5.2.13: | H4: SŠ obory odpovídající gymnáziím, denní forma vzdělávání – žáci
B5: 0 | D5: ve školním roce 2009/10 až 2019/20 – podle území
D7: Území | J7: 2003/04 | K7: 2004/05 | L7: 2005/06 | M7: 2006/07 | N7: 2007/08 | O7: 2008/09 | P7: 2009/10 | Q7: 2010/11 | R7: 2011/12 | S7: 2012/13 | T7: 2013/14 | U7: 2014/15 | V7: 2015/16 | W7: 2016/17 | X7: 2017/18 | Y7: 2018/19 | Z7: 2019/20
E12: Česká republika | H12: CZ0 | J12: 142449 | K12: 142647 | L12: 143758 | M12: 145450 | N12: 145447 | O12: 145044 | P12: 142902 | Q12: 138157 | R12: 134342 | S12: 130385 | T12: 128000 | U12: 127205 | V12: 127643 | W12: 128621 | X12: 129207 | Y12: 129866 | Z12: 130481
E13: Praha | H13: CZ01 | J13: 23295 | K13: 23380 | L13: 23779 | M13: 24307 | N13: 24550 | O13: 24481 | P13: 24331 | Q13: 23647 | R13: 23450 | S13: 23174 | T13: 22928 | U13: 23006 | V13: 23396 | W13: 23991 | X13: 24361 | Y13: 24823 | Z13: 25160
F14: Hlavní město Praha | H14: CZ010 | J14: 23295 | K14: 23380 | L14: 23779 | M14: 24307 | N14: 24550 | O14: 24481 | P14: 24331 | Q14: 23647 | R14: 23450 | S14: 23174 | T14: 22928 | U14: 23006 | V14: 23396 | W14: 23991 | X14: 24361 | Y14: 24823 | Z14: 25160
E15: Střední Čechy | H15: CZ02 | J15: 12884 | K15: 12771 | L15: 12906 | M15: 12966 | N15: 12955 | O15: 12935 | P15: 12782 | Q15: 12536 | R15: 12179 | S15: 11958 | T15: 11977 | U15: 12088 | V15: 12158 | W15: 12404 | X15: 12484 | Y15: 12620 | Z15: 12775
F16: Středočeský kraj | H16: CZ020 | J16: 12884 | K16: 12771 | L16: 12906 | M16: 12966 | N16: 12955 | O16: 12935 | P16: 12782 | Q16: 12536 | R16: 12179 | S16: 11958 | T16: 11977 | U16: 12088 | V16: 12158 | W16: 12404 | X16: 12484 | Y16: 12620 | Z16: 12775
E17: Jihozápad | H17: CZ03 | J17: 15654 | K17: 15549 | L17: 15448 | M17: 15621 | N17: 15576 | O17: 15520 | P17: 15326 | Q17: 14825 | R17: 14459 | S17: 14072 | T17: 13840 | U17: 13747 | V17: 13751 | W17: 13824 | X17: 13946 | Y17: 13998 | Z17: 14066
F18: Jihočeský kraj | H18: CZ031 | J18: 9123 | K18: 9059 | L18: 9006 | M18: 9056 | N18: 8983 | O18: 8991 | P18: 8864 | Q18: 8546 | R18: 8263 | S18: 8024 | T18: 7869 | U18: 7766 | V18: 7769 | W18: 7763 | X18: 7778 | Y18: 7810 | Z18: 7810
F19: Plzeňský kraj | H19: CZ032 | J19: 6531 | K19: 6490 | L19: 6442 | M19: 6565 | N19: 6593 | O19: 6529 | P19: 6462 | Q19: 6279 | R19: 6196 | S19: 6048 | T19: 5971 | U19: 5981 | V19: 5982 | W19: 6061 | X19: 6168 | Y19: 6188 | Z19: 6256
E20: Severozápad | H20: CZ04 | J20: 12265 | K20: 12246 | L20: 12416 | M20: 12608 | N20: 12630 | O20: 12684 | P20: 12504 | Q20: 12172 | R20: 11880 | S20: 11512 | T20: 11412 | U20: 11305 | V20: 11431 | W20: 11522 | X20: 11450 | Y20: 11287 | Z20: 11249
F21: Karlovarský kraj | H21: CZ041 | J21: 3293 | K21: 3362 | L21: 3448 | M21: 3574 | N21: 3662 | O21: 3654 | P21: 3632 | Q21: 3591 | R21: 3479 | S21: 3363 | T21: 3354 | U21: 3328 | V21: 3357 | W21: 3366 | X21: 3300 | Y21: 3256 | Z21: 3236
F22: Ústecký kraj | H22: CZ042 | J22: 8972 | K22: 8884 | L22: 8968 | M22: 9034 | N22: 8968 | O22: 9030 | P22: 8872 | Q22: 8581 | R22: 8401 | S22: 8149 | T22: 8058 | U22: 7977 | V22: 8074 | W22: 8156 | X22: 8150 | Y22: 8031 | Z22: 8013
E23: Severovýchod | H23: CZ05 | J23: 19751 | K23: 19656 | L23: 19532 | M23: 19501 | N23: 19370 | O23: 19287 | P23: 19079 | Q23: 18514 | R23: 17920 | S23: 17201 | T23: 16887 | U23: 16672 | V23: 16643 | W23: 16695 | X23: 16611 | Y23: 16654 | Z23: 16714
F24: Liberecký kraj | H24: CZ051 | J24: 4918 | K24: 4858 | L24: 4843 | M24: 4866 | N24: 4803 | O24: 4844 | P24: 4790 | Q24: 4703 | R24: 4575 | S24: 4340 | T24: 4211 | U24: 4086 | V24: 4036 | W24: 3956 | X24: 3984 | Y24: 4014 | Z24: 4034
F25: Královéhradecký kraj | H25: CZ052 | J25: 7523 | K25: 7530 | L25: 7485 | M25: 7475 | N25: 7442 | O25: 7382 | P25: 7379 | Q25: 7172 | R25: 7040 | S25: 6847 | T25: 6689 | U25: 6647 | V25: 6604 | W25: 6695 | X25: 6683 | Y25: 6646 | Z25: 6699
F26: Pardubický kraj | H26: CZ053 | J26: 7310 | K26: 7268 | L26: 7204 | M26: 7160 | N26: 7125 | O26: 7061 | P26: 6910 | Q26: 6639 | R26: 6305 | S26: 6014 | T26: 5987 | U26: 5939 | V26: 6003 | W26: 6044 | X26: 5944 | Y26: 5994 | Z26: 5981
E27: Jihovýchod | H27: CZ06 | J27: 25189 | K27: 25175 | L27: 25165 | M27: 25256 | N27: 24979 | O27: 24825 | P27: 24294 | Q27: 23323 | R27: 22593 | S27: 21704 | T27: 21216 | U27: 21142 | V27: 21263 | W27: 21410 | X27: 21651 | Y27: 21763 | Z27: 21754
F28: Kraj Vysočina | H28: CZ063 | J28: 6864 | K28: 6813 | L28: 6871 | M28: 6949 | N28: 6936 | O28: 6914 | P28: 6791 | Q28: 6472 | R28: 6315 | S28: 6120 | T28: 6063 | U28: 6101 | V28: 6117 | W28: 6130 | X28: 6191 | Y28: 6191 | Z28: 6146
F29: Jihomoravský kraj | H29: CZ064 | J29: 18325 | K29: 18362 | L29: 18294 | M29: 18307 | N29: 18043 | O29: 17911 | P29: 17503 | Q29: 16851 | R29: 16278 | S29: 15584 | T29: 15153 | U29: 15041 | V29: 15146 | W29: 15280 | X29: 15460 | Y29: 15572 | Z29: 15608
E30: Střední Morava | H30: CZ07 | J30: 17269 | K30: 17421 | L30: 17807 | M30: 18117 | N30: 18250 | O30: 18199 | P30: 17854 | Q30: 17183 | R30: 16607 | S30: 16056 | T30: 15656 | U30: 15443 | V30: 15361 | W30: 15289 | X30: 15309 | Y30: 15364 | Z30: 15367
F31: Olomoucký kraj | H31: CZ071 | J31: 9684 | K31: 9695 | L31: 9937 | M31: 10027 | N31: 10081 | O31: 10011 | P31: 9751 | Q31: 9345 | R31: 8974 | S31: 8679 | T31: 8462 | U31: 8334 | V31: 8277 | W31: 8134 | X31: 8117 | Y31: 8112 | Z31: 8087
F32: Zlínský kraj | H32: CZ072 | J32: 7585 | K32: 7726 | L32: 7870 | M32: 8090 | N32: 8169 | O32: 8188 | P32: 8103 | Q32: 7838 | R32: 7633 | S32: 7377 | T32: 7194 | U32: 7109 | V32: 7084 | W32: 7155 | X32: 7192 | Y32: 7252 | Z32: 7280
E33: Moravskoslezsko | H33: CZ08 | J33: 16142 | K33: 16449 | L33: 16705 | M33: 17074 | N33: 17137 | O33: 17113 | P33: 16732 | Q33: 15957 | R33: 15254 | S33: 14708 | T33: 14084 | U33: 13802 | V33: 13640 | W33: 13486 | X33: 13395 | Y33: 13357 | Z33: 13396
F34: Moravskoslezský kraj | H34: CZ080 | J34: 16142 | K34: 16449 | L34: 16705 | M34: 17074 | N34: 17137 | O34: 17113 | P34: 16732 | Q34: 15957 | R34: 15254 | S34: 14708 | T34: 14084 | U34: 13802 | V34: 13640 | W34: 13486 | X34: 13395 | Y34: 13357 | Z34: 13396
Z35: Zdroj: databáze MŠMT

Sheet B5.2.14
D4: Tab. B5.2.14: | H4: SŠ obory odpovídající gymnáziím, čtyřletá denní forma vzdělávání – nově přijatí
B5: 0 | D5: ve školním roce 2009/10 až 2019/20 – podle území
D7: Území | J7: 2003/04 | K7: 2004/05 | L7: 2005/06 | M7: 2006/07 | N7: 2007/08 | O7: 2008/09 | P7: 2009/10 | Q7: 2010/11 | R7: 2011/12 | S7: 2012/13 | T7: 2013/14 | U7: 2014/15 | V7: 2015/16 | W7: 2016/17 | X7: 2017/18 | Y7: 2018/19 | Z7: 2019/20
E12: Česká republika | H12: CZ0 | J12: 14603 | K12: 14776 | L12: 15123 | M12: 15830 | N12: 14664 | O12: 14688 | P12: 13472 | Q12: 12262 | R12: 11740 | S12: 11713 | T12: 11877 | U12: 11745 | V12: 12125 | W12: 12142 | X12: 11954 | Y12: 11996 | Z12: 12327
E13: Praha | H13: CZ01 | J13: 2241 | K13: 2224 | L13: 2308 | M13: 2370 | N13: 2105 | O13: 2126 | P13: 2077 | Q13: 1814 | R13: 1751 | S13: 1631 | T13: 1721 | U13: 1651 | V13: 1788 | W13: 1789 | X13: 1801 | Y13: 1851 | Z13: 1939
F14: Hlavní město Praha | H14: CZ010 | J14: 2241 | K14: 2224 | L14: 2308 | M14: 2370 | N14: 2105 | O14: 2126 | P14: 2077 | Q14: 1814 | R14: 1751 | S14: 1631 | T14: 1721 | U14: 1651 | V14: 1788 | W14: 1789 | X14: 1801 | Y14: 1851 | Z14: 1939
E15: Střední Čechy | H15: CZ02 | J15: 1325 | K15: 1345 | L15: 1418 | M15: 1343 | N15: 1316 | O15: 1355 | P15: 1236 | Q15: 1109 | R15: 1082 | S15: 1068 | T15: 1156 | U15: 1100 | V15: 1080 | W15: 1177 | X15: 1130 | Y15: 1141 | Z15: 1216
F16: Středočeský kraj | H16: CZ020 | J16: 1325 | K16: 1345 | L16: 1418 | M16: 1343 | N16: 1316 | O16: 1355 | P16: 1236 | Q16: 1109 | R16: 1082 | S16: 1068 | T16: 1156 | U16: 1100 | V16: 1080 | W16: 1177 | X16: 1130 | Y16: 1141 | Z16: 1216
E17: Jihozápad | H17: CZ03 | J17: 1334 | K17: 1386 | L17: 1420 | M17: 1426 | N17: 1362 | O17: 1412 | P17: 1263 | Q17: 1170 | R17: 1096 | S17: 1082 | T17: 1083 | U17: 1083 | V17: 1089 | W17: 1114 | X17: 1116 | Y17: 1082 | Z17: 1097
F18: Jihočeský kraj | H18: CZ031 | J18: 902 | K18: 905 | L18: 938 | M18: 914 | N18: 879 | O18: 946 | P18: 842 | Q18: 797 | R18: 722 | S18: 713 | T18: 702 | U18: 677 | V18: 676 | W18: 697 | X18: 673 | Y18: 668 | Z18: 673
F19: Plzeňský kraj | H19: CZ032 | J19: 432 | K19: 481 | L19: 482 | M19: 512 | N19: 483 | O19: 466 | P19: 421 | Q19: 373 | R19: 374 | S19: 369 | T19: 381 | U19: 406 | V19: 413 | W19: 417 | X19: 443 | Y19: 414 | Z19: 424
E20: Severozápad | H20: CZ04 | J20: 1266 | K20: 1257 | L20: 1350 | M20: 1473 | N20: 1290 | O20: 1339 | P20: 1151 | Q20: 1133 | R20: 999 | S20: 1043 | T20: 1073 | U20: 1110 | V20: 1126 | W20: 1073 | X20: 1058 | Y20: 994 | Z20: 1073
F21: Karlovarský kraj | H21: CZ041 | J21: 314 | K21: 320 | L21: 332 | M21: 405 | N21: 366 | O21: 315 | P21: 261 | Q21: 255 | R21: 209 | S21: 209 | T21: 226 | U21: 223 | V21: 228 | W21: 194 | X21: 196 | Y21: 174 | Z21: 195
F22: Ústecký kraj | H22: CZ042 | J22: 952 | K22: 937 | L22: 1018 | M22: 1068 | N22: 924 | O22: 1024 | P22: 890 | Q22: 878 | R22: 790 | S22: 834 | T22: 847 | U22: 887 | V22: 898 | W22: 879 | X22: 862 | Y22: 820 | Z22: 878
E23: Severovýchod | H23: CZ05 | J23: 1965 | K23: 1926 | L23: 1895 | M23: 2010 | N23: 1966 | O23: 1964 | P23: 1788 | Q23: 1672 | R23: 1521 | S23: 1531 | T23: 1626 | U23: 1568 | V23: 1641 | W23: 1615 | X23: 1573 | Y23: 1688 | Z23: 1700
F24: Liberecký kraj | H24: CZ051 | J24: 458 | K24: 413 | L24: 402 | M24: 454 | N24: 437 | O24: 424 | P24: 403 | Q24: 383 | R24: 373 | S24: 358 | T24: 378 | U24: 329 | V24: 371 | W24: 352 | X24: 398 | Y24: 419 | Z24: 420
F25: Královéhradecký kraj | H25: CZ052 | J25: 792 | K25: 793 | L25: 750 | M25: 793 | N25: 787 | O25: 788 | P25: 713 | Q25: 671 | R25: 623 | S25: 608 | T25: 617 | U25: 659 | V25: 624 | W25: 638 | X25: 592 | Y25: 644 | Z25: 662
F26: Pardubický kraj | H26: CZ053 | J26: 715 | K26: 720 | L26: 743 | M26: 763 | N26: 742 | O26: 752 | P26: 672 | Q26: 618 | R26: 525 | S26: 565 | T26: 631 | U26: 580 | V26: 646 | W26: 625 | X26: 583 | Y26: 625 | Z26: 618
E27: Jihovýchod | H27: CZ06 | J27: 2539 | K27: 2474 | L27: 2519 | M27: 2736 | N27: 2501 | O27: 2475 | P27: 2264 | Q27: 2161 | R27: 2089 | S27: 2018 | T27: 2056 | U27: 2106 | V27: 2164 | W27: 2134 | X27: 2151 | Y27: 2121 | Z27: 2163
F28: Kraj Vysočina | H28: CZ063 | J28: 695 | K28: 700 | L28: 696 | M28: 766 | N28: 724 | O28: 690 | P28: 646 | Q28: 564 | R28: 607 | S28: 604 | T28: 615 | U28: 619 | V28: 657 | W28: 638 | X28: 642 | Y28: 602 | Z28: 630
F29: Jihomoravský kraj | H29: CZ064 | J29: 1844 | K29: 1774 | L29: 1823 | M29: 1970 | N29: 1777 | O29: 1785 | P29: 1618 | Q29: 1597 | R29: 1482 | S29: 1414 | T29: 1441 | U29: 1487 | V29: 1507 | W29: 1496 | X29: 1509 | Y29: 1519 | Z29: 1533
E30: Střední Morava | H30: CZ07 | J30: 1962 | K30: 2050 | L30: 2115 | M30: 2210 | N30: 2056 | O30: 2041 | P30: 1841 | Q30: 1692 | R30: 1649 | S30: 1685 | T30: 1651 | U30: 1629 | V30: 1733 | W30: 1781 | X30: 1704 | Y30: 1686 | Z30: 1739
F31: Olomoucký kraj | H31: CZ071 | J31: 961 | K31: 994 | L31: 1046 | M31: 1018 | N31: 988 | O31: 967 | P31: 833 | Q31: 765 | R31: 707 | S31: 763 | T31: 690 | U31: 684 | V31: 746 | W31: 737 | X31: 706 | Y31: 672 | Z31: 716
F32: Zlínský kraj | H32: CZ072 | J32: 1001 | K32: 1056 | L32: 1069 | M32: 1192 | N32: 1068 | O32: 1074 | P32: 1008 | Q32: 927 | R32: 942 | S32: 922 | T32: 961 | U32: 945 | V32: 987 | W32: 1044 | X32: 998 | Y32: 1014 | Z32: 1023
E33: Moravskoslezsko | H33: CZ08 | J33: 1971 | K33: 2114 | L33: 2098 | M33: 2262 | N33: 2068 | O33: 1976 | P33: 1852 | Q33: 1511 | R33: 1553 | S33: 1655 | T33: 1511 | U33: 1498 | V33: 1504 | W33: 1459 | X33: 1421 | Y33: 1433 | Z33: 1400
F34: Moravskoslezský kraj | H34: CZ080 | J34: 1971 | K34: 2114 | L34: 2098 | M34: 2262 | N34: 2068 | O34: 1976 | P34: 1852 | Q34: 1511 | R34: 1553 | S34: 1655 | T34: 1511 | U34: 1498 | V34: 1504 | W34: 1459 | X34: 1421 | Y34: 1433 | Z34: 1400
Z35: Zdroj: databáze MŠMT

Sheet B5.2.15
D4: Tab. B5.2.15: | H4: SŠ obory odpovídající gymnáziím, víceleté vzdělávání – nově přijatí
B5: 0 | D5: ve školním roce 2009/10 až 2019/20 – podle území
D7: Území | J7: 2003/04 | K7: 2004/05 | L7: 2005/06 | M7: 2006/07 | N7: 2007/08 | O7: 2008/09 | P7: 2009/10 | Q7: 2010/11 | R7: 2011/12 | S7: 2012/13 | T7: 2013/14 | U7: 2014/15 | V7: 2015/16 | W7: 2016/17 | X7: 2017/18 | Y7: 2018/19 | Z7: 2019/20
E12: Česká republika | H12: CZ0 | J12: 11700 | K12: 11781 | L12: 12131 | M12: 11625 | N12: 11808 | O12: 11570 | P12: 11563 | Q12: 11257 | R12: 11398 | S12: 11098 | T12: 11264 | U12: 11190 | V12: 11397 | W12: 11612 | X12: 11687 | Y12: 11636 | Z12: 11758
E13: Praha | H13: CZ01 | J13: 2165 | K13: 2105 | L13: 2304 | M13: 2324 | N13: 2377 | O13: 2311 | P13: 2406 | Q13: 2298 | R13: 2406 | S13: 2401 | T13: 2370 | U13: 2384 | V13: 2508 | W13: 2524 | X13: 2592 | Y13: 2589 | Z13: 2622
F14: Hlavní město Praha | H14: CZ010 | J14: 2165 | K14: 2105 | L14: 2304 | M14: 2324 | N14: 2377 | O14: 2311 | P14: 2406 | Q14: 2298 | R14: 2406 | S14: 2401 | T14: 2370 | U14: 2384 | V14: 2508 | W14: 2524 | X14: 2592 | Y14: 2589 | Z14: 2622
E15: Střední Čechy | H15: CZ02 | J15: 993 | K15: 988 | L15: 1038 | M15: 1021 | N15: 979 | O15: 979 | P15: 1010 | Q15: 1026 | R15: 1019 | S15: 1054 | T15: 1133 | U15: 1120 | V15: 1067 | W15: 1101 | X15: 1113 | Y15: 1101 | Z15: 1066
F16: Středočeský kraj | H16: CZ020 | J16: 993 | K16: 988 | L16: 1038 | M16: 1021 | N16: 979 | O16: 979 | P16: 1010 | Q16: 1026 | R16: 1019 | S16: 1054 | T16: 1133 | U16: 1120 | V16: 1067 | W16: 1101 | X16: 1113 | Y16: 1101 | Z16: 1066
E17: Jihozápad | H17: CZ03 | J17: 1350 | K17: 1369 | L17: 1373 | M17: 1352 | N17: 1374 | O17: 1362 | P17: 1344 | Q17: 1316 | R17: 1348 | S17: 1367 | T17: 1343 | U17: 1376 | V17: 1355 | W17: 1393 | X17: 1349 | Y17: 1364 | Z17: 1395
F18: Jihočeský kraj | H18: CZ031 | J18: 709 | K18: 689 | L18: 721 | M18: 693 | N18: 721 | O18: 734 | P18: 693 | Q18: 683 | R18: 704 | S18: 725 | T18: 708 | U18: 733 | V18: 712 | W18: 739 | X18: 715 | Y18: 718 | Z18: 716
F19: Plzeňský kraj | H19: CZ032 | J19: 641 | K19: 680 | L19: 652 | M19: 659 | N19: 653 | O19: 628 | P19: 651 | Q19: 633 | R19: 644 | S19: 642 | T19: 635 | U19: 643 | V19: 643 | W19: 654 | X19: 634 | Y19: 646 | Z19: 679
E20: Severozápad | H20: CZ04 | J20: 961 | K20: 1009 | L20: 1042 | M20: 992 | N20: 1015 | O20: 999 | P20: 1027 | Q20: 978 | R20: 975 | S20: 924 | T20: 978 | U20: 945 | V20: 957 | W20: 1004 | X20: 980 | Y20: 950 | Z20: 983
F21: Karlovarský kraj | H21: CZ041 | J21: 282 | K21: 338 | L21: 348 | M21: 335 | N21: 337 | O21: 328 | P21: 341 | Q21: 342 | R21: 337 | S21: 318 | T21: 320 | U21: 342 | V21: 340 | W21: 343 | X21: 329 | Y21: 332 | Z21: 346
F22: Ústecký kraj | H22: CZ042 | J22: 679 | K22: 671 | L22: 694 | M22: 657 | N22: 678 | O22: 671 | P22: 686 | Q22: 636 | R22: 638 | S22: 606 | T22: 658 | U22: 603 | V22: 617 | W22: 661 | X22: 651 | Y22: 618 | Z22: 637
E23: Severovýchod | H23: CZ05 | J23: 1580 | K23: 1607 | L23: 1577 | M23: 1459 | N23: 1538 | O23: 1457 | P23: 1506 | Q23: 1425 | R23: 1416 | S23: 1366 | T23: 1385 | U23: 1381 | V23: 1386 | W23: 1427 | X23: 1391 | Y23: 1402 | Z23: 1445
F24: Liberecký kraj | H24: CZ051 | J24: 425 | K24: 445 | L24: 441 | M24: 403 | N24: 412 | O24: 410 | P24: 391 | Q24: 398 | R24: 369 | S24: 322 | T24: 321 | U24: 315 | V24: 306 | W24: 334 | X24: 340 | Y24: 346 | Z24: 341
F25: Královéhradecký kraj | H25: CZ052 | J25: 590 | K25: 595 | L25: 598 | M25: 571 | N25: 608 | O25: 568 | P25: 620 | Q25: 575 | R25: 591 | S25: 595 | T25: 596 | U25: 589 | V25: 607 | W25: 605 | X25: 590 | Y25: 593 | Z25: 629
F26: Pardubický kraj | H26: CZ053 | J26: 565 | K26: 567 | L26: 538 | M26: 485 | N26: 518 | O26: 479 | P26: 495 | Q26: 452 | R26: 456 | S26: 449 | T26: 468 | U26: 477 | V26: 473 | W26: 488 | X26: 461 | Y26: 463 | Z26: 475
E27: Jihovýchod | H27: CZ06 | J27: 2079 | K27: 2076 | L27: 2065 | M27: 1850 | N27: 1883 | O27: 1891 | P27: 1862 | Q27: 1784 | R27: 1875 | S27: 1724 | T27: 1797 | U27: 1835 | V27: 1864 | W27: 1869 | X27: 1950 | Y27: 1911 | Z27: 1935
F28: Kraj Vysočina | H28: CZ063 | J28: 551 | K28: 547 | L28: 551 | M28: 517 | N28: 508 | O28: 521 | P28: 510 | Q28: 473 | R28: 506 | S28: 481 | T28: 503 | U28: 509 | V28: 485 | W28: 490 | X28: 496 | Y28: 494 | Z28: 499
F29: Jihomoravský kraj | H29: CZ064 | J29: 1528 | K29: 1529 | L29: 1514 | M29: 1333 | N29: 1375 | O29: 1370 | P29: 1352 | Q29: 1311 | R29: 1369 | S29: 1243 | T29: 1294 | U29: 1326 | V29: 1379 | W29: 1379 | X29: 1454 | Y29: 1417 | Z29: 1436
E30: Střední Morava | H30: CZ07 | J30: 1348 | K30: 1374 | L30: 1420 | M30: 1409 | N30: 1406 | O30: 1341 | P30: 1265 | Q30: 1266 | R30: 1243 | S30: 1195 | T30: 1222 | U30: 1165 | V30: 1171 | W30: 1141 | X30: 1183 | Y30: 1211 | Z30: 1191
F31: Olomoucký kraj | H31: CZ071 | J31: 821 | K31: 843 | L31: 887 | M31: 871 | N31: 845 | O31: 822 | P31: 788 | Q31: 781 | R31: 803 | S31: 773 | T31: 792 | U31: 744 | V31: 732 | W31: 703 | X31: 754 | Y31: 766 | Z31: 751
F32: Zlínský kraj | H32: CZ072 | J32: 527 | K32: 531 | L32: 533 | M32: 538 | N32: 561 | O32: 519 | P32: 477 | Q32: 485 | R32: 440 | S32: 422 | T32: 430 | U32: 421 | V32: 439 | W32: 438 | X32: 429 | Y32: 445 | Z32: 440
E33: Moravskoslezsko | H33: CZ08 | J33: 1224 | K33: 1253 | L33: 1312 | M33: 1218 | N33: 1236 | O33: 1230 | P33: 1143 | Q33: 1164 | R33: 1116 | S33: 1067 | T33: 1036 | U33: 984 | V33: 1089 | W33: 1153 | X33: 1129 | Y33: 1108 | Z33: 1121
F34: Moravskoslezský kraj | H34: CZ080 | J34: 1224 | K34: 1253 | L34: 1312 | M34: 1218 | N34: 1236 | O34: 1230 | P34: 1143 | Q34: 1164 | R34: 1116 | S34: 1067 | T34: 1036 | U34: 984 | V34: 1089 | W34: 1153 | X34: 1129 | Y34: 1108 | Z34: 1121
Z35: Zdroj: databáze MŠMT

Sheet B5.2.16
D4: Tab. B5.2.16: | H4: SŠ obory odpovídající gymnáziím, denní forma vzdělávání – absolventi
B5: 0 | D5: ve školním roce 2009/10 až 2019/20 – podle území
D7: Území | J7: 2003/04 | K7: 2004/05 | L7: 2005/06 | M7: 2006/07 | N7: 2007/08 | O7: 2008/09 | P7: 2009/10 | Q7: 2010/11 | R7: 2011/12 | S7: 2012/13 | T7: 2013/14 | U7: 2014/15 | V7: 2015/16 | W7: 2016/17 | X7: 2017/18 | Y7: 2018/19 | Z7: 2019/20
E12: Česká republika | H12: CZ0 | J12: 24694 | K12: 25309 | L12: 24001 | M12: 24193 | N12: 24284 | O12: 24499 | P12: 24198 | Q12: 23862 | R12: 23805 | S12: 22686 | T12: 21138 | U12: 20533 | V12: 20221 | W12: 20403 | X12: 20278 | Y12: 20979 | Z12: .
E13: Praha | H13: CZ01 | J13: 3899 | K13: 4001 | L13: 3872 | M13: 3854 | N13: 3914 | O13: 4061 | P13: 3779 | Q13: 3639 | R13: 3718 | S13: 3662 | T13: 3411 | U13: 3377 | V13: 3227 | W13: 3468 | X13: 3428 | Y13: 3651 | Z13: .
F14: Hlavní město Praha | H14: CZ010 | J14: 3899 | K14: 4001 | L14: 3872 | M14: 3854 | N14: 3914 | O14: 4061 | P14: 3779 | Q14: 3639 | R14: 3718 | S14: 3662 | T14: 3411 | U14: 3377 | V14: 3227 | W14: 3468 | X14: 3428 | Y14: 3651 | Z14: .
E15: Střední Čechy | H15: CZ02 | J15: 2295 | K15: 2506 | L15: 2127 | M15: 2128 | N15: 2115 | O15: 2144 | P15: 2047 | Q15: 2107 | R15: 2031 | S15: 2028 | T15: 1872 | U15: 1812 | V15: 1799 | W15: 1927 | X15: 1847 | Y15: 1886 | Z15: .
F16: Středočeský kraj | H16: CZ020 | J16: 2295 | K16: 2506 | L16: 2127 | M16: 2128 | N16: 2115 | O16: 2144 | P16: 2047 | Q16: 2107 | R16: 2031 | S16: 2028 | T16: 1872 | U16: 1812 | V16: 1799 | W16: 1927 | X16: 1847 | Y16: 1886 | Z16: .
E17: Jihozápad | H17: CZ03 | J17: 2667 | K17: 2883 | L17: 2505 | M17: 2529 | N17: 2577 | O17: 2541 | P17: 2585 | Q17: 2473 | R17: 2519 | S17: 2366 | T17: 2293 | U17: 2126 | V17: 2144 | W17: 2073 | X17: 2078 | Y17: 2165 | Z17: .
F18: Jihočeský kraj | H18: CZ031 | J18: 1561 | K18: 1809 | L18: 1555 | M18: 1546 | N18: 1578 | O18: 1556 | P18: 1540 | Q18: 1510 | R18: 1522 | S18: 1431 | T18: 1355 | U18: 1228 | V18: 1271 | W18: 1222 | X18: 1198 | Y18: 1240 | Z18: .
F19: Plzeňský kraj | H19: CZ032 | J19: 1106 | K19: 1074 | L19: 950 | M19: 983 | N19: 999 | O19: 985 | P19: 1045 | Q19: 963 | R19: 997 | S19: 935 | T19: 938 | U19: 898 | V19: 873 | W19: 851 | X19: 880 | Y19: 925 | Z19: .
E20: Severozápad | H20: CZ04 | J20: 2023 | K20: 1970 | L20: 2007 | M20: 2019 | N20: 1907 | O20: 2008 | P20: 2129 | Q20: 2015 | R20: 2053 | S20: 1868 | T20: 1828 | U20: 1692 | V20: 1725 | W20: 1717 | X20: 1731 | Y20: 1811 | Z20: .
F21: Karlovarský kraj | H21: CZ041 | J21: 522 | K21: 542 | L21: 547 | M21: 517 | N21: 530 | O21: 505 | P21: 576 | Q21: 559 | R21: 547 | S21: 498 | T21: 487 | U21: 457 | V21: 454 | W21: 473 | X21: 468 | Y21: 483 | Z21: .
F22: Ústecký kraj | H22: CZ042 | J22: 1501 | K22: 1428 | L22: 1460 | M22: 1502 | N22: 1377 | O22: 1503 | P22: 1553 | Q22: 1456 | R22: 1506 | S22: 1370 | T22: 1341 | U22: 1235 | V22: 1271 | W22: 1244 | X22: 1263 | Y22: 1328 | Z22: .
E23: Severovýchod | H23: CZ05 | J23: 3426 | K23: 3370 | L23: 3257 | M23: 3319 | N23: 3402 | O23: 3220 | P23: 3292 | Q23: 3213 | R23: 3227 | S23: 3039 | T23: 2895 | U23: 2764 | V23: 2706 | W23: 2784 | X23: 2752 | Y23: 2802 | Z23: .
F24: Liberecký kraj | H24: CZ051 | J24: 841 | K24: 792 | L24: 728 | M24: 814 | N24: 727 | O24: 759 | P24: 778 | Q24: 741 | R24: 733 | S24: 730 | T24: 703 | U24: 658 | V24: 668 | W24: 645 | X24: 645 | Y24: 645 | Z24: .
F25: Královéhradecký kraj | H25: CZ052 | J25: 1339 | K25: 1324 | L25: 1320 | M25: 1321 | N25: 1494 | O25: 1230 | P25: 1276 | Q25: 1266 | R25: 1266 | S25: 1246 | T25: 1176 | U25: 1145 | V25: 1070 | W25: 1104 | X25: 1149 | Y25: 1139 | Z25: .
F26: Pardubický kraj | H26: CZ053 | J26: 1246 | K26: 1254 | L26: 1209 | M26: 1184 | N26: 1181 | O26: 1231 | P26: 1238 | Q26: 1206 | R26: 1228 | S26: 1063 | T26: 1016 | U26: 961 | V26: 968 | W26: 1035 | X26: 958 | Y26: 1018 | Z26: .
E27: Jihovýchod | H27: CZ06 | J27: 4263 | K27: 4647 | L27: 4269 | M27: 4283 | N27: 4179 | O27: 4292 | P27: 4418 | Q27: 4214 | R27: 4167 | S27: 3892 | T27: 3574 | U27: 3563 | V27: 3413 | W27: 3445 | X27: 3502 | Y27: 3653 | Z27: .
F28: Kraj Vysočina | H28: CZ063 | J28: 1224 | K28: 1130 | L28: 1162 | M28: 1186 | N28: 1164 | O28: 1187 | P28: 1241 | Q28: 1185 | R28: 1195 | S28: 1102 | T28: 1000 | U28: 1042 | V28: 998 | W28: 1004 | X28: 998 | Y28: 1054 | Z28: .
F29: Jihomoravský kraj | H29: CZ064 | J29: 3039 | K29: 3517 | L29: 3107 | M29: 3097 | N29: 3015 | O29: 3105 | P29: 3177 | Q29: 3029 | R29: 2972 | S29: 2790 | T29: 2574 | U29: 2521 | V29: 2415 | W29: 2441 | X29: 2504 | Y29: 2599 | Z29: .
E30: Střední Morava | H30: CZ07 | J30: 3068 | K30: 3020 | L30: 3091 | M30: 3053 | N30: 3183 | O30: 3164 | P30: 2823 | Q30: 3131 | R30: 3153 | S30: 2963 | T30: 2765 | U30: 2732 | V30: 2702 | W30: 2619 | X30: 2572 | Y30: 2693 | Z30: .
F31: Olomoucký kraj | H31: CZ071 | J31: 1686 | K31: 1601 | L31: 1641 | M31: 1630 | N31: 1731 | O31: 1705 | P31: 1447 | Q31: 1690 | R31: 1662 | S31: 1519 | T31: 1403 | U31: 1364 | V31: 1410 | W31: 1308 | X31: 1291 | Y31: 1338 | Z31: .
F32: Zlínský kraj | H32: CZ072 | J32: 1382 | K32: 1419 | L32: 1450 | M32: 1423 | N32: 1452 | O32: 1459 | P32: 1376 | Q32: 1441 | R32: 1491 | S32: 1444 | T32: 1362 | U32: 1368 | V32: 1292 | W32: 1311 | X32: 1281 | Y32: 1355 | Z32: .
E33: Moravskoslezsko | H33: CZ08 | J33: 3053 | K33: 2912 | L33: 2873 | M33: 3008 | N33: 3007 | O33: 3069 | P33: 3125 | Q33: 3070 | R33: 2937 | S33: 2868 | T33: 2500 | U33: 2467 | V33: 2505 | W33: 2370 | X33: 2368 | Y33: 2318 | Z33: .
F34: Moravskoslezský kraj | H34: CZ080 | J34: 3053 | K34: 2912 | L34: 2873 | M34: 3008 | N34: 3007 | O34: 3069 | P34: 3125 | Q34: 3070 | R34: 2937 | S34: 2868 | T34: 2500 | U34: 2467 | V34: 2505 | W34: 2370 | X34: 2368 | Y34: 2318 | Z34: .
Z35: Zdroj: databáze MŠMT

Sheet B5.2.17
D4: Tab. B5.2.17: | H4: Gymnázia a sportovní školy – výdaje na gymnázia a sportovní školy v letech 2009 až 2019
Z6: v tis. Kč
J7: 2003 | K7: 2004 | L7: 2005 | M7: 2006 | N7: 2007 | O7: 2008 | P7: 2009 | Q7: 2010 | R7: 2011 | S7: 2012 | T7: 2013 | U7: 2014 | V7: 2015 | W7: 2016 | X7: 2017 | Y7: 2018 | Z7: 2019
D12: Výdaje na gymnázia a sportovní školy
E13: Celkem | J13: 5319711.19 | K13: 5732578.88 | L13: 6115290.15 | M13: 6764190.87 | N13: 7068867.23 | O13: 7552198.31 | P13: 7789675.51 | Q13: 7512373.45 | R13: 7556382.93 | S13: 7539864.812 | T13: =T25+T37 -> 7601572.532 | U13: =U14+U15 -> 7725997.551 | V13: 7970890.806 | W13: 7613196.697 | X13: 8419898.546 | Y13: 10229782.64 | Z13: 11318478.77
E14: v tom | F14: neinvestiční výdaje | J14: 5037665.35 | K14: 5347951.64 | L14: 5740863.94 | M14: 6245103.7 | N14: 6614330.52 | O14: 6940341.77 | P14: 7169230.58 | Q14: 6967578.47 | R14: 7042469.41 | S14: 7217208.722 | T14: =T26+T38 -> 7216893.001 | U14: =U26+U38 -> 7155030.536 | V14: 7187381.013 | W14: =W26+W38 -> 7205450.29 | X14: 7941300.251 | Y14: 9146989.178 | Z14: 10377847.23
F15: investiční výdaje | J15: 282045.84 | K15: 384627.24 | L15: 374426.21 | M15: 519087.17 | N15: 454536.71 | O15: 611856.54 | P15: 620444.93 | Q15: 544794.98 | R15: 513913.52 | S15: 322656.09 | T15: =T27+T39 -> 384679.5308 | U15: 570967.0145 | V15: 783509.7931 | W15: =W27+W39 -> 407746.407 | X15: 478598.2948 | Y15: 1082793.46 | Z15: 940631.5448
E16: v % | F16: neinvestiční výdaje | J16: 0.9469809864 | K16: 0.9329050244 | L16: 0.9387721268 | M16: 0.9232595324 | N16: 0.9356987909 | O16: 0.9189829881 | P16: 0.9203503497 | Q16: 0.9274803118 | R16: 0.9319894816 | S16: 0.9572066479 | T16: 0.9493947431 | U16: =U14/U13 -> 0.9260979555 | V16: 0.9017036098 | W16: 0.9464421552 | X16: 0.9431586625 | Y16: 0.894152838 | Z16: 0.9168941725
F17: investiční výdaje | J17: 0.05301901361 | K17: 0.06709497559 | L17: 0.06122787322 | M17: 0.07674046756 | N17: 0.06430120912 | O17: 0.08101701185 | P17: 0.07964965026 | Q17: 0.07251968817 | R17: 0.06801051836 | S17: 0.04279335214 | T17: 0.05060525689 | U17: =U15/U13 -> 0.07390204446 | V17: 0.09829639022 | W17: 0.05355784478 | X17: 0.05684133748 | Y17: 0.105847162 | Z17: 0.08310582752
D18: z toho výdaje na sportovní školy
E19: celkem | J19: 86428.74 | K19: 83387 | L19: 88598.07 | M19: 138357.29 | N19: 158856.64 | O19: 122539.93 | P19: 83555.17 | Q19: 85980.65 | R19: 77214.19 | S19: 81022.62 | T19: =T31+T43 -> 88530.7116 | U19: =U20+U21 -> 87460.36093 | V19: 170146.6243 | W19: 92827.21308 | X19: 97972.33694 | Y19: 212370.615 | Z19: 239262.057
E20: v tom | F20: neinvestiční výdaje | J20: 84829.3 | K20: 82979 | L20: 87572.27 | M20: 134938.29 | N20: 121796.04 | O20: 120020.94 | P20: 78297.15 | Q20: 77027.14 | R20: 75268.19 | S20: 80903.82 | T20: =T32+T44 -> 81030.7116 | U20: =U32+U44 -> 80327.65 | V20: 158979.4844 | W20: =W32+W44 -> 91627.21308 | X20: 97692.54994 | Y20: 202147.49 | Z20: 235698.216
F21: investiční výdaje | J21: 1599.44 | K21: 408 | L21: 1025.8 | M21: 3419 | N21: 37060.6 | O21: 2518.99 | P21: 5258.02 | Q21: 8953.51 | R21: 1946 | S21: 118.8 | T21: =T33+T45 -> 7500 | U21: 7132.71093 | V21: 11167.13991 | W21: =W33+W45 -> 1200 | X21: 279.787 | Y21: 10223.125 | Z21: 3563.841
E22: v % | F22: neinvestiční výdaje | J22: 0.9814941187 | K22: 0.995107151 | L22: 0.9884218697 | M22: 0.9752886169 | N22: 0.7667041176 | O22: 0.9794435169 | P22: 0.9370712788 | Q22: 0.8958659885 | R22: 0.9747973786 | S22: 0.9985337428 | T22: =T20/T19 -> 0.9152836359 | U22: 0.9184463584 | V22: 0.9343675494 | W22: 0.9870727564 | X22: 0.9971442245 | Y22: =Y20/Y19 -> 0.9518618666 | Z22: 0.9851048635
F23: investiční výdaje | J23: 0.01850588126 | K23: 0.004892849005 | L23: 0.01157813031 | M23: 0.02471138312 | N23: 0.2332958824 | O23: 0.0205564831 | P23: 0.06292872123 | Q23: 0.1041340115 | R23: 0.02520262144 | S23: 0.001466257201 | T23: =T21/T19 -> 0.08471636412 | U23: 0.08155364161 | V23: 0.06563245056 | W23: 0.01292724364 | X23: 0.002855775505 | Y23: =Y21/Y19 -> 0.04813813342 | Z23: 0.01489513651
D24: Výdaje z rozpočtu kapitoly 333-MŠMT2)
E25: Celkem | J25: 196102 | K25: 259838.02 | L25: 273514.62 | M25: 312268.5 | N25: 330455.22 | O25: 357137 | P25: 358940.75 | Q25: 375063.43 | R25: 308485.7567 | S25: 613058.7166 | T25: 540908.3158 | U25: =U26+U27 -> 384369.7707 | V25: 360912.39 | W25: 407425.995 | X25: 597592.9688 | Y25: 651469.6879 | Z25: 779897.7225
E26: v tom | F26: neinvestiční výdaje | J26: 196102 | K26: 259838.02 | L26: 273514.62 | M26: 312268.5 | N26: 330455.22 | O26: 357137 | P26: 358940.75 | Q26: 373108.92 | R26: 308485.7567 | S26: 612936.7166 | T26: 540908.3158 | U26: 384369.7707 | V26: 360912.39 | W26: 407425.995 | X26: 597380.9688 | Y26: 651469.6879 | Z26: 779897.7225
F27: investiční výdaje | J27: 0 | K27: 0 | L27: 0 | M27: 0 | N27: 0 | O27: 0 | P27: 0 | Q27: 1954.51 | R27: 0 | S27: 122 | T27: 0 | U27: 0 | V27: 0 | W27: 0 | X27: 212 | Y27: 0 | Z27: 0
E28: v % | F28: neinvestiční výdaje | J28: 1 | K28: 1 | L28: 1 | M28: 1 | N28: 1 | O28: 1 | P28: 1 | Q28: 0.9947888548 | R28: 1 | S28: 0.9998009979 | T28: 1 | U28: =U26/U25 -> 1 | V28: 1 | W28: 1 | X28: 0.9996452435 | Y28: 1 | Z28: 1
F29: investiční výdaje | J29: 0 | K29: 0 | L29: 0 | M29: 0 | N29: 0 | O29: 0 | P29: 0 | Q29: 0.005211145219 | R29: 0 | S29: 0.0001990021456 | T29: 0 | U29: =U27/U25 -> 0 | V29: 0 | W29: 0 | X29: 0.0003547565167 | Y29: 0 | Z29: 0
D30: z toho výdaje na sportovní školy2)
E31: celkem | J31: 0 | K31: 49180.02 | L31: 51987.62 | M31: 69724.5 | N31: 65500 | O31: 63442 | P31: 63879 | Q31: 63879 | R31: 9379 | S31: 74681.4466 | T31: 73156.9644 | U31: =U32+U33 -> 70000 | V31: 72214.88 | W31: 72922.995 | X31: 82999.92 | Y31: 93207.88 | Z31: 110044.6
E32: v tom | F32: neinvestiční výdaje | J32: 0 | K32: 49180.02 | L32: 51987.62 | M32: 69724.5 | N32: 65500.01 | O32: 63442 | P32: 63879 | Q32: 63879 | R32: 9379 | S32: 74681.4466 | T32: 73156.9644 | U32: 70000 | V32: 72214.88 | W32: 72922.995 | X32: 82999.92 | Y32: 93207.88 | Z32: 110044.6
F33: investiční výdaje | J33: 0 | K33: 0 | L33: 0 | M33: 0 | N33: 0 | O33: 0 | P33: 0 | Q33: 0 | R33: 0 | S33: 0 | T33: 0 | U33: 0 | V33: 0 | W33: 0 | X33: 0 | Y33: 0 | Z33: 0
E34: v % | F34: neinvestiční výdaje | J34: 0 | K34: 1 | L34: 1 | M34: 1 | N34: 1 | O34: 1 | P34: 1 | Q34: 1 | R34: 1 | S34: 1 | T34: 1 | U34: =U32/U31 -> 1 | V34: 1 | W34: 1 | X34: 1 | Y34: 1 | Z34: 1
F35: investiční výdaje | J35: 0 | K35: 0 | L35: 0 | M35: 0 | N35: 0 | O35: 0 | P35: 0 | Q35: 0 | R35: 0 | S35: 0 | T35: 0 | U35: =U33/U31 -> 0 | V35: 0 | W35: 0 | X35: 0 | Y35: 0 | Z35: 0
D36: Výdaje z rozpočtu kapitoly 700-Obce a DSO, KÚ 4)
E37: Celkem | J37: 5123609.19 | K37: =K38+K39 -> 5521920.88 | L37: =L38+L39 -> 5893763.18 | M37: =M38+M39 -> 6521646.88 | N37: 6803912.01 | O37: 7258503.31 | P37: 7494613.76 | Q37: 7210778.67 | R37: 7257724.63 | S37: 7204733.34 | T37: =T38+T39 -> 7060664.216 | U37: 7341627.78 | V37: 7609978.416 | W37: 7205770.702 | X37: 7822305.577 | Y37: =Y38+Y39 -> 9578312.95 | Z37: 10538581.05
E38: v tom | F38: neinvestiční výdaje | J38: 4841563.35 | K38: 5137293.64 | L38: 5519336.97 | M38: 6002559.71 | N38: 6349375.3 | O38: 6646646.77 | P38: 6874168.83 | Q38: 6665983.69 | R38: 6743811.11 | S38: 6882077.25 | T38: 6675984.685 | U38: 6770660.765 | V38: 6826468.623 | W38: 6798024.295 | X38: 7343919.282 | Y38: 8495519.49 | Z38: 9597949.507
F39: investiční výdaje | J39: 282045.84 | K39: 384627.24 | L39: 374426.21 | M39: 519087.17 | N39: 454536.71 | O39: 611856.54 | P39: 620444.93 | Q39: 544794.98 | R39: 513913.52 | S39: 322656.09 | T39: 384679.5308 | U39: 570967.0145 | V39: 783509.7931 | W39: 407746.407 | X39: 478386.2948 | Y39: 1082793.46 | Z39: 940631.5448
E40: v % | F40: neinvestiční výdaje | J40: 0.9449517265 | K40: =K38/K37 -> 0.930345391 | L40: =L38/L37 -> 0.9364707745 | M40: =M38/M37 -> 0.9204055081 | N40: 0.9331947989 | O40: 0.9157048618 | P40: 0.9172145557 | Q40: 0.924447136 | R40: 0.9291908213 | S40: 0.9552160955 | T40: =T38/T37 -> 0.9455179401 | U40: 0.9222288256 | V40: 0.8970417851 | W40: 0.9434139076 | X40: 0.9388433129 | Y40: =Y38/Y37 -> 0.8869536352 | Z40: 0.9107440043
F41: investiční výdaje | J41: 0.0550482735 | K41: =K39/K37 -> 0.06965460903 | L41: =L39/L37 -> 0.06352922548 | M41: =M39/M37 -> 0.07959449194 | N41: 0.06680520109 | O41: 0.08429513825 | P41: 0.0827854443 | Q41: 0.07555286397 | R41: 0.07080917866 | S41: 0.04478390452 | T41: =T39/T37 -> 0.0544820599 | U41: 0.0777711744 | V41: 0.1029582149 | W41: 0.05658609243 | X41: 0.06115668713 | Y41: =Y39/Y37 -> 0.1130463648 | Z41: 0.08925599568
D42: z toho výdaje na sportovní školy
E43: celkem | J43: 86428.74 | K43: =K44+K45 -> 83387 | L43: =L44+L45 -> 88598.07 | M43: =M44+M45 -> 138357.29 | N43: 158856.64 | O43: 122539.93 | P43: 83555.17 | Q43: 85980.65 | R43: 77214.19 | S43: 81022.62 | T43: =T44+T45 -> 15373.7472 | U43: 17460.36093 | V43: 97931.74435 | W43: 19904.21808 | X43: 14972.41694 | Y43: =Y44+Y45 -> 119162.735 | Z43: 129217.457
E44: v tom | F44: neinvestiční výdaje | J44: 84829.3 | K44: 82979 | L44: 87572.27 | M44: 134938.29 | N44: 121796.04 | O44: 120020.94 | P44: 78297.15 | Q44: 77027.14 | R44: 75268.19 | S44: 80903.82 | T44: 7873.7472 | U44: 10327.65 | V44: 86764.60444 | W44: 18704.21808 | X44: 14692.62994 | Y44: 108939.61 | Z44: 125653.616
F45: investiční výdaje | J45: 1599.44 | K45: 408 | L45: 1025.8 | M45: 3419 | N45: 37060.6 | O45: 2518.99 | P45: 5258.02 | Q45: 8953.51 | R45: 1946 | S45: 118.8 | T45: 7500 | U45: 7132.71093 | V45: 11167.13991 | W45: 1200 | X45: 279.787 | Y45: 10223.125 | Z45: 3563.841
E46: v % | F46: neinvestiční výdaje | J46: 0.9814941187 | K46: =K44/K43 -> 0.995107151 | L46: =L44/L43 -> 0.9884218697 | M46: =M44/M43 -> 0.9752886169 | N46: =N44/N43 -> 0.7667041176 | O46: 0.9794435169 | P46: 0.9370712788 | Q46: 0.8958659885 | R46: 0.9747973786 | S46: 0.9985337428 | T46: =T44/T43 -> 0.5121553709 | U46: 0.5914912092 | V46: 0.8859701726 | W46: 0.9397112715 | X46: 0.9813131707 | Y46: =Y44/Y43 -> 0.9142087079 | Z46: 0.9724198179
F47: investiční výdaje | J47: 0.01850588126 | K47: =K45/K43 -> 0.004892849005 | L47: =L45/L43 -> 0.01157813031 | M47: =M45/M43 -> 0.02471138312 | N47: =N45/N43 -> 0.2332958824 | O47: 0.0205564831 | P47: 0.06292872123 | Q47: 0.1041340115 | R47: 0.02520262144 | S47: 0.001466257201 | T47: =T45/T43 -> 0.4878446291 | U47: 0.4085087908 | V47: 0.1140298274 | W47: 0.06028872851 | X47: 0.01868682933 | Y47: =Y45/Y43 -> 0.08579129205 | Z47: 0.02758018214
D48: Podíl výdajů na gymnázia z celkových výdajů na školství a podíl na HDP
E49: Výdaje na školství celkem v mld. Kč1),3) | J49: 114.2477725 | K49: 121.3480397 | L49: 128.5541745 | M49: 141.2484394 | N49: 151.5849897 | O49: 149.7997268 | P49: 162.803504 | Q49: 161.8748019 | R49: 172.7687959 | S49: 170.3742654 | T49: 171.7249628 | U49: 177.5906341 | V49: 181.6089812 | W49: 172.2724 | X49: 193.6421335 | Y49: 221.5246672 | Z49: 247.9172318
E50: Podíl výdajů na gymnázia | J50: =J13/J49/1000000 -> 0.04656293137 | K50: 0.04724080336 | L50: 0.04756975162 | M50: 0.04788860604 | N50: 0.04663302906 | O50: 0.05041530095 | P50: 0.04784709984 | Q50: 0.04640854142 | R50: 0.04373696588 | S50: 0.04425471648 | T50: 0.04426597281 | U50: 0.04350453272 | V50: 0.04389039987 | W50: =W13/W49/1000000 -> 0.04419278246 | X50: 0.04348174848 | Y50: 0.04617897757 | Z50: 0.0456542641
E51: HDP v mld. Kč v běžných cenách | J51: 2688.107 | K51: 3057.66 | L51: 3257.972 | M51: 3507.131 | N51: 3840.117 | O51: 4024.117 | P51: 3930.409 | Q51: 3962.464 | R51: 4033.755 | S51: 4059.912 | T51: 4098.128 | U51: 4313.789 | V51: 4595.783 | W51: 4773.24 | X51: 5055.029 | Y51: 5408.766 | Z51: 5748.668
E52: Výdaje na gymnázia v % HDP | J52: =J13/J51/1000000 -> 0.001978980446 | K52: 0.001874825481 | L52: 0.001877023544 | M52: 0.001928696382 | N52: 0.001840794754 | O52: 0.001876734277 | P52: 0.001981899469 | Q52: 0.001895884341 | R52: 0.001873287527 | S52: 0.001857149813 | T52: 0.001854888996 | U52: 0.001791000337 | V52: 0.001734392334 | W52: =W13/W51/1000000 -> 0.001594974629 | X52: 0.001665647921 | Y52: 0.001891333927 | Z52: 0.001968887188
D53: Dotace soukromým a církevním gymnáziím (bez škol pro žáky se SVP) z kapitoly 333-MŠMT
E54: Dotace celkem | J54: 467069.939 | K54: 495648.238 | L54: 528622.773 | M54: 602723.275 | N54: 639721.473 | O54: . | P54: . | Q54: . | R54: . | S54: . | T54: . | U54: . | V54: . | W54: . | X54: . | Y54: . | Z54: .
E55: v tom | F55: dotace soukromým školám5) | J55: 271242.948 | K55: 285189.653 | L55: 307151.276 | M55: 360193.713 | N55: 374801.473 | O55: . | P55: . | Q55: . | R55: . | S55: . | T55: . | U55: . | V55: . | W55: . | X55: . | Y55: . | Z55: .
F56: dotace církevním školám 6) | J56: 195826.991 | K56: 210458.585 | L56: 221471.497 | M56: 242529.562 | N56: 264920 | O56: 293683.565 | P56: 294974.1656 | Q56: 298330 | R56: 297402 | S56: 304690 | T56: 309438 | U56: 312710 | V56: 320867 | W56: 334503 | X56: 359657.843 | Y56: 391975.471 | Z56: 426861.613
D57: Komentáře: | Y57: Zdroj: Státní závěrečný účet, ZÚ - kapitola 333-MŠMT; 700-Obce a DSO, KÚ; ČSÚ; monitor.statnipokladna.cz
D58: 1) | E58: Celkové výdaje kapitoly 333-MŠMT a kapitoly 700-Obce (část vzděl.). Nejsou zahrnuty výdaje Ministerstva obrany.
D59: 2) | E59: Výdaje obsahují rovněž transfer finančních prostředků pro gymnázia – sportovní školy do veřejných rozpočtů územní úrovně, který není započten do celkových výdajů.
D60: 3) | E60: Meziroční snížení výdajů v roce 2008 je dáno aplikací zákona č. 26/2008 Sb. a z něj vyplývajícím nepřeváděním nevyčerpaných prostředků OSS do rezervních fondů, a tudíž jejich nezahrnutím do čerpání.
D61: 4) | E61: Údaje neobsahují z daných tříd následující položky: 5321, 5323, 5329, 5344, 5345, 5349, 5366, 5367, 5641, 5642, 5649, 6341, 6342, 6349, 6441, 6442, 6449.
D62: 5) | E62: Od roku 2008 nejsou k dispozici údaje o dotacích soukromým školám v potřebném členění.
D63: 6) | E63: Jedná se o uvolněné prostředky odpovídající hodnotám, na co bylo příjemcům dotačních prostředků vystavena rozhodnutí o poskytnutí dotace a co příjemcům dotačních prostředků skutečně v součtu za všechna rozhodnutí o poskytnutí dotace v příslušném roce odešlo.

Sheet B5.2.18
D4: Tab. B5.2.18: | H4: Gymnázia a školy s rozšířenou výukou sportovního zaměření – přepočtené počty zaměstnanců
B5: 20 | D5: v letech 2009 až 2019
D7: Zřizovatel | J7: 2003 | K7: 2004 | L7: 2005 | M7: 2006 | N7: 2007 | O7: 2008 | P7: 2009 | Q7: 2010 | R7: 2011 | S7: 2012 | T7: 2013 | U7: 2014 | V7: 2015 | W7: 2016 | X7: 2017 | Y7: 2018 | Z7: 2019
V11: 2) | W11: 2) | X11: 2) | Y11: 2) | Z11: 2)
D12: Všichni zřizovatelé (bez jiných resortů)
E13: Zaměstnanci celkem | J13: 12989.388 | K13: 13133.2 | L13: 13267.604 | M13: 13466.887 | N13: 13690.597 | O13: 13836.698 | P13: 13898.066 | Q13: 13887.877 | R13: 13674.825 | S13: 13375.796 | T13: 13128.347 | U13: 12970.738 | V13: . | W13: . | X13: . | Y13: . | Z13: .
F14: z toho učitelé1) | J14: 10422.529 | K14: 10529.263 | L14: 10651.535 | M14: 10776.312 | N14: 10959.529 | O14: 11075.425 | P14: 11127.41 | Q14: 11108.42 | R14: 11013.791 | S14: 10782.863 | T14: 10590.173 | U14: 10412.888 | V14: . | W14: . | X14: . | Y14: . | Z14: .
D15: Komentáře: | Z15: Zdroj: databáze MŠMT
D16: 1) | E16: Včetně vedoucích zaměstnanců.
D17: 2) | E17: Od roku 2015 se přepočtené počty zaměstnanců podle oborů nesledují.

Sheet B5.2.19
D4: Tab. B5.2.19: | H4: Gymnázia a školy s rozšířenou výukou sportovního zaměření – průměrné měsíční mzdy zaměstnanců
B5: 70 | D5: v letech 2009 až 2019
J7: 2003 | K7: 2004 | L7: 2005 | M7: 2006 | N7: 2007 | O7: 2008 | P7: 2009 | Q7: 2010 | R7: 2011 | S7: 2012 | T7: 2013 | U7: 2014 | V7: 2015 | W7: 2016 | X7: 2017 | Y7: 2018 | Z7: 2018
V11: 2) | W11: 2) | X11: 2) | Y11: 2) | Z11: 2)
D12: Všichni zřizovatelé (bez jiných resortů)
D13: Nominální mzda (v běžných cenách)
E14: Zaměstnanci celkem | J14: 18892 | K14: 19594 | L14: 20735.78812 | M14: 22055 | N14: 23515 | O14: 24240.75459 | P14: 25595.5227 | Q14: 25066.45577 | R14: 25877.85566 | S14: 26044.43324 | T14: 26314.54173 | U14: 26876.50327 | V14: . | W14: . | X14: . | Y14: . | Z14: .
F15: z toho učitelé1) | J15: 20727 | K15: 21460 | L15: 22789.49732 | M15: 24231 | N15: 25819 | O15: 26580.86564 | P15: 27851.61315 | Q15: 27138.2305 | R15: 28036.86213 | S15: 28216.2894 | T15: 28451.30624 | U15: 29071.27308 | V15: . | W15: . | X15: . | Y15: . | Z15: .
D16: Reálná mzda (ve stálých cenách roku 2015)
E17: Zaměstnanci celkem | J17: =J14/J20*100 -> 19782.19895 | K17: =K14/K20*100 -> 19973.49643 | L17: 20735.78812 | M17: 26572.28916 | N17: 27567.40914 | O17: 26726.30054 | P17: 27912.2385 | Q17: 26953.17824 | R17: 27297.3161 | S17: 26603.09831 | T17: 26500.04202 | U17: =U14/U20*100 -> 26957.37539 | V17: . | W17: . | X17: . | Y17: . | Z17: .
F18: z toho učitelé | J18: =J15/J20*100 -> 21703.66492 | K18: =K15/K20*100 -> 21875.6371 | L18: 22789.49732 | M18: 29193.9759 | N18: 30268.46424 | O18: 29306.35682 | P18: 30372.53342 | Q18: 29180.89301 | R18: 29574.74909 | S18: 28821.54178 | T18: 28651.86933 | U18: =U15/U20*100 -> 29158.74933 | V18: . | W18: . | X18: . | Y18: . | Z18: .
D19: Index spotřebitelských cen a meziroční inflace
E20: index spotřebitelských cen (rok 2015 = 100) | J20: 95.5 | K20: 98.1 | L20: 100 | M20: 83 | N20: 85.3 | O20: 90.7 | P20: 91.7 | Q20: 93 | R20: 94.8 | S20: 97.9 | T20: 99.3 | U20: 99.7 | V20: 100 | W20: 100.7 | X20: 103.1 | Y20: 105.3 | Z20: 108.3
E21: meziroční inflace v % | J21: 0.001 | K21: 0.028 | L21: 0.019 | M21: 0.025 | N21: 0.028 | O21: 0.063 | P21: 0.01 | Q21: 0.015 | R21: 0.019 | S21: 0.033 | T21: 0.014 | U21: 0.004 | V21: 0.003 | W21: 0.007 | X21: 0.025 | Y21: 0.021 | Z21: 0.028
D22: Komentáře: | Z22: Zdroj: databáze MŠMT, ČSÚ
D23: 1) | E23: Včetně vedoucích zaměstnanců.
D24: 2) | E24: Od roku 2015 se mzdy podle oborů nesledují.

Sheet GB1
D4: Obr. B1: | H4: Obory gymnázií, denní forma vzdělávání – struktura škol ve školním roce 2009/10 až 2019/20 – podle počtu žáků
B5: 70
K10: 2003/04 | L10: 2004/05 | M10: 2005/06 | N10: 2007/08 | O10: 2008/09 | P10: 2009/10 | Q10: 2010/11 | R10: 2011/12 | S10: 2012/13 | T10: 2013/14 | U10: 2014/15 | V10: 2015/16 | W10: 2016/17 | X10: 2017/18 | Y10: 2018/18 | Z10: 2019/20
J11: do 100 | K11: 0.04022988506 | L11: 0.04584527221 | M11: 0.05084745763 | N11: 0.08847184987 | O11: 0.100795756 | P11: 0.11 | Q11: 0.1018766756 | R11: 0.1051212938 | S11: 0.1005434783 | T11: 0.0956284153 | U11: 0.09863013699 | V11: 0.08563535912 | W11: 0.07162534435 | X11: 0.07262569832 | Y11: 0.05915492958 | Z11: 0.06197183099
J12: 101–200 | K12: 0.09770114943 | L12: 0.09455587393 | M12: 0.1016949153 | N12: 0.109919571 | O12: 0.1087533156 | P12: 0.11 | Q12: 0.1233243968 | R12: 0.1347708895 | S12: 0.1331521739 | T12: 0.1475409836 | U12: 0.1342465753 | V12: 0.138121547 | W12: 0.1570247934 | X12: 0.1340782123 | Y12: 0.1436619718 | Z12: 0.1323943662
J13: 201–300 | K13: 0.1494252874 | L13: 0.1575931232 | M13: 0.1468926554 | N13: 0.1313672922 | O13: 0.1273209549 | P13: 0.1313672922 | Q13: 0.1581769437 | R13: 0.167115903 | S13: 0.1902173913 | T13: 0.1967213115 | U13: 0.2164383562 | V13: 0.2099447514 | W13: 0.1983471074 | X13: 0.2122905028 | Y13: 0.2056338028 | Z13: 0.2169014085
J14: 301–400 | K14: 0.2586206897 | L14: 0.2550143266 | M14: 0.2514124294 | N14: 0.2386058981 | O14: 0.2360742706 | P14: 0.2198391421 | Q14: 0.2117962466 | R14: 0.1994609164 | S14: 0.1902173913 | T14: 0.1885245902 | U14: 0.1835616438 | V14: 0.2016574586 | W14: 0.2121212121 | X14: 0.2039106145 | Y14: 0.2169014085 | Z14: 0.2084507042
J15: 401–500 | K15: 0.1609195402 | L15: 0.1518624642 | M15: 0.1581920904 | N15: 0.1474530831 | O15: 0.1485411141 | P15: 0.163538874 | Q15: 0.1420911528 | R15: 0.1509433962 | S15: 0.1413043478 | T15: 0.1393442623 | U15: 0.1315068493 | V15: 0.1215469613 | W15: 0.1239669421 | X15: 0.1340782123 | Y15: 0.138028169 | Z15: 0.138028169
J16: 501–600 | K16: 0.1350574713 | L16: 0.1318051576 | M16: 0.1214689266 | N16: 0.1179624665 | O16: 0.1087533156 | P16: 0.1152815013 | Q16: 0.1313672922 | R16: 0.1132075472 | S16: 0.125 | T16: 0.1284153005 | U16: 0.1315068493 | V16: 0.135359116 | W16: 0.132231405 | X16: 0.1312849162 | Y16: 0.1323943662 | Z16: 0.1323943662
J17: 601–700 | K17: 0.08908045977 | L17: 0.0888252149 | M17: 0.09322033898 | N17: 0.08847184987 | O17: 0.09283819629 | P17: 0.08310991957 | Q17: 0.06434316354 | R17: 0.06738544474 | S17: 0.0652173913 | T17: 0.05464480874 | U17: 0.0602739726 | V17: 0.06629834254 | W17: 0.06887052342 | X17: 0.06424581006 | Y17: 0.05915492958 | Z17: 0.06478873239
J18: nad 700 | K18: 0.06896551724 | L18: 0.07449856734 | M18: 0.07627118644 | N18: 0.07774798928 | O18: 0.07692307692 | P18: 0.07238605898 | Q18: 0.06434316354 | R18: 0.06199460916 | S18: 0.05434782609 | T18: 0.04918032787 | U18: 0.04383561644 | V18: 0.04143646409 | W18: 0.03581267218 | X18: 0.04748603352 | Y18: 0.04507042254 | Z18: 0.04507042254
K19: =SUM(K11:K18) -> 1 | L19: 1 | M19: 1 | N19: 1 | O19: 1 | P19: 1.005522788 | Q19: 0.9973190349 | R19: 1 | S19: 1 | T19: 1 | U19: 1 | V19: 1 | W19: 1 | X19: 1 | Y19: 1 | Z19: 1
Z35: Zdroj: databáze MŠMT

Sheet GB2
D4: Obr. B2: | H4: Obory čtyřletých gymnázií, denní forma vzdělávání – struktura škol ve školním roce 2009/10 až 2019/20 – podle počtu žáků
B5: 70
K10: 2003/04 | L10: 2004/05 | M10: 2005/06 | N10: 2007/08 | O10: 2008/09 | P10: 2009/10 | Q10: 2010/11 | R10: 2011/12 | S10: 2012/13 | T10: 2013/14 | U10: 2014/15 | V10: 2015/16 | W10: 2016/17 | X10: 2017/18 | Y10: 2018/19 | Z10: 2019/20
J11: do 100 | K11: 0.1365187713 | L11: 0.1152542373 | M11: 0.1114864865 | N11: 0.1629392971 | O11: 0.1714285714 | P11: 0.2 | Q11: 0.235483871 | R11: 0.284789644 | S11: 0.3046357616 | T11: 0.3456375839 | U11: 0.3355704698 | V11: 0.3118644068 | W11: 0.2749140893 | X11: 0.2827586207 | Y11: 0.2896551724 | Z11: 0.2857142857
J12: 101–200 | K12: 0.4948805461 | L12: 0.4847457627 | M12: 0.4662162162 | N12: 0.4249201278 | O12: 0.419047619 | P12: 0.4063492063 | Q12: 0.4064516129 | R12: 0.3786407767 | S12: 0.3841059603 | T12: 0.3523489933 | U12: 0.3523489933 | V12: 0.3627118644 | W12: 0.3951890034 | X12: 0.3862068966 | Y12: 0.3827586207 | Z12: 0.3658536585
J13: 201–300 | K13: 0.2559726962 | L13: 0.2610169492 | M13: 0.277027027 | N13: 0.2460063898 | O13: 0.2412698413 | P13: 0.2349206349 | Q13: 0.2129032258 | R13: 0.2103559871 | S13: 0.1821192053 | T13: 0.1711409396 | U13: 0.1812080537 | V13: 0.2 | W13: 0.206185567 | X13: 0.2 | Y13: 0.1965517241 | Z13: 0.2229965157
J14: 301–400 | K14: 0.06825938567 | L14: 0.0813559322 | M14: 0.0777027027 | N14: 0.09584664537 | O14: 0.1015873016 | P14: 0.09206349206 | Q14: 0.09032258065 | R14: 0.07766990291 | S14: 0.08940397351 | T14: 0.09731543624 | U14: 0.09731543624 | V14: 0.08813559322 | W14: 0.08591065292 | X14: 0.09310344828 | Y14: 0.09310344828 | Z14: 0.08362369338
J15: 401–500 | K15: 0.02730375427 | L15: 0.03050847458 | M15: 0.04054054054 | N15: 0.0447284345 | O15: 0.04761904762 | P15: 0.04761904762 | Q15: 0.04193548387 | R15: 0.04207119741 | S15: 0.03311258278 | T15: 0.02684563758 | U15: 0.02684563758 | V15: 0.03050847458 | W15: 0.03092783505 | X15: 0.03103448276 | Y15: 0.0275862069 | Z15: 0.02787456446
J16: nad 500 | K16: 0.01706484642 | L16: 0.02711864407 | M16: 0.02702702703 | N16: 0.02555910543 | O16: 0.01904761905 | P16: 0.01904761905 | Q16: 0.01290322581 | R16: 0.006472491909 | S16: 0.006622516556 | T16: 0.006711409396 | U16: 0.006711409396 | V16: 0.006779661017 | W16: 0.006872852234 | X16: 0.006896551724 | Y16: 0.01034482759 | Z16: 0.01393728223
P17: =SUM(P11:P16) -> 1 | Q17: =SUM(Q11:Q16) -> 1 | R17: 1 | S17: 1 | T17: 1 | U17: 1 | V17: 1 | W17: 1 | X17: 1 | Y17: 1 | Z17: 1
Z36: Zdroj: databáze MŠMT

Sheet GB3
D4: Obr. B3: | H4: Obory víceletých gymnázií, denní forma vzdělávání – struktura škol ve školním roce 2009/10 až 2019/20 – podle počtu žáků
B5: 70
K10: 2003/04 | L10: 2004/05 | M10: 2005/06 | N10: 2007/08 | O10: 2008/09 | P10: 2009/10 | Q10: 2010/11 | R10: 2011/12 | S10: 2012/13 | T10: 2013/14 | U10: 2014/15 | V10: 2015/16 | W10: 2016/17 | X10: 2017/18 | Y10: 2018/19 | Z10: 2019/20
J11: do 100 | K11: 0.03205128205 | L11: 0.03548387097 | M11: 0.03846153846 | N11: 0.0447284345 | O11: 0.04777070064 | P11: 0.05079365079 | Q11: 0.06031746032 | R11: 0.06962025316 | S11: 0.06984126984 | T11: 0.07301587302 | U11: 0.07619047619 | V11: 0.06687898089 | W11: 0.06 | X11: 0.05144694534 | Y11: 0.03571428571 | Z11: 0.02597402597
J12: 101–200 | K12: 0.1923076923 | L12: 0.1967741935 | M12: 0.1891025641 | N12: 0.1916932907 | O12: 0.1910828025 | P12: 0.2095238095 | Q12: 0.2285714286 | R12: 0.2120253165 | S12: 0.2412698413 | T12: 0.253968254 | U12: 0.2444444444 | V12: 0.2515923567 | W12: 0.24 | X12: 0.2411575563 | Y12: 0.2435064935 | Z12: 0.25
J13: 201–300 | K13: 0.4647435897 | L13: 0.4741935484 | M13: 0.4775641026 | N13: 0.482428115 | O13: 0.4840764331 | P13: 0.4634920635 | Q13: 0.4476190476 | R13: 0.4556962025 | S13: 0.4253968254 | T13: 0.419047619 | U13: 0.4380952381 | V13: 0.4458598726 | W13: 0.46 | X13: 0.4758842444 | Y13: 0.4772727273 | Z13: 0.4772727273
J14: 301–400 | K14: 0.09615384615 | L14: 0.08064516129 | M14: 0.08653846154 | N14: 0.08626198083 | O14: 0.07961783439 | P14: 0.08571428571 | Q14: 0.06349206349 | R14: 0.07278481013 | S14: 0.07936507937 | T14: 0.07301587302 | U14: 0.06031746032 | V14: 0.05414012739 | W14: 0.05 | X14: 0.04823151125 | Y14: 0.05519480519 | Z14: 0.06168831169
J15: 401–500 | K15: 0.1474358974 | L15: 0.1612903226 | M15: 0.1570512821 | N15: 0.1341853035 | O15: 0.1401273885 | P15: 0.1365079365 | Q15: 0.1587301587 | R15: 0.1487341772 | S15: 0.1428571429 | T15: 0.1396825397 | U15: 0.1333333333 | V15: 0.127388535 | W15: 0.1362007168 | X15: 0.1286173633 | Y15: 0.1331168831 | Z15: 0.1298701299
J16: nad 500 | K16: 0.06730769231 | L16: 0.05161290323 | M16: 0.05128205128 | N16: 0.0607028754 | O16: 0.05732484076 | P16: 0.05396825397 | Q16: 0.04126984127 | R16: 0.04113924051 | S16: 0.04126984127 | T16: 0.04126984127 | U16: 0.04761904762 | V16: 0.05414012739 | W16: 0.05 | X16: 0.05466237942 | Y16: 0.05519480519 | Z16: 0.05519480519
P17: =SUM(P11:P16) -> 1 | Q17: =SUM(Q11:Q16) -> 1 | R17: 1 | S17: 1 | T17: 1 | U17: 1 | V17: 1 | W17: 0.9962007168 | X17: 1 | Y17: 1 | Z17: 1
Z36: Zdroj: databáze MŠMT

Sheet GB4
D4: Obr. B4: | H4: Obory gymnázií, denní forma vzdělávání – poměrové ukazatele podle zřizovatele
B5: 70 | D5: ve školním roce 2009/10 až 2019/20 – podle formy vzdělávání a zřizovatele
J10: žáci/škola | K10: celkem | L10: veřejný | M10: privátní sektor | N10: církev | P10: žáci/třída | Q10: celkem | R10: veřejný | S10: privátní sektor | T10: církev
J11: 2007/08 | K11: 389.9383378 | L11: 453 | M11: 160.2191781 | N11: 345.55 | P11: 2007/08 | Q11: 27.7237291 | R11: 28.81417537 | S11: 19.75675676 | T11: 27.31620553 | AS11: 379 | AT11: 281 | AU11: 78 | AV11: 20
J12: 2008/09 | K12: 384.7320955 | L12: 451.4678571 | M12: 152.1428571 | N12: 345.9 | P12: 2008/09 | Q12: 27.55866315 | R12: 28.70954555 | S12: 19.4278607 | T12: 26.91828794 | BM12: 27.55866315 | BN12: 28.70954555 | BO12: 19.4278607 | BP12: 26.91828794
J13: 2009/10 | K13: 377.0501319 | L13: 443.3985765 | M13: 146.6025641 | N13: 343.6 | P13: 2009/10 | Q13: 27.2303207 | R13: 28.41779947 | S13: 18.94780447 | T13: 26.43076923 | BM13: 27.2303207 | BN13: 28.41779947 | BO13: 18.94780447 | BP13: 26.43076923
J14: 2010/11 | K14: 371.3897849 | L14: 433.4892857 | M14: 139.9861111 | N14: 335.05 | P14: 2010/11 | Q14: 26.7860328 | R14: 27.97639764 | S14: 17.99018295 | T14: 25.87258687 | BM14: 26.7860328 | BN14: 27.97639764 | BO14: 17.99018295 | BP14: 25.87258687
J15: 2011/12 | K15: 362.1078167 | L15: 419.0673759 | M15: 137.1594203 | N15: 335.05 | P15: 2011/12 | Q15: 26.43814562 | R15: 27.61467461 | S15: 17.4012172 | T15: 25.97286822 | BM15: 26.43814562 | BN15: 27.61467461 | BO15: 17.4012172 | BP15: 25.97286822
J16: 2012/13 | K16: 354.3070652 | L16: 409.5285714 | M16: 133.9264706 | N16: 330.5 | P16: 2012/13 | Q16: 26.20651259 | R16: 27.33698723 | S16: 17.33247055 | T16: 25.89618022 | BM16: 26.20651259 | BN16: 27.33698723 | BO16: 17.33247055 | BP16: 25.89618022
J17: 2013/14 | K17: 350.6849315 | L17: 402.0537634 | M17: 137.2272727 | N17: 338.5 | P17: 2013/14 | Q17: 26.13450285 | R17: 27.27962509 | S17: 17.12065934 | T17: 26.36703536 | BM17: 26.13450285 | BN17: 27.27962509 | BO17: 17.12065934 | BP17: 26.36703536
J18: 2014/15 | K18: 348.5068493 | L18: 398.3920863 | M18: 141.7164179 | N18: 347.85 | P18: 2014/15 | Q18: 26.24152393 | R18: 27.3924797 | S18: 17.3583181 | T18: 27.04057836 | BM18: 26.24152393 | BN18: 27.3924797 | BO18: 17.3583181 | BP18: 27.04057836
J19: 2015/16 | K19: 352.6049724 | L19: 399.1877256 | M19: 154.4 | N19: 351.6 | P19: 2015/16 | Q19: 26.42214407 | R19: 27.55213914 | S19: 17.95573685 | T19: 27.18416576 | BM19: 26.42214407 | BN19: 27.55213914 | BO19: 17.95573685 | BP19: 27.18416576
J20: 2016/17 | K20: 358.275766 | L20: 404.3686131 | M20: 164.9846154 | N20: 355 | P20: 2016/17 | Q20: 26.58227586 | R20: 27.70042727 | S20: 18.52126906 | T20: 27.3329227 | BM20: 26.58227586 | BN20: 27.70042727 | BO20: 18.52126906 | BP20: 27.3329227
J21: 2017/18 | K21: 360.9134078 | L21: 404.229927 | M21: 176.6875 | N21: 357 | P21: 2017/18 | Q21: 26.64490372 | R21: 27.7406541 | S21: 18.97538301 | T21: 27.39515789 | BM21: 26.64490372 | BN21: 27.7406541 | BO21: 18.97538301 | BP21: 27.39515789
J22: 2018/19 | K22: 365.8197183 | L22: 407.5073529 | M22: 188.9206349 | N22: 356.1 | P22: 2018/19 | Q22: 26.68494074 | R22: 27.78921295 | S22: 19.22809738 | T22: 27.50019307 | BM22: 26.68494074 | BN22: 27.78921295 | BO22: 19.22809738 | BP22: 27.50019307
J23: 2019/20 | K23: 367.5521127 | L23: 408.3125 | M23: 195.7777778 | N23: 354.3 | P23: 2019/20 | Q23: 26.65989686 | R23: 27.8259802 | S23: 19.09258371 | T23: 27.57198444
K25: školy | L25: veřejný | M25: privátní sektor | N25: církev | Q25: třídy | R25: veřejný | S25: privátní sektor | T25: církev
K26: 379 | L26: 281 | M26: 78 | N26: 20 | Q26: 5247.9 | R26: 4384.4 | S26: 603.5 | T26: 260
K27: 372 | L27: 280 | M27: 72 | N27: 20 | Q27: 5157.8 | R27: 4338.55 | S27: 560.25 | T27: 259
K28: 371 | L28: 282 | M28: 69 | N28: 20 | Q28: 5081.37 | R28: 4279.5 | S28: 543.87 | T28: 258
K29: 368 | L29: 280 | M29: 68 | N29: 20 | Q29: 4975.29 | R29: 4194.61 | S29: 525.43 | T29: 255.25
K30: 365 | L30: 279 | M30: 66 | N30: 20 | Q30: 4897.74 | R30: 4111.97 | S30: 529.01 | T30: 256.76
K31: 365 | L31: 278 | M31: 67 | N31: 20 | Q31: 4847.47 | R31: 4043.19 | S31: 547 | T31: 257.28
K32: 362 | L32: 277 | M32: 65 | N32: 20 | Q32: 4830.91 | R32: 4013.3 | S32: 558.93 | T32: 258.68
K33: 359 | L33: 274 | M33: 65 | N33: 20 | Q33: 4838.6 | R33: 3999.83 | S33: 579.01 | T33: 259.76
K34: 358 | L34: 274 | M34: 64 | N34: 20 | Q34: 4849.22 | R34: 3992.66 | S34: 595.93 | T34: 260.63
K35: 355 | L35: 272 | M35: 63 | N35: 20 | Q35: 4866.64 | R35: 3988.67 | S35: 618.99 | T35: 258.98
K36: 355 | L36: 272 | M36: 63 | N36: 20 | Q36: 4894.28 | R36: 3991.27 | S36: 646.01 | T36: 257
K37: žáci | L37: veřejný | M37: privátní sektor | N37: církev
K38: 142902 | L38: 124595 | M38: 11435 | N38: 6872
K39: 138157 | L39: 121377 | M39: 10079 | N39: 6701
K40: 134342 | L40: 118177 | M40: 9464 | N40: 6701
K41: 130385 | L41: 114668 | M41: 9107 | N41: 6610
K42: 128000 | L42: 112173 | M42: 9057 | N42: 6770
K43: 127205 | L43: 110753 | M43: 9495 | N43: 6957
K44: 127643 | L44: 110575 | M44: 10036 | N44: 7032
K45: 128621 | L45: 110797 | M45: 10724 | N45: 7100
K46: 129207 | L46: 110759 | M46: 11308 | N46: 7140
K47: 129866 | L47: 110842 | M47: 11902 | N47: 7122
K48: 130481 | L48: 111061 | M48: 12334 | N48: 7086
T50: Zdroj: databáze MŠMT

Sheet GB5
D4: Obr. B5: | H4: Obory gymnázií – struktura nově přijatých do 1. ročníku ve školním roce 2008/09 až 2018/19 – podle délky vzdělávání
B5: 70
K10: 2003/04 | L10: 2004/05 | M10: 2005/06 | N10: 2007/08 | O10: 2008/09 | P10: 2009/10 | Q10: 2010/11 | R10: 2011/12 | S10: 2012/13 | T10: 2013/14 | U10: 2014/15 | V10: 2015/16 | W10: 2016/17 | X10: 2017/18 | Y10: 2018/19 | Z10: 2019/20
J11: 4letá | K11: 0.5551838193 | L11: 0.5563881463 | M11: 0.5548910252 | N11: 0.5539437897 | O11: 0.5593723818 | P11: ='B5.2.5'!P35/'B5.2.5'!P34 -> 0.5421681977 | Q11: ='B5.2.5'!Q35/'B5.2.5'!Q34 -> 0.5245596993 | R11: ='B5.2.5'!R35/'B5.2.5'!R34 -> 0.508049549 | S11: ='B5.2.5'!S35/'B5.2.5'!S34 -> 0.5162162162 | T11: ='B5.2.5'!T35/'B5.2.5'!T34 -> 0.5155268817 | U11: ='B5.2.5'!U35/'B5.2.5'!U34 -> 0.5138798384 | V11: ='B5.2.5'!V35/'B5.2.5'!V34 -> 0.516789621 | W11: ='B5.2.5'!W35/'B5.2.5'!W34 -> 0.5123467159 | X11: ='B5.2.5'!X35/'B5.2.5'!X34 -> 0.5065236668 | Y11: ='B5.2.5'!Y35/'B5.2.5'!Y34 -> 0.5078042384 | Z11: ='B5.2.5'!Z35/'B5.2.5'!Z34 -> 0.5125207297
J12: 6letá | K12: 0.07885032126 | L12: 0.07903754189 | M12: 0.08222646217 | N12: 0.08877304322 | O12: 0.09044862518 | P12: ='B5.2.5'!P37/'B5.2.5'!P34 -> 0.09312638581 | Q12: ='B5.2.5'!Q37/'B5.2.5'!Q34 -> 0.09241035604 | R12: ='B5.2.5'!R37/'B5.2.5'!R34 -> 0.09581768743 | S12: ='B5.2.5'!S37/'B5.2.5'!S34 -> 0.09760244115 | T12: ='B5.2.5'!T37/'B5.2.5'!T34 -> 0.09458064516 | U12: ='B5.2.5'!U37/'B5.2.5'!U34 -> 0.09665928146 | V12: ='B5.2.5'!V37/'B5.2.5'!V34 -> 0.0987026202 | W12: ='B5.2.5'!W37/'B5.2.5'!W34 -> 0.09814379305 | X12: ='B5.2.5'!X37/'B5.2.5'!X34 -> 0.09939619136 | Y12: ='B5.2.5'!Y37/'B5.2.5'!Y34 -> 0.1009263568 | Z12: ='B5.2.5'!Z37/'B5.2.5'!Z34 -> 0.1008291874
J13: 8letá | K13: 0.3659658594 | L13: 0.3645743119 | M13: 0.3628825127 | N13: 0.3572831671 | O13: 0.3501789931 | P13: ='B5.2.5'!P38/'B5.2.5'!P34 -> 0.3647054165 | Q13: ='B5.2.5'!Q38/'B5.2.5'!Q34 -> 0.3830299447 | R13: ='B5.2.5'!R38/'B5.2.5'!R34 -> 0.3961327636 | S13: ='B5.2.5'!S38/'B5.2.5'!S34 -> 0.3861813426 | T13: ='B5.2.5'!T38/'B5.2.5'!T34 -> 0.3898924731 | U13: ='B5.2.5'!U38/'B5.2.5'!U34 -> 0.3894608801 | V13: ='B5.2.5'!V38/'B5.2.5'!V34 -> 0.3845077588 | W13: ='B5.2.5'!W38/'B5.2.5'!W34 -> 0.389509491 | X13: ='B5.2.5'!X38/'B5.2.5'!X34 -> 0.3940801419 | Y13: ='B5.2.5'!Y38/'B5.2.5'!Y34 -> 0.3912694048 | Z13: ='B5.2.5'!Z38/'B5.2.5'!Z34 -> 0.3866500829
Z35: Zdroj: databáze MŠMT
